Organisation Name,Organisation Code,Unique Ref No,Effective Date,Directorate where expenditure incurred,Supplier Name ,Payment Date,Net Amount,Purpose of Spend,"Procurement Classification
(Higher Level)","Procurement Classification 
(Lower Level)",CAPITAL / REVENUE
Walsall Council,http://opendatacommunities.org/id/metropolitan-district-council/walsall ,WC139-1,30.06.2022,"ECONOMY, ENVIRONMENT & COMMUNITIES",0 POINT EIGHT LIMITED,06/06/2022,"2,903.10",6414-Purchase of Furniture & Equipment,SUPPLIES & SERVICES,EQUIPMENT FURNITURE & MATERIALS,REVENUE
Walsall Council,http://opendatacommunities.org/id/metropolitan-district-council/walsall ,WC139-2,30.06.2022,"ECONOMY, ENVIRONMENT & COMMUNITIES",0 POINT EIGHT LIMITED,06/06/2022,"2,194.65",6414-Purchase of Furniture & Equipment,SUPPLIES & SERVICES,EQUIPMENT FURNITURE & MATERIALS,REVENUE
Walsall Council,http://opendatacommunities.org/id/metropolitan-district-council/walsall ,WC139-3,30.06.2022,"ECONOMY, ENVIRONMENT & COMMUNITIES",0 POINT EIGHT LIMITED,06/06/2022,"3,481.80",6414-Purchase of Furniture & Equipment,SUPPLIES & SERVICES,EQUIPMENT FURNITURE & MATERIALS,REVENUE
Walsall Council,http://opendatacommunities.org/id/metropolitan-district-council/walsall ,WC139-4,30.06.2022,"ECONOMY, ENVIRONMENT & COMMUNITIES",0 POINT EIGHT LIMITED,06/06/2022,"2,160.13",6414-Purchase of Furniture & Equipment,SUPPLIES & SERVICES,EQUIPMENT FURNITURE & MATERIALS,REVENUE
Walsall Council,http://opendatacommunities.org/id/metropolitan-district-council/walsall ,WC139-5,30.06.2022,CHILDRENS,247 CARS (WILLENHALL) LIMITED,21/06/2022,"1,387.50",6241-Hire of Vehicle with Driver,TRANSPORT,DIRECT TRANSPORT COSTS,REVENUE
Walsall Council,http://opendatacommunities.org/id/metropolitan-district-council/walsall ,WC139-6,30.06.2022,CHILDRENS,247 CARS (WILLENHALL) LIMITED,21/06/2022,"1,035.00",6241-Hire of Vehicle with Driver,TRANSPORT,DIRECT TRANSPORT COSTS,REVENUE
Walsall Council,http://opendatacommunities.org/id/metropolitan-district-council/walsall ,WC139-7,30.06.2022,CHILDRENS,247 CARS (WILLENHALL) LIMITED,21/06/2022,-332.50,6241-Hire of Vehicle with Driver,TRANSPORT,DIRECT TRANSPORT COSTS,REVENUE
Walsall Council,http://opendatacommunities.org/id/metropolitan-district-council/walsall ,WC139-8,30.06.2022,CHILDRENS,247 CARS (WILLENHALL) LIMITED,21/06/2022,"1,330.00",6241-Hire of Vehicle with Driver,TRANSPORT,DIRECT TRANSPORT COSTS,REVENUE
Walsall Council,http://opendatacommunities.org/id/metropolitan-district-council/walsall ,WC139-9,30.06.2022,CHILDRENS,247 CARS (WILLENHALL) LIMITED,21/06/2022,"1,387.50",6241-Hire of Vehicle with Driver,TRANSPORT,DIRECT TRANSPORT COSTS,REVENUE
Walsall Council,http://opendatacommunities.org/id/metropolitan-district-council/walsall ,WC139-10,30.06.2022,CHILDRENS,247 CARS (WILLENHALL) LIMITED,21/06/2022,"1,387.50",6241-Hire of Vehicle with Driver,TRANSPORT,DIRECT TRANSPORT COSTS,REVENUE
Walsall Council,http://opendatacommunities.org/id/metropolitan-district-council/walsall ,WC139-11,30.06.2022,CHILDRENS,247 CARS (WILLENHALL) LIMITED,21/06/2022,"1,387.50",6241-Hire of Vehicle with Driver,TRANSPORT,DIRECT TRANSPORT COSTS,REVENUE
Walsall Council,http://opendatacommunities.org/id/metropolitan-district-council/walsall ,WC139-12,30.06.2022,CHILDRENS,247 CARS (WILLENHALL) LIMITED,21/06/2022,"1,858.50",6241-Hire of Vehicle with Driver,TRANSPORT,DIRECT TRANSPORT COSTS,REVENUE
Walsall Council,http://opendatacommunities.org/id/metropolitan-district-council/walsall ,WC139-13,30.06.2022,CHILDRENS,247 CARS (WILLENHALL) LIMITED,21/06/2022,"1,387.50",6241-Hire of Vehicle with Driver,TRANSPORT,DIRECT TRANSPORT COSTS,REVENUE
Walsall Council,http://opendatacommunities.org/id/metropolitan-district-council/walsall ,WC139-14,30.06.2022,CHILDRENS,247 CARS (WILLENHALL) LIMITED,21/06/2022,"1,050.00",6241-Hire of Vehicle with Driver,TRANSPORT,DIRECT TRANSPORT COSTS,REVENUE
Walsall Council,http://opendatacommunities.org/id/metropolitan-district-council/walsall ,WC139-15,30.06.2022,CHILDRENS,247 CARS (WILLENHALL) LIMITED,21/06/2022,"1,083.00",6241-Hire of Vehicle with Driver,TRANSPORT,DIRECT TRANSPORT COSTS,REVENUE
Walsall Council,http://opendatacommunities.org/id/metropolitan-district-council/walsall ,WC139-16,30.06.2022,CHILDRENS,247 CARS (WILLENHALL) LIMITED,21/06/2022,250.00,6241-Hire of Vehicle with Driver,TRANSPORT,DIRECT TRANSPORT COSTS,REVENUE
Walsall Council,http://opendatacommunities.org/id/metropolitan-district-council/walsall ,WC139-17,30.06.2022,CHILDRENS,247 CARS (WILLENHALL) LIMITED,21/06/2022,"1,096.20",6241-Hire of Vehicle with Driver,TRANSPORT,DIRECT TRANSPORT COSTS,REVENUE
Walsall Council,http://opendatacommunities.org/id/metropolitan-district-council/walsall ,WC139-18,30.06.2022,RESOURCES AND TRANSFORMATION,3 SPIRIT UK TRAINING & CONSULTANCY,01/06/2022,725.00,6625-Consultant Fees,SUPPLIES & SERVICES,SERVICES,REVENUE
Walsall Council,http://opendatacommunities.org/id/metropolitan-district-council/walsall ,WC139-19,30.06.2022,ADULT SOCIAL CARE,5 CARE SERVICES LTD,01/06/2022,"2,875.60",6541-Domiciliary Care,THIRD PARTY PAYMENTS,PRIVATE CONTRACTOR,REVENUE
Walsall Council,http://opendatacommunities.org/id/metropolitan-district-council/walsall ,WC139-20,30.06.2022,ADULT SOCIAL CARE,5 CARE SERVICES LTD,01/06/2022,"1,489.15",6541-Domiciliary Care,THIRD PARTY PAYMENTS,PRIVATE CONTRACTOR,REVENUE
Walsall Council,http://opendatacommunities.org/id/metropolitan-district-council/walsall ,WC139-21,30.06.2022,ADULT SOCIAL CARE,5 CARE SERVICES LTD,01/06/2022,442.40,6541-Domiciliary Care,THIRD PARTY PAYMENTS,PRIVATE CONTRACTOR,REVENUE
Walsall Council,http://opendatacommunities.org/id/metropolitan-district-council/walsall ,WC139-22,30.06.2022,ADULT SOCIAL CARE,5 CARE SERVICES LTD,01/06/2022,733.42,6541-Domiciliary Care,THIRD PARTY PAYMENTS,PRIVATE CONTRACTOR,REVENUE
Walsall Council,http://opendatacommunities.org/id/metropolitan-district-council/walsall ,WC139-23,30.06.2022,ADULT SOCIAL CARE,5 CARE SERVICES LTD,01/06/2022,284.40,6541-Domiciliary Care,THIRD PARTY PAYMENTS,PRIVATE CONTRACTOR,REVENUE
Walsall Council,http://opendatacommunities.org/id/metropolitan-district-council/walsall ,WC139-24,30.06.2022,ADULT SOCIAL CARE,5 CARE SERVICES LTD,01/06/2022,395.00,6541-Domiciliary Care,THIRD PARTY PAYMENTS,PRIVATE CONTRACTOR,REVENUE
Walsall Council,http://opendatacommunities.org/id/metropolitan-district-council/walsall ,WC139-25,30.06.2022,ADULT SOCIAL CARE,5 CARE SERVICES LTD,01/06/2022,"2,275.20",6541-Domiciliary Care,THIRD PARTY PAYMENTS,PRIVATE CONTRACTOR,REVENUE
Walsall Council,http://opendatacommunities.org/id/metropolitan-district-council/walsall ,WC139-26,30.06.2022,ADULT SOCIAL CARE,5 CARE SERVICES LTD,01/06/2022,375.25,6541-Domiciliary Care,THIRD PARTY PAYMENTS,PRIVATE CONTRACTOR,REVENUE
Walsall Council,http://opendatacommunities.org/id/metropolitan-district-council/walsall ,WC139-27,30.06.2022,ADULT SOCIAL CARE,5 CARE SERVICES LTD,01/06/2022,687.30,6541-Domiciliary Care,THIRD PARTY PAYMENTS,PRIVATE CONTRACTOR,REVENUE
Walsall Council,http://opendatacommunities.org/id/metropolitan-district-council/walsall ,WC139-28,30.06.2022,ADULT SOCIAL CARE,5 CARE SERVICES LTD,01/06/2022,"1,868.35",6541-Domiciliary Care,THIRD PARTY PAYMENTS,PRIVATE CONTRACTOR,REVENUE
Walsall Council,http://opendatacommunities.org/id/metropolitan-district-council/walsall ,WC139-29,30.06.2022,ADULT SOCIAL CARE,5 CARE SERVICES LTD,01/06/2022,790.00,6541-Domiciliary Care,THIRD PARTY PAYMENTS,PRIVATE CONTRACTOR,REVENUE
Walsall Council,http://opendatacommunities.org/id/metropolitan-district-council/walsall ,WC139-30,30.06.2022,ADULT SOCIAL CARE,5 CARE SERVICES LTD,07/06/2022,288.35,6541-Domiciliary Care,THIRD PARTY PAYMENTS,PRIVATE CONTRACTOR,REVENUE
Walsall Council,http://opendatacommunities.org/id/metropolitan-district-council/walsall ,WC139-31,30.06.2022,ADULT SOCIAL CARE,5 CARE SERVICES LTD,07/06/2022,497.70,6541-Domiciliary Care,THIRD PARTY PAYMENTS,PRIVATE CONTRACTOR,REVENUE
Walsall Council,http://opendatacommunities.org/id/metropolitan-district-council/walsall ,WC139-32,30.06.2022,ADULT SOCIAL CARE,5 CARE SERVICES LTD,07/06/2022,442.40,6541-Domiciliary Care,THIRD PARTY PAYMENTS,PRIVATE CONTRACTOR,REVENUE
Walsall Council,http://opendatacommunities.org/id/metropolitan-district-council/walsall ,WC139-33,30.06.2022,ADULT SOCIAL CARE,5 CARE SERVICES LTD,07/06/2022,497.70,6541-Domiciliary Care,THIRD PARTY PAYMENTS,PRIVATE CONTRACTOR,REVENUE
Walsall Council,http://opendatacommunities.org/id/metropolitan-district-council/walsall ,WC139-34,30.06.2022,ADULT SOCIAL CARE,5 CARE SERVICES LTD,07/06/2022,734.70,6541-Domiciliary Care,THIRD PARTY PAYMENTS,PRIVATE CONTRACTOR,REVENUE
Walsall Council,http://opendatacommunities.org/id/metropolitan-district-council/walsall ,WC139-35,30.06.2022,ADULT SOCIAL CARE,5 CARE SERVICES LTD,07/06/2022,252.80,6541-Domiciliary Care,THIRD PARTY PAYMENTS,PRIVATE CONTRACTOR,REVENUE
Walsall Council,http://opendatacommunities.org/id/metropolitan-district-council/walsall ,WC139-36,30.06.2022,ADULT SOCIAL CARE,5 CARE SERVICES LTD,07/06/2022,489.80,6541-Domiciliary Care,THIRD PARTY PAYMENTS,PRIVATE CONTRACTOR,REVENUE
Walsall Council,http://opendatacommunities.org/id/metropolitan-district-council/walsall ,WC139-37,30.06.2022,ADULT SOCIAL CARE,5 CARE SERVICES LTD,07/06/2022,663.60,6541-Domiciliary Care,THIRD PARTY PAYMENTS,PRIVATE CONTRACTOR,REVENUE
Walsall Council,http://opendatacommunities.org/id/metropolitan-district-council/walsall ,WC139-38,30.06.2022,ADULT SOCIAL CARE,5 CARE SERVICES LTD,07/06/2022,331.80,6541-Domiciliary Care,THIRD PARTY PAYMENTS,PRIVATE CONTRACTOR,REVENUE
Walsall Council,http://opendatacommunities.org/id/metropolitan-district-council/walsall ,WC139-39,30.06.2022,ADULT SOCIAL CARE,5 CARE SERVICES LTD,07/06/2022,645.19,6541-Domiciliary Care,THIRD PARTY PAYMENTS,PRIVATE CONTRACTOR,REVENUE
Walsall Council,http://opendatacommunities.org/id/metropolitan-district-council/walsall ,WC139-40,30.06.2022,ADULT SOCIAL CARE,5 CARE SERVICES LTD,07/06/2022,497.70,6541-Domiciliary Care,THIRD PARTY PAYMENTS,PRIVATE CONTRACTOR,REVENUE
Walsall Council,http://opendatacommunities.org/id/metropolitan-district-council/walsall ,WC139-41,30.06.2022,ADULT SOCIAL CARE,5 CARE SERVICES LTD,07/06/2022,718.90,6541-Domiciliary Care,THIRD PARTY PAYMENTS,PRIVATE CONTRACTOR,REVENUE
Walsall Council,http://opendatacommunities.org/id/metropolitan-district-council/walsall ,WC139-42,30.06.2022,ADULT SOCIAL CARE,5 CARE SERVICES LTD,07/06/2022,884.80,6541-Domiciliary Care,THIRD PARTY PAYMENTS,PRIVATE CONTRACTOR,REVENUE
Walsall Council,http://opendatacommunities.org/id/metropolitan-district-council/walsall ,WC139-43,30.06.2022,ADULT SOCIAL CARE,5 CARE SERVICES LTD,07/06/2022,284.19,6541-Domiciliary Care,THIRD PARTY PAYMENTS,PRIVATE CONTRACTOR,REVENUE
Walsall Council,http://opendatacommunities.org/id/metropolitan-district-council/walsall ,WC139-44,30.06.2022,ADULT SOCIAL CARE,5 CARE SERVICES LTD,07/06/2022,529.30,6541-Domiciliary Care,THIRD PARTY PAYMENTS,PRIVATE CONTRACTOR,REVENUE
Walsall Council,http://opendatacommunities.org/id/metropolitan-district-council/walsall ,WC139-45,30.06.2022,ADULT SOCIAL CARE,5 CARE SERVICES LTD,07/06/2022,"1,216.60",6541-Domiciliary Care,THIRD PARTY PAYMENTS,PRIVATE CONTRACTOR,REVENUE
Walsall Council,http://opendatacommunities.org/id/metropolitan-district-council/walsall ,WC139-46,30.06.2022,ADULT SOCIAL CARE,5 CARE SERVICES LTD,07/06/2022,568.80,6541-Domiciliary Care,THIRD PARTY PAYMENTS,PRIVATE CONTRACTOR,REVENUE
Walsall Council,http://opendatacommunities.org/id/metropolitan-district-council/walsall ,WC139-47,30.06.2022,ADULT SOCIAL CARE,5 CARE SERVICES LTD,07/06/2022,331.80,6541-Domiciliary Care,THIRD PARTY PAYMENTS,PRIVATE CONTRACTOR,REVENUE
Walsall Council,http://opendatacommunities.org/id/metropolitan-district-council/walsall ,WC139-48,30.06.2022,ADULT SOCIAL CARE,5 CARE SERVICES LTD,07/06/2022,387.10,6541-Domiciliary Care,THIRD PARTY PAYMENTS,PRIVATE CONTRACTOR,REVENUE
Walsall Council,http://opendatacommunities.org/id/metropolitan-district-council/walsall ,WC139-49,30.06.2022,ADULT SOCIAL CARE,5 CARE SERVICES LTD,07/06/2022,316.00,6541-Domiciliary Care,THIRD PARTY PAYMENTS,PRIVATE CONTRACTOR,REVENUE
Walsall Council,http://opendatacommunities.org/id/metropolitan-district-council/walsall ,WC139-50,30.06.2022,ADULT SOCIAL CARE,5 CARE SERVICES LTD,07/06/2022,331.80,6541-Domiciliary Care,THIRD PARTY PAYMENTS,PRIVATE CONTRACTOR,REVENUE
Walsall Council,http://opendatacommunities.org/id/metropolitan-district-council/walsall ,WC139-51,30.06.2022,ADULT SOCIAL CARE,5 CARE SERVICES LTD,07/06/2022,497.70,6541-Domiciliary Care,THIRD PARTY PAYMENTS,PRIVATE CONTRACTOR,REVENUE
Walsall Council,http://opendatacommunities.org/id/metropolitan-district-council/walsall ,WC139-52,30.06.2022,ADULT SOCIAL CARE,5 CARE SERVICES LTD,07/06/2022,407.76,6541-Domiciliary Care,THIRD PARTY PAYMENTS,PRIVATE CONTRACTOR,REVENUE
Walsall Council,http://opendatacommunities.org/id/metropolitan-district-council/walsall ,WC139-53,30.06.2022,ADULT SOCIAL CARE,5 CARE SERVICES LTD,07/06/2022,442.40,6541-Domiciliary Care,THIRD PARTY PAYMENTS,PRIVATE CONTRACTOR,REVENUE
Walsall Council,http://opendatacommunities.org/id/metropolitan-district-council/walsall ,WC139-54,30.06.2022,ADULT SOCIAL CARE,5 CARE SERVICES LTD,07/06/2022,497.70,6541-Domiciliary Care,THIRD PARTY PAYMENTS,PRIVATE CONTRACTOR,REVENUE
Walsall Council,http://opendatacommunities.org/id/metropolitan-district-council/walsall ,WC139-55,30.06.2022,ADULT SOCIAL CARE,5 CARE SERVICES LTD,07/06/2022,884.80,6541-Domiciliary Care,THIRD PARTY PAYMENTS,PRIVATE CONTRACTOR,REVENUE
Walsall Council,http://opendatacommunities.org/id/metropolitan-district-council/walsall ,WC139-56,30.06.2022,ADULT SOCIAL CARE,5 CARE SERVICES LTD,07/06/2022,663.60,6541-Domiciliary Care,THIRD PARTY PAYMENTS,PRIVATE CONTRACTOR,REVENUE
Walsall Council,http://opendatacommunities.org/id/metropolitan-district-council/walsall ,WC139-57,30.06.2022,ADULT SOCIAL CARE,5 CARE SERVICES LTD,07/06/2022,331.80,6541-Domiciliary Care,THIRD PARTY PAYMENTS,PRIVATE CONTRACTOR,REVENUE
Walsall Council,http://opendatacommunities.org/id/metropolitan-district-council/walsall ,WC139-58,30.06.2022,ADULT SOCIAL CARE,5 CARE SERVICES LTD,07/06/2022,645.19,6541-Domiciliary Care,THIRD PARTY PAYMENTS,PRIVATE CONTRACTOR,REVENUE
Walsall Council,http://opendatacommunities.org/id/metropolitan-district-council/walsall ,WC139-59,30.06.2022,ADULT SOCIAL CARE,5 CARE SERVICES LTD,07/06/2022,288.35,6541-Domiciliary Care,THIRD PARTY PAYMENTS,PRIVATE CONTRACTOR,REVENUE
Walsall Council,http://opendatacommunities.org/id/metropolitan-district-council/walsall ,WC139-60,30.06.2022,ADULT SOCIAL CARE,5 CARE SERVICES LTD,07/06/2022,497.70,6541-Domiciliary Care,THIRD PARTY PAYMENTS,PRIVATE CONTRACTOR,REVENUE
Walsall Council,http://opendatacommunities.org/id/metropolitan-district-council/walsall ,WC139-61,30.06.2022,ADULT SOCIAL CARE,5 CARE SERVICES LTD,07/06/2022,"1,516.80",6541-Domiciliary Care,THIRD PARTY PAYMENTS,PRIVATE CONTRACTOR,REVENUE
Walsall Council,http://opendatacommunities.org/id/metropolitan-district-council/walsall ,WC139-62,30.06.2022,ADULT SOCIAL CARE,5 CARE SERVICES LTD,07/06/2022,316.00,6541-Domiciliary Care,THIRD PARTY PAYMENTS,PRIVATE CONTRACTOR,REVENUE
Walsall Council,http://opendatacommunities.org/id/metropolitan-district-council/walsall ,WC139-63,30.06.2022,ADULT SOCIAL CARE,5 CARE SERVICES LTD,07/06/2022,331.80,6541-Domiciliary Care,THIRD PARTY PAYMENTS,PRIVATE CONTRACTOR,REVENUE
Walsall Council,http://opendatacommunities.org/id/metropolitan-district-council/walsall ,WC139-64,30.06.2022,ADULT SOCIAL CARE,5 CARE SERVICES LTD,07/06/2022,497.70,6541-Domiciliary Care,THIRD PARTY PAYMENTS,PRIVATE CONTRACTOR,REVENUE
Walsall Council,http://opendatacommunities.org/id/metropolitan-district-council/walsall ,WC139-65,30.06.2022,ADULT SOCIAL CARE,5 CARE SERVICES LTD,07/06/2022,718.90,6541-Domiciliary Care,THIRD PARTY PAYMENTS,PRIVATE CONTRACTOR,REVENUE
Walsall Council,http://opendatacommunities.org/id/metropolitan-district-council/walsall ,WC139-66,30.06.2022,ADULT SOCIAL CARE,5 CARE SERVICES LTD,07/06/2022,489.80,6541-Domiciliary Care,THIRD PARTY PAYMENTS,PRIVATE CONTRACTOR,REVENUE
Walsall Council,http://opendatacommunities.org/id/metropolitan-district-council/walsall ,WC139-67,30.06.2022,ADULT SOCIAL CARE,5 CARE SERVICES LTD,07/06/2022,529.30,6541-Domiciliary Care,THIRD PARTY PAYMENTS,PRIVATE CONTRACTOR,REVENUE
Walsall Council,http://opendatacommunities.org/id/metropolitan-district-council/walsall ,WC139-68,30.06.2022,ADULT SOCIAL CARE,5 CARE SERVICES LTD,07/06/2022,442.40,6541-Domiciliary Care,THIRD PARTY PAYMENTS,PRIVATE CONTRACTOR,REVENUE
Walsall Council,http://opendatacommunities.org/id/metropolitan-district-council/walsall ,WC139-69,30.06.2022,ADULT SOCIAL CARE,5 CARE SERVICES LTD,07/06/2022,"1,216.60",6541-Domiciliary Care,THIRD PARTY PAYMENTS,PRIVATE CONTRACTOR,REVENUE
Walsall Council,http://opendatacommunities.org/id/metropolitan-district-council/walsall ,WC139-70,30.06.2022,ADULT SOCIAL CARE,5 CARE SERVICES LTD,07/06/2022,568.80,6541-Domiciliary Care,THIRD PARTY PAYMENTS,PRIVATE CONTRACTOR,REVENUE
Walsall Council,http://opendatacommunities.org/id/metropolitan-district-council/walsall ,WC139-71,30.06.2022,ADULT SOCIAL CARE,5 CARE SERVICES LTD,07/06/2022,734.70,6541-Domiciliary Care,THIRD PARTY PAYMENTS,PRIVATE CONTRACTOR,REVENUE
Walsall Council,http://opendatacommunities.org/id/metropolitan-district-council/walsall ,WC139-72,30.06.2022,ADULT SOCIAL CARE,5 CARE SERVICES LTD,07/06/2022,252.80,6541-Domiciliary Care,THIRD PARTY PAYMENTS,PRIVATE CONTRACTOR,REVENUE
Walsall Council,http://opendatacommunities.org/id/metropolitan-district-council/walsall ,WC139-73,30.06.2022,ADULT SOCIAL CARE,5 CARE SERVICES LTD,07/06/2022,497.70,6541-Domiciliary Care,THIRD PARTY PAYMENTS,PRIVATE CONTRACTOR,REVENUE
Walsall Council,http://opendatacommunities.org/id/metropolitan-district-council/walsall ,WC139-74,30.06.2022,ADULT SOCIAL CARE,5 CARE SERVICES LTD,21/06/2022,"1,216.60",6541-Domiciliary Care,THIRD PARTY PAYMENTS,PRIVATE CONTRACTOR,REVENUE
Walsall Council,http://opendatacommunities.org/id/metropolitan-district-council/walsall ,WC139-75,30.06.2022,ADULT SOCIAL CARE,5 CARE SERVICES LTD,21/06/2022,568.80,6541-Domiciliary Care,THIRD PARTY PAYMENTS,PRIVATE CONTRACTOR,REVENUE
Walsall Council,http://opendatacommunities.org/id/metropolitan-district-council/walsall ,WC139-76,30.06.2022,ADULT SOCIAL CARE,5 CARE SERVICES LTD,21/06/2022,734.70,6541-Domiciliary Care,THIRD PARTY PAYMENTS,PRIVATE CONTRACTOR,REVENUE
Walsall Council,http://opendatacommunities.org/id/metropolitan-district-council/walsall ,WC139-77,30.06.2022,ADULT SOCIAL CARE,5 CARE SERVICES LTD,21/06/2022,252.80,6541-Domiciliary Care,THIRD PARTY PAYMENTS,PRIVATE CONTRACTOR,REVENUE
Walsall Council,http://opendatacommunities.org/id/metropolitan-district-council/walsall ,WC139-78,30.06.2022,ADULT SOCIAL CARE,5 CARE SERVICES LTD,21/06/2022,288.35,6541-Domiciliary Care,THIRD PARTY PAYMENTS,PRIVATE CONTRACTOR,REVENUE
Walsall Council,http://opendatacommunities.org/id/metropolitan-district-council/walsall ,WC139-79,30.06.2022,ADULT SOCIAL CARE,5 CARE SERVICES LTD,21/06/2022,497.70,6541-Domiciliary Care,THIRD PARTY PAYMENTS,PRIVATE CONTRACTOR,REVENUE
Walsall Council,http://opendatacommunities.org/id/metropolitan-district-council/walsall ,WC139-80,30.06.2022,ADULT SOCIAL CARE,5 CARE SERVICES LTD,21/06/2022,442.40,6541-Domiciliary Care,THIRD PARTY PAYMENTS,PRIVATE CONTRACTOR,REVENUE
Walsall Council,http://opendatacommunities.org/id/metropolitan-district-council/walsall ,WC139-81,30.06.2022,ADULT SOCIAL CARE,5 CARE SERVICES LTD,21/06/2022,316.00,6541-Domiciliary Care,THIRD PARTY PAYMENTS,PRIVATE CONTRACTOR,REVENUE
Walsall Council,http://opendatacommunities.org/id/metropolitan-district-council/walsall ,WC139-82,30.06.2022,ADULT SOCIAL CARE,5 CARE SERVICES LTD,21/06/2022,331.80,6541-Domiciliary Care,THIRD PARTY PAYMENTS,PRIVATE CONTRACTOR,REVENUE
Walsall Council,http://opendatacommunities.org/id/metropolitan-district-council/walsall ,WC139-83,30.06.2022,ADULT SOCIAL CARE,5 CARE SERVICES LTD,21/06/2022,497.70,6541-Domiciliary Care,THIRD PARTY PAYMENTS,PRIVATE CONTRACTOR,REVENUE
Walsall Council,http://opendatacommunities.org/id/metropolitan-district-council/walsall ,WC139-84,30.06.2022,ADULT SOCIAL CARE,5 CARE SERVICES LTD,21/06/2022,497.70,6541-Domiciliary Care,THIRD PARTY PAYMENTS,PRIVATE CONTRACTOR,REVENUE
Walsall Council,http://opendatacommunities.org/id/metropolitan-district-council/walsall ,WC139-85,30.06.2022,ADULT SOCIAL CARE,5 CARE SERVICES LTD,21/06/2022,489.80,6541-Domiciliary Care,THIRD PARTY PAYMENTS,PRIVATE CONTRACTOR,REVENUE
Walsall Council,http://opendatacommunities.org/id/metropolitan-district-council/walsall ,WC139-86,30.06.2022,ADULT SOCIAL CARE,5 CARE SERVICES LTD,21/06/2022,371.30,6541-Domiciliary Care,THIRD PARTY PAYMENTS,PRIVATE CONTRACTOR,REVENUE
Walsall Council,http://opendatacommunities.org/id/metropolitan-district-council/walsall ,WC139-87,30.06.2022,ADULT SOCIAL CARE,5 CARE SERVICES LTD,21/06/2022,497.70,6541-Domiciliary Care,THIRD PARTY PAYMENTS,PRIVATE CONTRACTOR,REVENUE
Walsall Council,http://opendatacommunities.org/id/metropolitan-district-council/walsall ,WC139-88,30.06.2022,ADULT SOCIAL CARE,5 CARE SERVICES LTD,21/06/2022,718.90,6541-Domiciliary Care,THIRD PARTY PAYMENTS,PRIVATE CONTRACTOR,REVENUE
Walsall Council,http://opendatacommunities.org/id/metropolitan-district-council/walsall ,WC139-89,30.06.2022,ADULT SOCIAL CARE,5 CARE SERVICES LTD,21/06/2022,884.80,6541-Domiciliary Care,THIRD PARTY PAYMENTS,PRIVATE CONTRACTOR,REVENUE
Walsall Council,http://opendatacommunities.org/id/metropolitan-district-council/walsall ,WC139-90,30.06.2022,ADULT SOCIAL CARE,5 CARE SERVICES LTD,21/06/2022,"4,929.60",6541-Domiciliary Care,THIRD PARTY PAYMENTS,PRIVATE CONTRACTOR,REVENUE
Walsall Council,http://opendatacommunities.org/id/metropolitan-district-council/walsall ,WC139-91,30.06.2022,ADULT SOCIAL CARE,5 CARE SERVICES LTD,21/06/2022,339.70,6541-Domiciliary Care,THIRD PARTY PAYMENTS,PRIVATE CONTRACTOR,REVENUE
Walsall Council,http://opendatacommunities.org/id/metropolitan-district-council/walsall ,WC139-92,30.06.2022,ADULT SOCIAL CARE,5 CARE SERVICES LTD,21/06/2022,"-1,079.68",6541-Domiciliary Care,THIRD PARTY PAYMENTS,PRIVATE CONTRACTOR,REVENUE
Walsall Council,http://opendatacommunities.org/id/metropolitan-district-council/walsall ,WC139-93,30.06.2022,ADULT SOCIAL CARE,5 CARE SERVICES LTD,21/06/2022,663.60,6541-Domiciliary Care,THIRD PARTY PAYMENTS,PRIVATE CONTRACTOR,REVENUE
Walsall Council,http://opendatacommunities.org/id/metropolitan-district-council/walsall ,WC139-94,30.06.2022,ADULT SOCIAL CARE,5 CARE SERVICES LTD,21/06/2022,331.80,6541-Domiciliary Care,THIRD PARTY PAYMENTS,PRIVATE CONTRACTOR,REVENUE
Walsall Council,http://opendatacommunities.org/id/metropolitan-district-council/walsall ,WC139-95,30.06.2022,ADULT SOCIAL CARE,5 CARE SERVICES LTD,21/06/2022,645.19,6541-Domiciliary Care,THIRD PARTY PAYMENTS,PRIVATE CONTRACTOR,REVENUE
Walsall Council,http://opendatacommunities.org/id/metropolitan-district-council/walsall ,WC139-96,30.06.2022,ADULT SOCIAL CARE,5 CARE SERVICES LTD,21/06/2022,442.40,6541-Domiciliary Care,THIRD PARTY PAYMENTS,PRIVATE CONTRACTOR,REVENUE
Walsall Council,http://opendatacommunities.org/id/metropolitan-district-council/walsall ,WC139-97,30.06.2022,ADULT SOCIAL CARE,5 CARE SERVICES LTD,21/06/2022,331.80,6541-Domiciliary Care,THIRD PARTY PAYMENTS,PRIVATE CONTRACTOR,REVENUE
Walsall Council,http://opendatacommunities.org/id/metropolitan-district-council/walsall ,WC139-98,30.06.2022,ADULT SOCIAL CARE,5 CARE SERVICES LTD,21/06/2022,442.40,6541-Domiciliary Care,THIRD PARTY PAYMENTS,PRIVATE CONTRACTOR,REVENUE
Walsall Council,http://opendatacommunities.org/id/metropolitan-district-council/walsall ,WC139-99,30.06.2022,ADULT SOCIAL CARE,5 CARE SERVICES LTD,21/06/2022,"1,137.60",6541-Domiciliary Care,THIRD PARTY PAYMENTS,PRIVATE CONTRACTOR,REVENUE
Walsall Council,http://opendatacommunities.org/id/metropolitan-district-council/walsall ,WC139-100,30.06.2022,ADULT SOCIAL CARE,5 CARE SERVICES LTD,21/06/2022,288.35,6541-Domiciliary Care,THIRD PARTY PAYMENTS,PRIVATE CONTRACTOR,REVENUE
Walsall Council,http://opendatacommunities.org/id/metropolitan-district-council/walsall ,WC139-101,30.06.2022,ADULT SOCIAL CARE,5 CARE SERVICES LTD,21/06/2022,497.70,6541-Domiciliary Care,THIRD PARTY PAYMENTS,PRIVATE CONTRACTOR,REVENUE
Walsall Council,http://opendatacommunities.org/id/metropolitan-district-council/walsall ,WC139-102,30.06.2022,ADULT SOCIAL CARE,5 CARE SERVICES LTD,21/06/2022,497.70,6541-Domiciliary Care,THIRD PARTY PAYMENTS,PRIVATE CONTRACTOR,REVENUE
Walsall Council,http://opendatacommunities.org/id/metropolitan-district-council/walsall ,WC139-103,30.06.2022,ADULT SOCIAL CARE,5 CARE SERVICES LTD,21/06/2022,663.60,6541-Domiciliary Care,THIRD PARTY PAYMENTS,PRIVATE CONTRACTOR,REVENUE
Walsall Council,http://opendatacommunities.org/id/metropolitan-district-council/walsall ,WC139-104,30.06.2022,ADULT SOCIAL CARE,5 CARE SERVICES LTD,21/06/2022,331.80,6541-Domiciliary Care,THIRD PARTY PAYMENTS,PRIVATE CONTRACTOR,REVENUE
Walsall Council,http://opendatacommunities.org/id/metropolitan-district-council/walsall ,WC139-105,30.06.2022,ADULT SOCIAL CARE,5 CARE SERVICES LTD,21/06/2022,645.19,6541-Domiciliary Care,THIRD PARTY PAYMENTS,PRIVATE CONTRACTOR,REVENUE
Walsall Council,http://opendatacommunities.org/id/metropolitan-district-council/walsall ,WC139-106,30.06.2022,ADULT SOCIAL CARE,5 CARE SERVICES LTD,21/06/2022,489.80,6541-Domiciliary Care,THIRD PARTY PAYMENTS,PRIVATE CONTRACTOR,REVENUE
Walsall Council,http://opendatacommunities.org/id/metropolitan-district-council/walsall ,WC139-107,30.06.2022,ADULT SOCIAL CARE,5 CARE SERVICES LTD,21/06/2022,884.80,6541-Domiciliary Care,THIRD PARTY PAYMENTS,PRIVATE CONTRACTOR,REVENUE
Walsall Council,http://opendatacommunities.org/id/metropolitan-district-council/walsall ,WC139-108,30.06.2022,ADULT SOCIAL CARE,5 CARE SERVICES LTD,21/06/2022,"1,216.60",6541-Domiciliary Care,THIRD PARTY PAYMENTS,PRIVATE CONTRACTOR,REVENUE
Walsall Council,http://opendatacommunities.org/id/metropolitan-district-council/walsall ,WC139-109,30.06.2022,ADULT SOCIAL CARE,5 CARE SERVICES LTD,21/06/2022,568.80,6541-Domiciliary Care,THIRD PARTY PAYMENTS,PRIVATE CONTRACTOR,REVENUE
Walsall Council,http://opendatacommunities.org/id/metropolitan-district-council/walsall ,WC139-110,30.06.2022,ADULT SOCIAL CARE,5 CARE SERVICES LTD,21/06/2022,260.70,6541-Domiciliary Care,THIRD PARTY PAYMENTS,PRIVATE CONTRACTOR,REVENUE
Walsall Council,http://opendatacommunities.org/id/metropolitan-district-council/walsall ,WC139-111,30.06.2022,ADULT SOCIAL CARE,5 CARE SERVICES LTD,21/06/2022,734.70,6541-Domiciliary Care,THIRD PARTY PAYMENTS,PRIVATE CONTRACTOR,REVENUE
Walsall Council,http://opendatacommunities.org/id/metropolitan-district-council/walsall ,WC139-112,30.06.2022,ADULT SOCIAL CARE,5 CARE SERVICES LTD,21/06/2022,252.80,6541-Domiciliary Care,THIRD PARTY PAYMENTS,PRIVATE CONTRACTOR,REVENUE
Walsall Council,http://opendatacommunities.org/id/metropolitan-district-council/walsall ,WC139-113,30.06.2022,ADULT SOCIAL CARE,5 CARE SERVICES LTD,21/06/2022,497.70,6541-Domiciliary Care,THIRD PARTY PAYMENTS,PRIVATE CONTRACTOR,REVENUE
Walsall Council,http://opendatacommunities.org/id/metropolitan-district-council/walsall ,WC139-114,30.06.2022,ADULT SOCIAL CARE,5 CARE SERVICES LTD,21/06/2022,296.25,6541-Domiciliary Care,THIRD PARTY PAYMENTS,PRIVATE CONTRACTOR,REVENUE
Walsall Council,http://opendatacommunities.org/id/metropolitan-district-council/walsall ,WC139-115,30.06.2022,ADULT SOCIAL CARE,5 CARE SERVICES LTD,21/06/2022,442.40,6541-Domiciliary Care,THIRD PARTY PAYMENTS,PRIVATE CONTRACTOR,REVENUE
Walsall Council,http://opendatacommunities.org/id/metropolitan-district-council/walsall ,WC139-116,30.06.2022,ADULT SOCIAL CARE,5 CARE SERVICES LTD,21/06/2022,718.90,6541-Domiciliary Care,THIRD PARTY PAYMENTS,PRIVATE CONTRACTOR,REVENUE
Walsall Council,http://opendatacommunities.org/id/metropolitan-district-council/walsall ,WC139-117,30.06.2022,ADULT SOCIAL CARE,5 CARE SERVICES LTD,21/06/2022,316.00,6541-Domiciliary Care,THIRD PARTY PAYMENTS,PRIVATE CONTRACTOR,REVENUE
Walsall Council,http://opendatacommunities.org/id/metropolitan-district-council/walsall ,WC139-118,30.06.2022,ADULT SOCIAL CARE,5 CARE SERVICES LTD,21/06/2022,331.80,6541-Domiciliary Care,THIRD PARTY PAYMENTS,PRIVATE CONTRACTOR,REVENUE
Walsall Council,http://opendatacommunities.org/id/metropolitan-district-council/walsall ,WC139-119,30.06.2022,ADULT SOCIAL CARE,5 CARE SERVICES LTD,21/06/2022,497.70,6541-Domiciliary Care,THIRD PARTY PAYMENTS,PRIVATE CONTRACTOR,REVENUE
Walsall Council,http://opendatacommunities.org/id/metropolitan-district-council/walsall ,WC139-120,30.06.2022,ADULT SOCIAL CARE,5 CARE SERVICES LTD,21/06/2022,442.40,6541-Domiciliary Care,THIRD PARTY PAYMENTS,PRIVATE CONTRACTOR,REVENUE
Walsall Council,http://opendatacommunities.org/id/metropolitan-district-council/walsall ,WC139-121,30.06.2022,ADULT SOCIAL CARE,5 CARE SERVICES LTD,29/06/2022,600.40,6541-Domiciliary Care,THIRD PARTY PAYMENTS,PRIVATE CONTRACTOR,REVENUE
Walsall Council,http://opendatacommunities.org/id/metropolitan-district-council/walsall ,WC139-122,30.06.2022,ADULT SOCIAL CARE,5 CARE SERVICES LTD,29/06/2022,256.75,6541-Domiciliary Care,THIRD PARTY PAYMENTS,PRIVATE CONTRACTOR,REVENUE
Walsall Council,http://opendatacommunities.org/id/metropolitan-district-council/walsall ,WC139-123,30.06.2022,ADULT SOCIAL CARE,5 CARE SERVICES LTD,29/06/2022,"10,617.60",6541-Domiciliary Care,THIRD PARTY PAYMENTS,PRIVATE CONTRACTOR,REVENUE
Walsall Council,http://opendatacommunities.org/id/metropolitan-district-council/walsall ,WC139-124,30.06.2022,ADULT SOCIAL CARE,5 CARE SERVICES LTD,29/06/2022,813.70,6541-Domiciliary Care,THIRD PARTY PAYMENTS,PRIVATE CONTRACTOR,REVENUE
Walsall Council,http://opendatacommunities.org/id/metropolitan-district-council/walsall ,WC139-125,30.06.2022,ADULT SOCIAL CARE,5 CARE SERVICES LTD,29/06/2022,687.30,6541-Domiciliary Care,THIRD PARTY PAYMENTS,PRIVATE CONTRACTOR,REVENUE
Walsall Council,http://opendatacommunities.org/id/metropolitan-district-council/walsall ,WC139-126,30.06.2022,ADULT SOCIAL CARE,5 CARE SERVICES LTD,29/06/2022,"1,801.20",6541-Domiciliary Care,THIRD PARTY PAYMENTS,PRIVATE CONTRACTOR,REVENUE
Walsall Council,http://opendatacommunities.org/id/metropolitan-district-council/walsall ,WC139-127,30.06.2022,ADULT SOCIAL CARE,5 CARE SERVICES LTD,29/06/2022,462.15,6541-Domiciliary Care,THIRD PARTY PAYMENTS,PRIVATE CONTRACTOR,REVENUE
Walsall Council,http://opendatacommunities.org/id/metropolitan-district-council/walsall ,WC139-128,30.06.2022,ADULT SOCIAL CARE,5 CARE SERVICES LTD,29/06/2022,529.30,6541-Domiciliary Care,THIRD PARTY PAYMENTS,PRIVATE CONTRACTOR,REVENUE
Walsall Council,http://opendatacommunities.org/id/metropolitan-district-council/walsall ,WC139-129,30.06.2022,ADULT SOCIAL CARE,5 CARE SERVICES LTD,29/06/2022,276.50,6541-Domiciliary Care,THIRD PARTY PAYMENTS,PRIVATE CONTRACTOR,REVENUE
Walsall Council,http://opendatacommunities.org/id/metropolitan-district-council/walsall ,WC139-130,30.06.2022,ADULT SOCIAL CARE,5 CARE SERVICES LTD,29/06/2022,884.80,6541-Domiciliary Care,THIRD PARTY PAYMENTS,PRIVATE CONTRACTOR,REVENUE
Walsall Council,http://opendatacommunities.org/id/metropolitan-district-council/walsall ,WC139-131,30.06.2022,ADULT SOCIAL CARE,5 CARE SERVICES LTD,29/06/2022,845.30,6541-Domiciliary Care,THIRD PARTY PAYMENTS,PRIVATE CONTRACTOR,REVENUE
Walsall Council,http://opendatacommunities.org/id/metropolitan-district-council/walsall ,WC139-132,30.06.2022,ADULT SOCIAL CARE,5 CARE SERVICES LTD,29/06/2022,718.90,6541-Domiciliary Care,THIRD PARTY PAYMENTS,PRIVATE CONTRACTOR,REVENUE
Walsall Council,http://opendatacommunities.org/id/metropolitan-district-council/walsall ,WC139-133,30.06.2022,"ECONOMY, ENVIRONMENT & COMMUNITIES",5 CARE SERVICES LTD,14/06/2022,856.50,6313-Grants to Other Orgs,SUPPLIES & SERVICES,GRANTS (EXP) & SUBSCRIPTIONS,REVENUE
Walsall Council,http://opendatacommunities.org/id/metropolitan-district-council/walsall ,WC139-134,30.06.2022,"ECONOMY, ENVIRONMENT & COMMUNITIES",5 CARE SERVICES LTD,14/06/2022,795.82,6313-Grants to Other Orgs,SUPPLIES & SERVICES,GRANTS (EXP) & SUBSCRIPTIONS,REVENUE
Walsall Council,http://opendatacommunities.org/id/metropolitan-district-council/walsall ,WC139-135,30.06.2022,"ECONOMY, ENVIRONMENT & COMMUNITIES",5 CARE SERVICES LTD,14/06/2022,358.55,6313-Grants to Other Orgs,SUPPLIES & SERVICES,GRANTS (EXP) & SUBSCRIPTIONS,REVENUE
Walsall Council,http://opendatacommunities.org/id/metropolitan-district-council/walsall ,WC139-136,30.06.2022,CHILDRENS,5 CARE SERVICES LTD,06/06/2022,255.20,6220-Professional Fees & Services,SUPPLIES & SERVICES,SERVICES,REVENUE
Walsall Council,http://opendatacommunities.org/id/metropolitan-district-council/walsall ,WC139-137,30.06.2022,"ECONOMY, ENVIRONMENT & COMMUNITIES",5 CARE SERVICES LTD,20/06/2022,918.00,6313-Grants to Other Orgs,SUPPLIES & SERVICES,GRANTS (EXP) & SUBSCRIPTIONS,REVENUE
Walsall Council,http://opendatacommunities.org/id/metropolitan-district-council/walsall ,WC139-138,30.06.2022,"ECONOMY, ENVIRONMENT & COMMUNITIES",5 CARE SERVICES LTD,23/06/2022,640.00,6313-Grants to Other Orgs,SUPPLIES & SERVICES,GRANTS (EXP) & SUBSCRIPTIONS,REVENUE
Walsall Council,http://opendatacommunities.org/id/metropolitan-district-council/walsall ,WC139-139,30.06.2022,"ECONOMY, ENVIRONMENT & COMMUNITIES",5 CARE SERVICES LTD,20/06/2022,741.72,6313-Grants to Other Orgs,SUPPLIES & SERVICES,GRANTS (EXP) & SUBSCRIPTIONS,REVENUE
Walsall Council,http://opendatacommunities.org/id/metropolitan-district-council/walsall ,WC139-140,30.06.2022,CHILDRENS,5 CARE SERVICES LTD,20/06/2022,255.20,6220-Professional Fees & Services,SUPPLIES & SERVICES,SERVICES,REVENUE
Walsall Council,http://opendatacommunities.org/id/metropolitan-district-council/walsall ,WC139-141,30.06.2022,CHILDRENS,5 CARE SERVICES LTD,20/06/2022,255.20,6220-Professional Fees & Services,SUPPLIES & SERVICES,SERVICES,REVENUE
Walsall Council,http://opendatacommunities.org/id/metropolitan-district-council/walsall ,WC139-142,30.06.2022,"ECONOMY, ENVIRONMENT & COMMUNITIES",A & A SERVICES WEST MIDLANDS,24/06/2022,"2,000.00",6430-Professional Fees & Services,SUPPLIES & SERVICES,SERVICES,REVENUE
Walsall Council,http://opendatacommunities.org/id/metropolitan-district-council/walsall ,WC139-143,30.06.2022,"ECONOMY, ENVIRONMENT & COMMUNITIES",A & A SERVICES WEST MIDLANDS,22/06/2022,"-10,000.00",6430-External Training,INDIRECT EMPLOYEES,EXTERNAL TRAINING,REVENUE
Walsall Council,http://opendatacommunities.org/id/metropolitan-district-council/walsall ,WC139-144,30.06.2022,"ECONOMY, ENVIRONMENT & COMMUNITIES",A & A SERVICES WEST MIDLANDS,22/06/2022,"10,000.00",6430-External Training,INDIRECT EMPLOYEES,EXTERNAL TRAINING,REVENUE
Walsall Council,http://opendatacommunities.org/id/metropolitan-district-council/walsall ,WC139-145,30.06.2022,"ECONOMY, ENVIRONMENT & COMMUNITIES",A ASHTON,30/06/2022,372.00,6410-Materials,SUPPLIES & SERVICES,EQUIPMENT FURNITURE & MATERIALS,REVENUE
Walsall Council,http://opendatacommunities.org/id/metropolitan-district-council/walsall ,WC139-146,30.06.2022,"ECONOMY, ENVIRONMENT & COMMUNITIES",A D T FIRE AND SECURITY PLC,01/06/2022,592.20,6410-Materials,SUPPLIES & SERVICES,EQUIPMENT FURNITURE & MATERIALS,REVENUE
Walsall Council,http://opendatacommunities.org/id/metropolitan-district-council/walsall ,WC139-147,30.06.2022,"ECONOMY, ENVIRONMENT & COMMUNITIES",A D T FIRE AND SECURITY PLC,16/06/2022,658.49,6410-Materials,SUPPLIES & SERVICES,EQUIPMENT FURNITURE & MATERIALS,REVENUE
Walsall Council,http://opendatacommunities.org/id/metropolitan-district-council/walsall ,WC139-148,30.06.2022,"ECONOMY, ENVIRONMENT & COMMUNITIES",A D T FIRE AND SECURITY PLC,01/06/2022,680.06,6410-Materials,SUPPLIES & SERVICES,EQUIPMENT FURNITURE & MATERIALS,REVENUE
Walsall Council,http://opendatacommunities.org/id/metropolitan-district-council/walsall ,WC139-149,30.06.2022,CHILDRENS,A D T FIRE AND SECURITY PLC,29/06/2022,966.12,6223-Repair & Maintenance of Furniture & Equipment,SUPPLIES & SERVICES,EQUIPMENT FURNITURE & MATERIALS,REVENUE
Walsall Council,http://opendatacommunities.org/id/metropolitan-district-council/walsall ,WC139-150,30.06.2022,"ECONOMY, ENVIRONMENT & COMMUNITIES",A D T FIRE AND SECURITY PLC,29/06/2022,"1,052.50",6410-Materials,SUPPLIES & SERVICES,EQUIPMENT FURNITURE & MATERIALS,REVENUE
Walsall Council,http://opendatacommunities.org/id/metropolitan-district-council/walsall ,WC139-151,30.06.2022,"ECONOMY, ENVIRONMENT & COMMUNITIES",A F BLAKEMORE & SON LTD,20/06/2022,381.31,6413-Food & Drink Supplies,SUPPLIES & SERVICES,CATERING,REVENUE
Walsall Council,http://opendatacommunities.org/id/metropolitan-district-council/walsall ,WC139-152,30.06.2022,"ECONOMY, ENVIRONMENT & COMMUNITIES",A F BLAKEMORE & SON LTD,17/06/2022,323.02,6413-Food & Drink Supplies,SUPPLIES & SERVICES,CATERING,REVENUE
Walsall Council,http://opendatacommunities.org/id/metropolitan-district-council/walsall ,WC139-153,30.06.2022,"ECONOMY, ENVIRONMENT & COMMUNITIES",A F BLAKEMORE & SON LTD,17/06/2022,582.53,6413-Food & Drink Supplies,SUPPLIES & SERVICES,CATERING,REVENUE
Walsall Council,http://opendatacommunities.org/id/metropolitan-district-council/walsall ,WC139-154,30.06.2022,"ECONOMY, ENVIRONMENT & COMMUNITIES",A F BLAKEMORE & SON LTD,24/06/2022,"2,137.09",6413-Food & Drink Supplies,SUPPLIES & SERVICES,CATERING,REVENUE
Walsall Council,http://opendatacommunities.org/id/metropolitan-district-council/walsall ,WC139-155,30.06.2022,CHILDRENS,A1 WALSALL RADIO CARS,21/06/2022,432.00,6241-Hire of Vehicle with Driver,TRANSPORT,DIRECT TRANSPORT COSTS,REVENUE
Walsall Council,http://opendatacommunities.org/id/metropolitan-district-council/walsall ,WC139-156,30.06.2022,CHILDRENS,A1 WALSALL RADIO CARS,21/06/2022,"2,055.00",6241-Hire of Vehicle with Driver,TRANSPORT,DIRECT TRANSPORT COSTS,REVENUE
Walsall Council,http://opendatacommunities.org/id/metropolitan-district-council/walsall ,WC139-157,30.06.2022,"ECONOMY, ENVIRONMENT & COMMUNITIES",AAINA COMMUNITY HUB,22/06/2022,"2,976.96",6313-Grants to Other Orgs,SUPPLIES & SERVICES,GRANTS (EXP) & SUBSCRIPTIONS,REVENUE
Walsall Council,http://opendatacommunities.org/id/metropolitan-district-council/walsall ,WC139-158,30.06.2022,"ECONOMY, ENVIRONMENT & COMMUNITIES",AAINA COMMUNITY HUB,22/06/2022,"2,876.96",6313-Grants to Other Orgs,SUPPLIES & SERVICES,GRANTS (EXP) & SUBSCRIPTIONS,REVENUE
Walsall Council,http://opendatacommunities.org/id/metropolitan-district-council/walsall ,WC139-159,30.06.2022,CHILDRENS,AAINA COMMUNITY HUB,08/06/2022,"2,000.00",6633-Fees & Licences,SUPPLIES & SERVICES,SERVICES,REVENUE
Walsall Council,http://opendatacommunities.org/id/metropolitan-district-council/walsall ,WC139-160,30.06.2022,ADULT SOCIAL CARE,AAINA COMMUNITY HUB,28/06/2022,"25,091.00",6420-Professional Services-Priv Contractor & Other Agencies,THIRD PARTY PAYMENTS,PRIVATE CONTRACTOR,REVENUE
Walsall Council,http://opendatacommunities.org/id/metropolitan-district-council/walsall ,WC139-161,30.06.2022,"ECONOMY, ENVIRONMENT & COMMUNITIES",AAINA COMMUNITY HUB,09/06/2022,717.15,6313-Grants to Other Orgs,SUPPLIES & SERVICES,GRANTS (EXP) & SUBSCRIPTIONS,REVENUE
Walsall Council,http://opendatacommunities.org/id/metropolitan-district-council/walsall ,WC139-162,30.06.2022,"ECONOMY, ENVIRONMENT & COMMUNITIES",AAINA COMMUNITY HUB,01/06/2022,779.00,6313-Grants to Other Orgs,SUPPLIES & SERVICES,GRANTS (EXP) & SUBSCRIPTIONS,REVENUE
Walsall Council,http://opendatacommunities.org/id/metropolitan-district-council/walsall ,WC139-163,30.06.2022,CHILDRENS,ABACUS FOSTERING LTD,14/06/2022,"1,085.54",6223-Independent Foster Care-Oth Agency Provision,THIRD PARTY PAYMENTS,PRIVATE CONTRACTOR,REVENUE
Walsall Council,http://opendatacommunities.org/id/metropolitan-district-council/walsall ,WC139-164,30.06.2022,CHILDRENS,ABACUS FOSTERING LTD,14/06/2022,"1,805.71",6223-Independent Foster Care-Oth Agency Provision,THIRD PARTY PAYMENTS,PRIVATE CONTRACTOR,REVENUE
Walsall Council,http://opendatacommunities.org/id/metropolitan-district-council/walsall ,WC139-165,30.06.2022,CHILDRENS,ABACUS FOSTERING LTD,14/06/2022,"1,085.54",6223-Independent Foster Care-Oth Agency Provision,THIRD PARTY PAYMENTS,PRIVATE CONTRACTOR,REVENUE
Walsall Council,http://opendatacommunities.org/id/metropolitan-district-council/walsall ,WC139-166,30.06.2022,ADULT SOCIAL CARE,ABBEY COURT NURSING & RESIDEN,07/06/2022,"2,606.04",6541-Residential EMI,THIRD PARTY PAYMENTS,PRIVATE CONTRACTOR,REVENUE
Walsall Council,http://opendatacommunities.org/id/metropolitan-district-council/walsall ,WC139-167,30.06.2022,ADULT SOCIAL CARE,ABBEY COURT NURSING & RESIDEN,07/06/2022,"2,095.40",6541-Residential,THIRD PARTY PAYMENTS,PRIVATE CONTRACTOR,REVENUE
Walsall Council,http://opendatacommunities.org/id/metropolitan-district-council/walsall ,WC139-168,30.06.2022,ADULT SOCIAL CARE,ABBEY COURT NURSING & RESIDEN,07/06/2022,"2,366.04",6541-Residential EMI,THIRD PARTY PAYMENTS,PRIVATE CONTRACTOR,REVENUE
Walsall Council,http://opendatacommunities.org/id/metropolitan-district-council/walsall ,WC139-169,30.06.2022,ADULT SOCIAL CARE,ABBEY HEALTHCARE HOMES LTD,07/06/2022,"2,432.32",6541-Residential,THIRD PARTY PAYMENTS,PRIVATE CONTRACTOR,REVENUE
Walsall Council,http://opendatacommunities.org/id/metropolitan-district-council/walsall ,WC139-170,30.06.2022,ADULT SOCIAL CARE,ABBEY HEALTHCARE HOMES LTD,07/06/2022,"3,180.76",6541-Residential,THIRD PARTY PAYMENTS,PRIVATE CONTRACTOR,REVENUE
Walsall Council,http://opendatacommunities.org/id/metropolitan-district-council/walsall ,WC139-171,30.06.2022,ADULT SOCIAL CARE,ABBEY HEALTHCARE HOMES LTD,07/06/2022,"3,180.76",6541-Residential,THIRD PARTY PAYMENTS,PRIVATE CONTRACTOR,REVENUE
Walsall Council,http://opendatacommunities.org/id/metropolitan-district-council/walsall ,WC139-172,30.06.2022,ADULT SOCIAL CARE,ABBEY HEALTHCARE HOMES LTD,07/06/2022,"3,604.84",6541-Residential,THIRD PARTY PAYMENTS,PRIVATE CONTRACTOR,REVENUE
Walsall Council,http://opendatacommunities.org/id/metropolitan-district-council/walsall ,WC139-173,30.06.2022,ADULT SOCIAL CARE,REDACTED,08/06/2022,"2,704.80",6541-Direct Payment,THIRD PARTY PAYMENTS,PRIVATE CONTRACTOR,REVENUE
Walsall Council,http://opendatacommunities.org/id/metropolitan-district-council/walsall ,WC139-174,30.06.2022,ADULT SOCIAL CARE,ABILITY HEALTHCARE LTD,01/06/2022,331.80,6541-Domiciliary Care,THIRD PARTY PAYMENTS,PRIVATE CONTRACTOR,REVENUE
Walsall Council,http://opendatacommunities.org/id/metropolitan-district-council/walsall ,WC139-175,30.06.2022,ADULT SOCIAL CARE,ABILITY HEALTHCARE LTD,01/06/2022,"2,212.00",6541-Domiciliary Care,THIRD PARTY PAYMENTS,PRIVATE CONTRACTOR,REVENUE
Walsall Council,http://opendatacommunities.org/id/metropolitan-district-council/walsall ,WC139-176,30.06.2022,ADULT SOCIAL CARE,ABILITY HEALTHCARE LTD,01/06/2022,"1,090.20",6541-Domiciliary Care,THIRD PARTY PAYMENTS,PRIVATE CONTRACTOR,REVENUE
Walsall Council,http://opendatacommunities.org/id/metropolitan-district-council/walsall ,WC139-177,30.06.2022,ADULT SOCIAL CARE,ABILITY HEALTHCARE LTD,01/06/2022,"2,059.35",6541-Domiciliary Care,THIRD PARTY PAYMENTS,PRIVATE CONTRACTOR,REVENUE
Walsall Council,http://opendatacommunities.org/id/metropolitan-district-council/walsall ,WC139-178,30.06.2022,ADULT SOCIAL CARE,ABILITY HEALTHCARE LTD,01/06/2022,"1,769.60",6541-Domiciliary Care,THIRD PARTY PAYMENTS,PRIVATE CONTRACTOR,REVENUE
Walsall Council,http://opendatacommunities.org/id/metropolitan-district-council/walsall ,WC139-179,30.06.2022,ADULT SOCIAL CARE,ABILITY HEALTHCARE LTD,01/06/2022,951.95,6541-Domiciliary Care,THIRD PARTY PAYMENTS,PRIVATE CONTRACTOR,REVENUE
Walsall Council,http://opendatacommunities.org/id/metropolitan-district-council/walsall ,WC139-180,30.06.2022,ADULT SOCIAL CARE,ABILITY HEALTHCARE LTD,01/06/2022,884.80,6541-Domiciliary Care,THIRD PARTY PAYMENTS,PRIVATE CONTRACTOR,REVENUE
Walsall Council,http://opendatacommunities.org/id/metropolitan-district-council/walsall ,WC139-181,30.06.2022,ADULT SOCIAL CARE,ABILITY HEALTHCARE LTD,01/06/2022,900.60,6541-Domiciliary Care,THIRD PARTY PAYMENTS,PRIVATE CONTRACTOR,REVENUE
Walsall Council,http://opendatacommunities.org/id/metropolitan-district-council/walsall ,WC139-182,30.06.2022,ADULT SOCIAL CARE,ABILITY HEALTHCARE LTD,01/06/2022,995.40,6541-Domiciliary Care,THIRD PARTY PAYMENTS,PRIVATE CONTRACTOR,REVENUE
Walsall Council,http://opendatacommunities.org/id/metropolitan-district-council/walsall ,WC139-183,30.06.2022,ADULT SOCIAL CARE,ABILITY HEALTHCARE LTD,01/06/2022,"1,769.60",6541-Domiciliary Care,THIRD PARTY PAYMENTS,PRIVATE CONTRACTOR,REVENUE
Walsall Council,http://opendatacommunities.org/id/metropolitan-district-council/walsall ,WC139-184,30.06.2022,ADULT SOCIAL CARE,ABILITY HEALTHCARE LTD,01/06/2022,"1,042.96",6541-Domiciliary Care,THIRD PARTY PAYMENTS,PRIVATE CONTRACTOR,REVENUE
Walsall Council,http://opendatacommunities.org/id/metropolitan-district-council/walsall ,WC139-185,30.06.2022,ADULT SOCIAL CARE,ABILITY HEALTHCARE LTD,01/06/2022,995.40,6541-Domiciliary Care,THIRD PARTY PAYMENTS,PRIVATE CONTRACTOR,REVENUE
Walsall Council,http://opendatacommunities.org/id/metropolitan-district-council/walsall ,WC139-186,30.06.2022,ADULT SOCIAL CARE,ABILITY HEALTHCARE LTD,01/06/2022,368.76,6541-Domiciliary Care,THIRD PARTY PAYMENTS,PRIVATE CONTRACTOR,REVENUE
Walsall Council,http://opendatacommunities.org/id/metropolitan-district-council/walsall ,WC139-187,30.06.2022,ADULT SOCIAL CARE,ABILITY HEALTHCARE LTD,01/06/2022,"1,990.80",6541-Domiciliary Care,THIRD PARTY PAYMENTS,PRIVATE CONTRACTOR,REVENUE
Walsall Council,http://opendatacommunities.org/id/metropolitan-district-council/walsall ,WC139-188,30.06.2022,ADULT SOCIAL CARE,ABILITY HEALTHCARE LTD,01/06/2022,"1,990.80",6541-Domiciliary Care,THIRD PARTY PAYMENTS,PRIVATE CONTRACTOR,REVENUE
Walsall Council,http://opendatacommunities.org/id/metropolitan-district-council/walsall ,WC139-189,30.06.2022,ADULT SOCIAL CARE,ABILITY HEALTHCARE LTD,01/06/2022,"2,243.60",6541-Domiciliary Care,THIRD PARTY PAYMENTS,PRIVATE CONTRACTOR,REVENUE
Walsall Council,http://opendatacommunities.org/id/metropolitan-district-council/walsall ,WC139-190,30.06.2022,ADULT SOCIAL CARE,ABILITY HEALTHCARE LTD,01/06/2022,"1,453.60",6541-Domiciliary Care,THIRD PARTY PAYMENTS,PRIVATE CONTRACTOR,REVENUE
Walsall Council,http://opendatacommunities.org/id/metropolitan-district-council/walsall ,WC139-191,30.06.2022,ADULT SOCIAL CARE,ABILITY HEALTHCARE LTD,01/06/2022,"1,769.60",6541-Domiciliary Care,THIRD PARTY PAYMENTS,PRIVATE CONTRACTOR,REVENUE
Walsall Council,http://opendatacommunities.org/id/metropolitan-district-council/walsall ,WC139-192,30.06.2022,ADULT SOCIAL CARE,ABILITY HEALTHCARE LTD,01/06/2022,"1,027.00",6541-Domiciliary Care,THIRD PARTY PAYMENTS,PRIVATE CONTRACTOR,REVENUE
Walsall Council,http://opendatacommunities.org/id/metropolitan-district-council/walsall ,WC139-193,30.06.2022,ADULT SOCIAL CARE,ABILITY HEALTHCARE LTD,01/06/2022,"1,990.80",6541-Domiciliary Care,THIRD PARTY PAYMENTS,PRIVATE CONTRACTOR,REVENUE
Walsall Council,http://opendatacommunities.org/id/metropolitan-district-council/walsall ,WC139-194,30.06.2022,ADULT SOCIAL CARE,ABILITY HEALTHCARE LTD,01/06/2022,316.00,6541-Domiciliary Care,THIRD PARTY PAYMENTS,PRIVATE CONTRACTOR,REVENUE
Walsall Council,http://opendatacommunities.org/id/metropolitan-district-council/walsall ,WC139-195,30.06.2022,ADULT SOCIAL CARE,ABILITY HEALTHCARE LTD,01/06/2022,"1,990.80",6541-Domiciliary Care,THIRD PARTY PAYMENTS,PRIVATE CONTRACTOR,REVENUE
Walsall Council,http://opendatacommunities.org/id/metropolitan-district-council/walsall ,WC139-196,30.06.2022,ADULT SOCIAL CARE,ABILITY HEALTHCARE LTD,01/06/2022,"1,303.50",6541-Domiciliary Care,THIRD PARTY PAYMENTS,PRIVATE CONTRACTOR,REVENUE
Walsall Council,http://opendatacommunities.org/id/metropolitan-district-council/walsall ,WC139-197,30.06.2022,ADULT SOCIAL CARE,ABILITY HEALTHCARE LTD,01/06/2022,"1,493.10",6541-Domiciliary Care,THIRD PARTY PAYMENTS,PRIVATE CONTRACTOR,REVENUE
Walsall Council,http://opendatacommunities.org/id/metropolitan-district-council/walsall ,WC139-198,30.06.2022,ADULT SOCIAL CARE,ABILITY HEALTHCARE LTD,01/06/2022,"1,769.60",6541-Domiciliary Care,THIRD PARTY PAYMENTS,PRIVATE CONTRACTOR,REVENUE
Walsall Council,http://opendatacommunities.org/id/metropolitan-district-council/walsall ,WC139-199,30.06.2022,ADULT SOCIAL CARE,ABILITY HEALTHCARE LTD,01/06/2022,"1,548.40",6541-Domiciliary Care,THIRD PARTY PAYMENTS,PRIVATE CONTRACTOR,REVENUE
Walsall Council,http://opendatacommunities.org/id/metropolitan-district-council/walsall ,WC139-200,30.06.2022,ADULT SOCIAL CARE,ABILITY HEALTHCARE LTD,01/06/2022,"1,769.60",6541-Domiciliary Care,THIRD PARTY PAYMENTS,PRIVATE CONTRACTOR,REVENUE
Walsall Council,http://opendatacommunities.org/id/metropolitan-district-council/walsall ,WC139-201,30.06.2022,ADULT SOCIAL CARE,ABILITY HEALTHCARE LTD,01/06/2022,832.14,6541-Domiciliary Care,THIRD PARTY PAYMENTS,PRIVATE CONTRACTOR,REVENUE
Walsall Council,http://opendatacommunities.org/id/metropolitan-district-council/walsall ,WC139-202,30.06.2022,ADULT SOCIAL CARE,ABILITY HEALTHCARE LTD,01/06/2022,"1,248.20",6541-Domiciliary Care,THIRD PARTY PAYMENTS,PRIVATE CONTRACTOR,REVENUE
Walsall Council,http://opendatacommunities.org/id/metropolitan-district-council/walsall ,WC139-203,30.06.2022,ADULT SOCIAL CARE,ABILITY HEALTHCARE LTD,01/06/2022,"1,253.56",6541-Domiciliary Care,THIRD PARTY PAYMENTS,PRIVATE CONTRACTOR,REVENUE
Walsall Council,http://opendatacommunities.org/id/metropolitan-district-council/walsall ,WC139-204,30.06.2022,ADULT SOCIAL CARE,ABILITY HEALTHCARE LTD,01/06/2022,"1,990.80",6541-Domiciliary Care,THIRD PARTY PAYMENTS,PRIVATE CONTRACTOR,REVENUE
Walsall Council,http://opendatacommunities.org/id/metropolitan-district-council/walsall ,WC139-205,30.06.2022,ADULT SOCIAL CARE,ABILITY HEALTHCARE LTD,01/06/2022,"2,780.80",6541-Domiciliary Care,THIRD PARTY PAYMENTS,PRIVATE CONTRACTOR,REVENUE
Walsall Council,http://opendatacommunities.org/id/metropolitan-district-council/walsall ,WC139-206,30.06.2022,ADULT SOCIAL CARE,ABILITY HEALTHCARE LTD,01/06/2022,"1,003.30",6541-Domiciliary Care,THIRD PARTY PAYMENTS,PRIVATE CONTRACTOR,REVENUE
Walsall Council,http://opendatacommunities.org/id/metropolitan-district-council/walsall ,WC139-207,30.06.2022,ADULT SOCIAL CARE,ABILITY HEALTHCARE LTD,01/06/2022,"1,179.92",6541-Domiciliary Care,THIRD PARTY PAYMENTS,PRIVATE CONTRACTOR,REVENUE
Walsall Council,http://opendatacommunities.org/id/metropolitan-district-council/walsall ,WC139-208,30.06.2022,ADULT SOCIAL CARE,ABILITY HEALTHCARE LTD,01/06/2022,576.70,6541-Domiciliary Care,THIRD PARTY PAYMENTS,PRIVATE CONTRACTOR,REVENUE
Walsall Council,http://opendatacommunities.org/id/metropolitan-district-council/walsall ,WC139-209,30.06.2022,ADULT SOCIAL CARE,ABILITY HEALTHCARE LTD,01/06/2022,"1,769.60",6541-Domiciliary Care,THIRD PARTY PAYMENTS,PRIVATE CONTRACTOR,REVENUE
Walsall Council,http://opendatacommunities.org/id/metropolitan-district-council/walsall ,WC139-210,30.06.2022,ADULT SOCIAL CARE,ABILITY HEALTHCARE LTD,01/06/2022,560.90,6541-Domiciliary Care,THIRD PARTY PAYMENTS,PRIVATE CONTRACTOR,REVENUE
Walsall Council,http://opendatacommunities.org/id/metropolitan-district-council/walsall ,WC139-211,30.06.2022,ADULT SOCIAL CARE,ABILITY HEALTHCARE LTD,01/06/2022,442.68,6541-Domiciliary Care,THIRD PARTY PAYMENTS,PRIVATE CONTRACTOR,REVENUE
Walsall Council,http://opendatacommunities.org/id/metropolitan-district-council/walsall ,WC139-212,30.06.2022,ADULT SOCIAL CARE,ABILITY HEALTHCARE LTD,01/06/2022,837.40,6541-Domiciliary Care,THIRD PARTY PAYMENTS,PRIVATE CONTRACTOR,REVENUE
Walsall Council,http://opendatacommunities.org/id/metropolitan-district-council/walsall ,WC139-213,30.06.2022,ADULT SOCIAL CARE,ABILITY HEALTHCARE LTD,01/06/2022,"1,738.00",6541-Domiciliary Care,THIRD PARTY PAYMENTS,PRIVATE CONTRACTOR,REVENUE
Walsall Council,http://opendatacommunities.org/id/metropolitan-district-council/walsall ,WC139-214,30.06.2022,ADULT SOCIAL CARE,ABILITY HEALTHCARE LTD,01/06/2022,"1,106.00",6541-Domiciliary Care,THIRD PARTY PAYMENTS,PRIVATE CONTRACTOR,REVENUE
Walsall Council,http://opendatacommunities.org/id/metropolitan-district-council/walsall ,WC139-215,30.06.2022,ADULT SOCIAL CARE,ABILITY HEALTHCARE LTD,29/06/2022,"1,880.20",6541-Domiciliary Care,THIRD PARTY PAYMENTS,PRIVATE CONTRACTOR,REVENUE
Walsall Council,http://opendatacommunities.org/id/metropolitan-district-council/walsall ,WC139-216,30.06.2022,ADULT SOCIAL CARE,ABILITY HEALTHCARE LTD,29/06/2022,331.80,6541-Domiciliary Care,THIRD PARTY PAYMENTS,PRIVATE CONTRACTOR,REVENUE
Walsall Council,http://opendatacommunities.org/id/metropolitan-district-council/walsall ,WC139-217,30.06.2022,ADULT SOCIAL CARE,ABILITY HEALTHCARE LTD,29/06/2022,"2,212.00",6541-Domiciliary Care,THIRD PARTY PAYMENTS,PRIVATE CONTRACTOR,REVENUE
Walsall Council,http://opendatacommunities.org/id/metropolitan-district-council/walsall ,WC139-218,30.06.2022,ADULT SOCIAL CARE,ABILITY HEALTHCARE LTD,29/06/2022,"1,106.00",6541-Domiciliary Care,THIRD PARTY PAYMENTS,PRIVATE CONTRACTOR,REVENUE
Walsall Council,http://opendatacommunities.org/id/metropolitan-district-council/walsall ,WC139-219,30.06.2022,ADULT SOCIAL CARE,ABILITY HEALTHCARE LTD,29/06/2022,"1,769.60",6541-Domiciliary Care,THIRD PARTY PAYMENTS,PRIVATE CONTRACTOR,REVENUE
Walsall Council,http://opendatacommunities.org/id/metropolitan-district-council/walsall ,WC139-220,30.06.2022,ADULT SOCIAL CARE,ABILITY HEALTHCARE LTD,29/06/2022,884.80,6541-Domiciliary Care,THIRD PARTY PAYMENTS,PRIVATE CONTRACTOR,REVENUE
Walsall Council,http://opendatacommunities.org/id/metropolitan-district-council/walsall ,WC139-221,30.06.2022,ADULT SOCIAL CARE,ABILITY HEALTHCARE LTD,29/06/2022,896.65,6541-Domiciliary Care,THIRD PARTY PAYMENTS,PRIVATE CONTRACTOR,REVENUE
Walsall Council,http://opendatacommunities.org/id/metropolitan-district-council/walsall ,WC139-222,30.06.2022,ADULT SOCIAL CARE,ABILITY HEALTHCARE LTD,29/06/2022,853.20,6541-Domiciliary Care,THIRD PARTY PAYMENTS,PRIVATE CONTRACTOR,REVENUE
Walsall Council,http://opendatacommunities.org/id/metropolitan-district-council/walsall ,WC139-223,30.06.2022,ADULT SOCIAL CARE,ABILITY HEALTHCARE LTD,29/06/2022,995.40,6541-Domiciliary Care,THIRD PARTY PAYMENTS,PRIVATE CONTRACTOR,REVENUE
Walsall Council,http://opendatacommunities.org/id/metropolitan-district-council/walsall ,WC139-224,30.06.2022,ADULT SOCIAL CARE,ABILITY HEALTHCARE LTD,29/06/2022,"1,769.60",6541-Domiciliary Care,THIRD PARTY PAYMENTS,PRIVATE CONTRACTOR,REVENUE
Walsall Council,http://opendatacommunities.org/id/metropolitan-district-council/walsall ,WC139-225,30.06.2022,ADULT SOCIAL CARE,ABILITY HEALTHCARE LTD,29/06/2022,"1,311.52",6541-Domiciliary Care,THIRD PARTY PAYMENTS,PRIVATE CONTRACTOR,REVENUE
Walsall Council,http://opendatacommunities.org/id/metropolitan-district-council/walsall ,WC139-226,30.06.2022,ADULT SOCIAL CARE,ABILITY HEALTHCARE LTD,29/06/2022,995.40,6541-Domiciliary Care,THIRD PARTY PAYMENTS,PRIVATE CONTRACTOR,REVENUE
Walsall Council,http://opendatacommunities.org/id/metropolitan-district-council/walsall ,WC139-227,30.06.2022,ADULT SOCIAL CARE,ABILITY HEALTHCARE LTD,29/06/2022,368.76,6541-Domiciliary Care,THIRD PARTY PAYMENTS,PRIVATE CONTRACTOR,REVENUE
Walsall Council,http://opendatacommunities.org/id/metropolitan-district-council/walsall ,WC139-228,30.06.2022,ADULT SOCIAL CARE,ABILITY HEALTHCARE LTD,29/06/2022,"1,990.80",6541-Domiciliary Care,THIRD PARTY PAYMENTS,PRIVATE CONTRACTOR,REVENUE
Walsall Council,http://opendatacommunities.org/id/metropolitan-district-council/walsall ,WC139-229,30.06.2022,ADULT SOCIAL CARE,ABILITY HEALTHCARE LTD,29/06/2022,"1,990.80",6541-Domiciliary Care,THIRD PARTY PAYMENTS,PRIVATE CONTRACTOR,REVENUE
Walsall Council,http://opendatacommunities.org/id/metropolitan-district-council/walsall ,WC139-230,30.06.2022,ADULT SOCIAL CARE,ABILITY HEALTHCARE LTD,29/06/2022,"1,769.60",6541-Domiciliary Care,THIRD PARTY PAYMENTS,PRIVATE CONTRACTOR,REVENUE
Walsall Council,http://opendatacommunities.org/id/metropolitan-district-council/walsall ,WC139-231,30.06.2022,ADULT SOCIAL CARE,ABILITY HEALTHCARE LTD,29/06/2022,308.10,6541-Domiciliary Care,THIRD PARTY PAYMENTS,PRIVATE CONTRACTOR,REVENUE
Walsall Council,http://opendatacommunities.org/id/metropolitan-district-council/walsall ,WC139-232,30.06.2022,ADULT SOCIAL CARE,ABILITY HEALTHCARE LTD,29/06/2022,"2,243.60",6541-Domiciliary Care,THIRD PARTY PAYMENTS,PRIVATE CONTRACTOR,REVENUE
Walsall Council,http://opendatacommunities.org/id/metropolitan-district-council/walsall ,WC139-233,30.06.2022,ADULT SOCIAL CARE,ABILITY HEALTHCARE LTD,29/06/2022,"1,453.60",6541-Domiciliary Care,THIRD PARTY PAYMENTS,PRIVATE CONTRACTOR,REVENUE
Walsall Council,http://opendatacommunities.org/id/metropolitan-district-council/walsall ,WC139-234,30.06.2022,ADULT SOCIAL CARE,ABILITY HEALTHCARE LTD,29/06/2022,"1,769.60",6541-Domiciliary Care,THIRD PARTY PAYMENTS,PRIVATE CONTRACTOR,REVENUE
Walsall Council,http://opendatacommunities.org/id/metropolitan-district-council/walsall ,WC139-235,30.06.2022,ADULT SOCIAL CARE,ABILITY HEALTHCARE LTD,29/06/2022,"1,990.80",6541-Domiciliary Care,THIRD PARTY PAYMENTS,PRIVATE CONTRACTOR,REVENUE
Walsall Council,http://opendatacommunities.org/id/metropolitan-district-council/walsall ,WC139-236,30.06.2022,ADULT SOCIAL CARE,ABILITY HEALTHCARE LTD,29/06/2022,"1,990.80",6541-Domiciliary Care,THIRD PARTY PAYMENTS,PRIVATE CONTRACTOR,REVENUE
Walsall Council,http://opendatacommunities.org/id/metropolitan-district-council/walsall ,WC139-237,30.06.2022,ADULT SOCIAL CARE,ABILITY HEALTHCARE LTD,29/06/2022,"1,990.80",6541-Domiciliary Care,THIRD PARTY PAYMENTS,PRIVATE CONTRACTOR,REVENUE
Walsall Council,http://opendatacommunities.org/id/metropolitan-district-council/walsall ,WC139-238,30.06.2022,ADULT SOCIAL CARE,ABILITY HEALTHCARE LTD,29/06/2022,"1,327.20",6541-Domiciliary Care,THIRD PARTY PAYMENTS,PRIVATE CONTRACTOR,REVENUE
Walsall Council,http://opendatacommunities.org/id/metropolitan-district-council/walsall ,WC139-239,30.06.2022,ADULT SOCIAL CARE,ABILITY HEALTHCARE LTD,29/06/2022,"1,990.80",6541-Domiciliary Care,THIRD PARTY PAYMENTS,PRIVATE CONTRACTOR,REVENUE
Walsall Council,http://opendatacommunities.org/id/metropolitan-district-council/walsall ,WC139-240,30.06.2022,ADULT SOCIAL CARE,ABILITY HEALTHCARE LTD,29/06/2022,"1,769.60",6541-Domiciliary Care,THIRD PARTY PAYMENTS,PRIVATE CONTRACTOR,REVENUE
Walsall Council,http://opendatacommunities.org/id/metropolitan-district-council/walsall ,WC139-241,30.06.2022,ADULT SOCIAL CARE,ABILITY HEALTHCARE LTD,29/06/2022,774.20,6541-Domiciliary Care,THIRD PARTY PAYMENTS,PRIVATE CONTRACTOR,REVENUE
Walsall Council,http://opendatacommunities.org/id/metropolitan-district-council/walsall ,WC139-242,30.06.2022,ADULT SOCIAL CARE,ABILITY HEALTHCARE LTD,29/06/2022,"1,990.80",6541-Domiciliary Care,THIRD PARTY PAYMENTS,PRIVATE CONTRACTOR,REVENUE
Walsall Council,http://opendatacommunities.org/id/metropolitan-district-council/walsall ,WC139-243,30.06.2022,ADULT SOCIAL CARE,ABILITY HEALTHCARE LTD,29/06/2022,"1,548.40",6541-Domiciliary Care,THIRD PARTY PAYMENTS,PRIVATE CONTRACTOR,REVENUE
Walsall Council,http://opendatacommunities.org/id/metropolitan-district-council/walsall ,WC139-244,30.06.2022,ADULT SOCIAL CARE,ABILITY HEALTHCARE LTD,29/06/2022,671.50,6541-Domiciliary Care,THIRD PARTY PAYMENTS,PRIVATE CONTRACTOR,REVENUE
Walsall Council,http://opendatacommunities.org/id/metropolitan-district-council/walsall ,WC139-245,30.06.2022,ADULT SOCIAL CARE,ABILITY HEALTHCARE LTD,29/06/2022,"1,769.60",6541-Domiciliary Care,THIRD PARTY PAYMENTS,PRIVATE CONTRACTOR,REVENUE
Walsall Council,http://opendatacommunities.org/id/metropolitan-district-council/walsall ,WC139-246,30.06.2022,ADULT SOCIAL CARE,ABILITY HEALTHCARE LTD,29/06/2022,884.80,6541-Domiciliary Care,THIRD PARTY PAYMENTS,PRIVATE CONTRACTOR,REVENUE
Walsall Council,http://opendatacommunities.org/id/metropolitan-district-council/walsall ,WC139-247,30.06.2022,ADULT SOCIAL CARE,ABILITY HEALTHCARE LTD,29/06/2022,"1,253.56",6541-Domiciliary Care,THIRD PARTY PAYMENTS,PRIVATE CONTRACTOR,REVENUE
Walsall Council,http://opendatacommunities.org/id/metropolitan-district-council/walsall ,WC139-248,30.06.2022,ADULT SOCIAL CARE,ABILITY HEALTHCARE LTD,29/06/2022,758.40,6541-Domiciliary Care,THIRD PARTY PAYMENTS,PRIVATE CONTRACTOR,REVENUE
Walsall Council,http://opendatacommunities.org/id/metropolitan-district-council/walsall ,WC139-249,30.06.2022,ADULT SOCIAL CARE,ABILITY HEALTHCARE LTD,29/06/2022,"2,780.80",6541-Domiciliary Care,THIRD PARTY PAYMENTS,PRIVATE CONTRACTOR,REVENUE
Walsall Council,http://opendatacommunities.org/id/metropolitan-district-council/walsall ,WC139-250,30.06.2022,ADULT SOCIAL CARE,ABILITY HEALTHCARE LTD,29/06/2022,"1,279.80",6541-Domiciliary Care,THIRD PARTY PAYMENTS,PRIVATE CONTRACTOR,REVENUE
Walsall Council,http://opendatacommunities.org/id/metropolitan-district-council/walsall ,WC139-251,30.06.2022,ADULT SOCIAL CARE,ABILITY HEALTHCARE LTD,29/06/2022,442.68,6541-Domiciliary Care,THIRD PARTY PAYMENTS,PRIVATE CONTRACTOR,REVENUE
Walsall Council,http://opendatacommunities.org/id/metropolitan-district-council/walsall ,WC139-252,30.06.2022,ADULT SOCIAL CARE,ABILITY HEALTHCARE LTD,29/06/2022,"1,179.92",6541-Domiciliary Care,THIRD PARTY PAYMENTS,PRIVATE CONTRACTOR,REVENUE
Walsall Council,http://opendatacommunities.org/id/metropolitan-district-council/walsall ,WC139-253,30.06.2022,ADULT SOCIAL CARE,ABILITY HEALTHCARE LTD,29/06/2022,"1,769.60",6541-Domiciliary Care,THIRD PARTY PAYMENTS,PRIVATE CONTRACTOR,REVENUE
Walsall Council,http://opendatacommunities.org/id/metropolitan-district-council/walsall ,WC139-254,30.06.2022,ADULT SOCIAL CARE,ABILITY HEALTHCARE LTD,29/06/2022,521.40,6541-Domiciliary Care,THIRD PARTY PAYMENTS,PRIVATE CONTRACTOR,REVENUE
Walsall Council,http://opendatacommunities.org/id/metropolitan-district-council/walsall ,WC139-255,30.06.2022,ADULT SOCIAL CARE,ABILITY HEALTHCARE LTD,29/06/2022,"1,106.00",6541-Domiciliary Care,THIRD PARTY PAYMENTS,PRIVATE CONTRACTOR,REVENUE
Walsall Council,http://opendatacommunities.org/id/metropolitan-district-council/walsall ,WC139-256,30.06.2022,ADULT SOCIAL CARE,ABILITY HEALTHCARE LTD,29/06/2022,"1,137.60",6541-Domiciliary Care,THIRD PARTY PAYMENTS,PRIVATE CONTRACTOR,REVENUE
Walsall Council,http://opendatacommunities.org/id/metropolitan-district-council/walsall ,WC139-257,30.06.2022,ADULT SOCIAL CARE,ABILITY HEALTHCARE LTD,29/06/2022,"1,701.20",6541-Domiciliary Care,THIRD PARTY PAYMENTS,PRIVATE CONTRACTOR,REVENUE
Walsall Council,http://opendatacommunities.org/id/metropolitan-district-council/walsall ,WC139-258,30.06.2022,ADULT SOCIAL CARE,ABILITY HEALTHCARE LTD,29/06/2022,"1,622.32",6541-Domiciliary Care,THIRD PARTY PAYMENTS,PRIVATE CONTRACTOR,REVENUE
Walsall Council,http://opendatacommunities.org/id/metropolitan-district-council/walsall ,WC139-259,30.06.2022,ADULT SOCIAL CARE,ABILITY HEALTHCARE LTD,28/06/2022,529.30,6541-Domiciliary Care,THIRD PARTY PAYMENTS,PRIVATE CONTRACTOR,REVENUE
Walsall Council,http://opendatacommunities.org/id/metropolitan-district-council/walsall ,WC139-260,30.06.2022,ADULT SOCIAL CARE,ABILITY HEALTHCARE LTD,28/06/2022,316.00,6541-Domiciliary Care,THIRD PARTY PAYMENTS,PRIVATE CONTRACTOR,REVENUE
Walsall Council,http://opendatacommunities.org/id/metropolitan-district-council/walsall ,WC139-261,30.06.2022,ADULT SOCIAL CARE,ABILITY HEALTHCARE LTD,29/06/2022,363.40,6541-Domiciliary Care,THIRD PARTY PAYMENTS,PRIVATE CONTRACTOR,REVENUE
Walsall Council,http://opendatacommunities.org/id/metropolitan-district-council/walsall ,WC139-262,30.06.2022,"ECONOMY, ENVIRONMENT & COMMUNITIES",ABLE INVESTIGATIONS & ENFORCEMENTS LTD,30/06/2022,"1,005.00",6440-Professional Fees & Services,SUPPLIES & SERVICES,SERVICES,REVENUE
Walsall Council,http://opendatacommunities.org/id/metropolitan-district-council/walsall ,WC139-263,30.06.2022,CHILDRENS,ABLEWELL CARS,21/06/2022,"1,248.00",6241-Hire of Vehicle with Driver,TRANSPORT,DIRECT TRANSPORT COSTS,REVENUE
Walsall Council,http://opendatacommunities.org/id/metropolitan-district-council/walsall ,WC139-264,30.06.2022,CHILDRENS,ABLEWELL CARS,21/06/2022,"1,482.00",6241-Hire of Vehicle with Driver,TRANSPORT,DIRECT TRANSPORT COSTS,REVENUE
Walsall Council,http://opendatacommunities.org/id/metropolitan-district-council/walsall ,WC139-265,30.06.2022,CHILDRENS,ABLEWELL CARS,21/06/2022,992.70,6241-Hire of Vehicle with Driver,TRANSPORT,DIRECT TRANSPORT COSTS,REVENUE
Walsall Council,http://opendatacommunities.org/id/metropolitan-district-council/walsall ,WC139-266,30.06.2022,CHILDRENS,ABLEWELL CARS,21/06/2022,675.00,6241-Hire of Vehicle with Driver,TRANSPORT,DIRECT TRANSPORT COSTS,REVENUE
Walsall Council,http://opendatacommunities.org/id/metropolitan-district-council/walsall ,WC139-267,30.06.2022,CHILDRENS,ABLEWELL CARS,21/06/2022,858.60,6241-Hire of Vehicle with Driver,TRANSPORT,DIRECT TRANSPORT COSTS,REVENUE
Walsall Council,http://opendatacommunities.org/id/metropolitan-district-council/walsall ,WC139-268,30.06.2022,CHILDRENS,ABLEWELL CARS,21/06/2022,"2,190.00",6241-Hire of Vehicle with Driver,TRANSPORT,DIRECT TRANSPORT COSTS,REVENUE
Walsall Council,http://opendatacommunities.org/id/metropolitan-district-council/walsall ,WC139-269,30.06.2022,CHILDRENS,ABS TAXIS (ALDRIDGE),21/06/2022,"1,360.50",6241-Hire of Vehicle with Driver,TRANSPORT,DIRECT TRANSPORT COSTS,REVENUE
Walsall Council,http://opendatacommunities.org/id/metropolitan-district-council/walsall ,WC139-270,30.06.2022,CHILDRENS,ABS TAXIS (ALDRIDGE),21/06/2022,"1,480.50",6241-Hire of Vehicle with Driver,TRANSPORT,DIRECT TRANSPORT COSTS,REVENUE
Walsall Council,http://opendatacommunities.org/id/metropolitan-district-council/walsall ,WC139-271,30.06.2022,CHILDRENS,ABS TAXIS (ALDRIDGE),21/06/2022,"1,340.80",6241-Hire of Vehicle with Driver,TRANSPORT,DIRECT TRANSPORT COSTS,REVENUE
Walsall Council,http://opendatacommunities.org/id/metropolitan-district-council/walsall ,WC139-272,30.06.2022,CHILDRENS,ABU BAKR NURSERY,14/06/2022,640.00,1184-Transfer Payments-Other Schoolchildren/Student Related Items,TRANSFER PAYMENTS,SCHOOLCHILDREN/STUDENTS,REVENUE
Walsall Council,http://opendatacommunities.org/id/metropolitan-district-council/walsall ,WC139-273,30.06.2022,CHILDRENS,ABU BAKR NURSERY,14/06/2022,640.00,1184-Transfer Payments-Other Schoolchildren/Student Related Items,TRANSFER PAYMENTS,SCHOOLCHILDREN/STUDENTS,REVENUE
Walsall Council,http://opendatacommunities.org/id/metropolitan-district-council/walsall ,WC139-274,30.06.2022,CHILDRENS,ACCALIA CARE SERVICES LTD,14/06/2022,"14,222.86",6223-External Residential Care-Oth Agency Provision,THIRD PARTY PAYMENTS,PRIVATE CONTRACTOR,REVENUE
Walsall Council,http://opendatacommunities.org/id/metropolitan-district-council/walsall ,WC139-275,30.06.2022,ADULT SOCIAL CARE,ACCESS UK LTD ,14/06/2022,"18,315.00",6551-Professional Fees & Services,SUPPLIES & SERVICES,SERVICES,REVENUE
Walsall Council,http://opendatacommunities.org/id/metropolitan-district-council/walsall ,WC139-276,30.06.2022,ADULT SOCIAL CARE,ACCESS UK LTD ,22/06/2022,"18,315.00",6551-Professional Fees & Services,SUPPLIES & SERVICES,SERVICES,REVENUE
Walsall Council,http://opendatacommunities.org/id/metropolitan-district-council/walsall ,WC139-277,30.06.2022,ADULT SOCIAL CARE,ACCESS UK LTD ,28/06/2022,"10,000.00",6551-Professional Fees & Services,SUPPLIES & SERVICES,SERVICES,REVENUE
Walsall Council,http://opendatacommunities.org/id/metropolitan-district-council/walsall ,WC139-278,30.06.2022,ADULT SOCIAL CARE,ACCESS UK LTD ,28/06/2022,"47,500.00",6551-Professional Fees & Services,SUPPLIES & SERVICES,SERVICES,REVENUE
Walsall Council,http://opendatacommunities.org/id/metropolitan-district-council/walsall ,WC139-279,30.06.2022,ADULT SOCIAL CARE,ACCOMPLISH GROUP LTD,07/06/2022,"7,912.44",6541-Residential,THIRD PARTY PAYMENTS,PRIVATE CONTRACTOR,REVENUE
Walsall Council,http://opendatacommunities.org/id/metropolitan-district-council/walsall ,WC139-280,30.06.2022,ADULT SOCIAL CARE,ACCORD HOUSING ASSOCIATION LIMITED - HOBS MEADOW,07/06/2022,"4,706.24",6541-Residential,THIRD PARTY PAYMENTS,PRIVATE CONTRACTOR,REVENUE
Walsall Council,http://opendatacommunities.org/id/metropolitan-district-council/walsall ,WC139-281,30.06.2022,ADULT SOCIAL CARE,ACCORD HOUSING ASSOCIATION LIMITED - HOBS MEADOW,07/06/2022,"4,776.84",6541-Residential,THIRD PARTY PAYMENTS,PRIVATE CONTRACTOR,REVENUE
Walsall Council,http://opendatacommunities.org/id/metropolitan-district-council/walsall ,WC139-282,30.06.2022,ADULT SOCIAL CARE,ACCORD HOUSING ASSOCIATION LIMITED - HOBS MEADOW,07/06/2022,"4,776.84",6541-Residential,THIRD PARTY PAYMENTS,PRIVATE CONTRACTOR,REVENUE
Walsall Council,http://opendatacommunities.org/id/metropolitan-district-council/walsall ,WC139-283,30.06.2022,ADULT SOCIAL CARE,ACCORD HOUSING ASSOCIATION LIMITED - HOBS MEADOW,07/06/2022,"4,776.84",6541-Residential,THIRD PARTY PAYMENTS,PRIVATE CONTRACTOR,REVENUE
Walsall Council,http://opendatacommunities.org/id/metropolitan-district-council/walsall ,WC139-284,30.06.2022,CHILDRENS,ACE CARS & MINIBUSES LTD,21/06/2022,"2,041.50",6241-Hire of Vehicle with Driver,TRANSPORT,DIRECT TRANSPORT COSTS,REVENUE
Walsall Council,http://opendatacommunities.org/id/metropolitan-district-council/walsall ,WC139-285,30.06.2022,CHILDRENS,ACE CARS & MINIBUSES LTD,21/06/2022,"2,041.50",6241-Hire of Vehicle with Driver,TRANSPORT,DIRECT TRANSPORT COSTS,REVENUE
Walsall Council,http://opendatacommunities.org/id/metropolitan-district-council/walsall ,WC139-286,30.06.2022,CHILDRENS,ACE CARS & MINIBUSES LTD,21/06/2022,"2,041.50",6241-Hire of Vehicle with Driver,TRANSPORT,DIRECT TRANSPORT COSTS,REVENUE
Walsall Council,http://opendatacommunities.org/id/metropolitan-district-council/walsall ,WC139-287,30.06.2022,CHILDRENS,ACE CARS & MINIBUSES LTD,21/06/2022,"1,605.00",6241-Hire of Vehicle with Driver,TRANSPORT,DIRECT TRANSPORT COSTS,REVENUE
Walsall Council,http://opendatacommunities.org/id/metropolitan-district-council/walsall ,WC139-288,30.06.2022,CHILDRENS,ACE CARS & MINIBUSES LTD,21/06/2022,"1,605.00",6241-Hire of Vehicle with Driver,TRANSPORT,DIRECT TRANSPORT COSTS,REVENUE
Walsall Council,http://opendatacommunities.org/id/metropolitan-district-council/walsall ,WC139-289,30.06.2022,CHILDRENS,ACE CARS & MINIBUSES LTD,21/06/2022,"1,770.00",6241-Hire of Vehicle with Driver,TRANSPORT,DIRECT TRANSPORT COSTS,REVENUE
Walsall Council,http://opendatacommunities.org/id/metropolitan-district-council/walsall ,WC139-290,30.06.2022,CHILDRENS,ACE CARS & MINIBUSES LTD,21/06/2022,"1,792.50",6241-Hire of Vehicle with Driver,TRANSPORT,DIRECT TRANSPORT COSTS,REVENUE
Walsall Council,http://opendatacommunities.org/id/metropolitan-district-council/walsall ,WC139-291,30.06.2022,CHILDRENS,ACE CARS & MINIBUSES LTD,21/06/2022,"2,041.50",6241-Hire of Vehicle with Driver,TRANSPORT,DIRECT TRANSPORT COSTS,REVENUE
Walsall Council,http://opendatacommunities.org/id/metropolitan-district-council/walsall ,WC139-292,30.06.2022,CHILDRENS,ACE CARS & MINIBUSES LTD,21/06/2022,"2,041.50",6241-Hire of Vehicle with Driver,TRANSPORT,DIRECT TRANSPORT COSTS,REVENUE
Walsall Council,http://opendatacommunities.org/id/metropolitan-district-council/walsall ,WC139-293,30.06.2022,CHILDRENS,ACE CARS & MINIBUSES LTD,21/06/2022,"1,605.00",6241-Hire of Vehicle with Driver,TRANSPORT,DIRECT TRANSPORT COSTS,REVENUE
Walsall Council,http://opendatacommunities.org/id/metropolitan-district-council/walsall ,WC139-294,30.06.2022,CHILDRENS,ACE CARS & MINIBUSES LTD,21/06/2022,"1,605.00",6241-Hire of Vehicle with Driver,TRANSPORT,DIRECT TRANSPORT COSTS,REVENUE
Walsall Council,http://opendatacommunities.org/id/metropolitan-district-council/walsall ,WC139-295,30.06.2022,CHILDRENS,ACE CARS & MINIBUSES LTD,21/06/2022,"1,710.00",6241-Hire of Vehicle with Driver,TRANSPORT,DIRECT TRANSPORT COSTS,REVENUE
Walsall Council,http://opendatacommunities.org/id/metropolitan-district-council/walsall ,WC139-296,30.06.2022,CHILDRENS,ACE CARS & MINIBUSES LTD,21/06/2022,"1,792.50",6241-Hire of Vehicle with Driver,TRANSPORT,DIRECT TRANSPORT COSTS,REVENUE
Walsall Council,http://opendatacommunities.org/id/metropolitan-district-council/walsall ,WC139-297,30.06.2022,CHILDRENS,ACE CARS & MINIBUSES LTD,21/06/2022,"1,710.00",6241-Hire of Vehicle with Driver,TRANSPORT,DIRECT TRANSPORT COSTS,REVENUE
Walsall Council,http://opendatacommunities.org/id/metropolitan-district-council/walsall ,WC139-298,30.06.2022,CHILDRENS,ACE CARS & MINIBUSES LTD,21/06/2022,"1,770.00",6241-Hire of Vehicle with Driver,TRANSPORT,DIRECT TRANSPORT COSTS,REVENUE
Walsall Council,http://opendatacommunities.org/id/metropolitan-district-council/walsall ,WC139-299,30.06.2022,CHILDRENS,ACE CARS & MINIBUSES LTD,21/06/2022,"2,017.80",6241-Hire of Vehicle with Driver,TRANSPORT,DIRECT TRANSPORT COSTS,REVENUE
Walsall Council,http://opendatacommunities.org/id/metropolitan-district-council/walsall ,WC139-300,30.06.2022,CHILDRENS,ACE CARS & MINIBUSES LTD,21/06/2022,"1,876.20",6241-Hire of Vehicle with Driver,TRANSPORT,DIRECT TRANSPORT COSTS,REVENUE
Walsall Council,http://opendatacommunities.org/id/metropolitan-district-council/walsall ,WC139-301,30.06.2022,CHILDRENS,ACE CARS & MINIBUSES LTD,21/06/2022,"1,770.00",6241-Hire of Vehicle with Driver,TRANSPORT,DIRECT TRANSPORT COSTS,REVENUE
Walsall Council,http://opendatacommunities.org/id/metropolitan-district-council/walsall ,WC139-302,30.06.2022,CHILDRENS,ACE CARS & MINIBUSES LTD,21/06/2022,"1,710.00",6241-Hire of Vehicle with Driver,TRANSPORT,DIRECT TRANSPORT COSTS,REVENUE
Walsall Council,http://opendatacommunities.org/id/metropolitan-district-council/walsall ,WC139-303,30.06.2022,CHILDRENS,ACE CARS & MINIBUSES LTD,21/06/2022,"1,792.50",6241-Hire of Vehicle with Driver,TRANSPORT,DIRECT TRANSPORT COSTS,REVENUE
Walsall Council,http://opendatacommunities.org/id/metropolitan-district-council/walsall ,WC139-304,30.06.2022,CHILDRENS,ACE CARS & MINIBUSES LTD,21/06/2022,"1,605.00",6241-Hire of Vehicle with Driver,TRANSPORT,DIRECT TRANSPORT COSTS,REVENUE
Walsall Council,http://opendatacommunities.org/id/metropolitan-district-council/walsall ,WC139-305,30.06.2022,CHILDRENS,ACE CARS & MINIBUSES LTD,21/06/2022,"1,605.00",6241-Hire of Vehicle with Driver,TRANSPORT,DIRECT TRANSPORT COSTS,REVENUE
Walsall Council,http://opendatacommunities.org/id/metropolitan-district-council/walsall ,WC139-306,30.06.2022,CHILDRENS,ACE CARS & MINIBUSES LTD,21/06/2022,"2,383.50",6241-Hire of Vehicle with Driver,TRANSPORT,DIRECT TRANSPORT COSTS,REVENUE
Walsall Council,http://opendatacommunities.org/id/metropolitan-district-council/walsall ,WC139-307,30.06.2022,CHILDRENS,ACE CARS & MINIBUSES LTD,21/06/2022,"1,792.50",6241-Hire of Vehicle with Driver,TRANSPORT,DIRECT TRANSPORT COSTS,REVENUE
Walsall Council,http://opendatacommunities.org/id/metropolitan-district-council/walsall ,WC139-308,30.06.2022,CHILDRENS,ACE CARS & MINIBUSES LTD,21/06/2022,"1,792.50",6241-Hire of Vehicle with Driver,TRANSPORT,DIRECT TRANSPORT COSTS,REVENUE
Walsall Council,http://opendatacommunities.org/id/metropolitan-district-council/walsall ,WC139-309,30.06.2022,CHILDRENS,ACE CARS & MINIBUSES LTD,21/06/2022,"1,792.50",6241-Hire of Vehicle with Driver,TRANSPORT,DIRECT TRANSPORT COSTS,REVENUE
Walsall Council,http://opendatacommunities.org/id/metropolitan-district-council/walsall ,WC139-310,30.06.2022,CHILDRENS,ACE CARS & MINIBUSES LTD,21/06/2022,"2,041.50",6241-Hire of Vehicle with Driver,TRANSPORT,DIRECT TRANSPORT COSTS,REVENUE
Walsall Council,http://opendatacommunities.org/id/metropolitan-district-council/walsall ,WC139-311,30.06.2022,CHILDRENS,ACE CARS & MINIBUSES LTD,21/06/2022,"2,041.50",6241-Hire of Vehicle with Driver,TRANSPORT,DIRECT TRANSPORT COSTS,REVENUE
Walsall Council,http://opendatacommunities.org/id/metropolitan-district-council/walsall ,WC139-312,30.06.2022,CHILDRENS,ACE CARS & MINIBUSES LTD,21/06/2022,"2,790.00",6241-Hire of Vehicle with Driver,TRANSPORT,DIRECT TRANSPORT COSTS,REVENUE
Walsall Council,http://opendatacommunities.org/id/metropolitan-district-council/walsall ,WC139-313,30.06.2022,CHILDRENS,ACE CARS & MINIBUSES LTD,21/06/2022,"1,605.00",6241-Hire of Vehicle with Driver,TRANSPORT,DIRECT TRANSPORT COSTS,REVENUE
Walsall Council,http://opendatacommunities.org/id/metropolitan-district-council/walsall ,WC139-314,30.06.2022,CHILDRENS,ACE CARS & MINIBUSES LTD,21/06/2022,"1,770.00",6241-Hire of Vehicle with Driver,TRANSPORT,DIRECT TRANSPORT COSTS,REVENUE
Walsall Council,http://opendatacommunities.org/id/metropolitan-district-council/walsall ,WC139-315,30.06.2022,CHILDRENS,ACE CARS & MINIBUSES LTD,21/06/2022,"1,770.00",6241-Hire of Vehicle with Driver,TRANSPORT,DIRECT TRANSPORT COSTS,REVENUE
Walsall Council,http://opendatacommunities.org/id/metropolitan-district-council/walsall ,WC139-316,30.06.2022,CHILDRENS,ACE CARS & MINIBUSES LTD,21/06/2022,"1,710.00",6241-Hire of Vehicle with Driver,TRANSPORT,DIRECT TRANSPORT COSTS,REVENUE
Walsall Council,http://opendatacommunities.org/id/metropolitan-district-council/walsall ,WC139-317,30.06.2022,CHILDRENS,ACE CARS & MINIBUSES LTD,21/06/2022,623.04,6241-Hire of Vehicle with Driver,TRANSPORT,DIRECT TRANSPORT COSTS,REVENUE
Walsall Council,http://opendatacommunities.org/id/metropolitan-district-council/walsall ,WC139-318,30.06.2022,CHILDRENS,ACE CARS & MINIBUSES LTD,21/06/2022,"1,605.00",6241-Hire of Vehicle with Driver,TRANSPORT,DIRECT TRANSPORT COSTS,REVENUE
Walsall Council,http://opendatacommunities.org/id/metropolitan-district-council/walsall ,WC139-319,30.06.2022,CHILDRENS,ACE CARS & MINIBUSES LTD,21/06/2022,"3,186.00",6241-Hire of Vehicle with Driver,TRANSPORT,DIRECT TRANSPORT COSTS,REVENUE
Walsall Council,http://opendatacommunities.org/id/metropolitan-district-council/walsall ,WC139-320,30.06.2022,CHILDRENS,ACE CARS & MINIBUSES LTD,21/06/2022,"1,605.00",6241-Hire of Vehicle with Driver,TRANSPORT,DIRECT TRANSPORT COSTS,REVENUE
Walsall Council,http://opendatacommunities.org/id/metropolitan-district-council/walsall ,WC139-321,30.06.2022,CHILDRENS,ACE CARS & MINIBUSES LTD,21/06/2022,"2,041.50",6241-Hire of Vehicle with Driver,TRANSPORT,DIRECT TRANSPORT COSTS,REVENUE
Walsall Council,http://opendatacommunities.org/id/metropolitan-district-council/walsall ,WC139-322,30.06.2022,ADULT SOCIAL CARE,ACEPAY LTD (COTTAGE NUR HOME),07/06/2022,"2,456.24",6541-Nursing,THIRD PARTY PAYMENTS,PRIVATE CONTRACTOR,REVENUE
Walsall Council,http://opendatacommunities.org/id/metropolitan-district-council/walsall ,WC139-323,30.06.2022,ADULT SOCIAL CARE,ACEPAY LTD (COTTAGE NUR HOME),07/06/2022,"2,366.04",6541-Residential EMI,THIRD PARTY PAYMENTS,PRIVATE CONTRACTOR,REVENUE
Walsall Council,http://opendatacommunities.org/id/metropolitan-district-council/walsall ,WC139-324,30.06.2022,ADULT SOCIAL CARE,ACEPAY LTD (COTTAGE NUR HOME),07/06/2022,"2,456.24",6541-Nursing,THIRD PARTY PAYMENTS,PRIVATE CONTRACTOR,REVENUE
Walsall Council,http://opendatacommunities.org/id/metropolitan-district-council/walsall ,WC139-325,30.06.2022,ADULT SOCIAL CARE,ACEPAY LTD (COTTAGE NUR HOME),07/06/2022,"2,456.24",6541-Nursing,THIRD PARTY PAYMENTS,PRIVATE CONTRACTOR,REVENUE
Walsall Council,http://opendatacommunities.org/id/metropolitan-district-council/walsall ,WC139-326,30.06.2022,ADULT SOCIAL CARE,ACEPAY LTD (COTTAGE NUR HOME),07/06/2022,"2,656.24",6541-Nursing,THIRD PARTY PAYMENTS,PRIVATE CONTRACTOR,REVENUE
Walsall Council,http://opendatacommunities.org/id/metropolitan-district-council/walsall ,WC139-327,30.06.2022,ADULT SOCIAL CARE,ACEPAY LTD (COTTAGE NUR HOME),07/06/2022,"2,456.24",6541-Nursing,THIRD PARTY PAYMENTS,PRIVATE CONTRACTOR,REVENUE
Walsall Council,http://opendatacommunities.org/id/metropolitan-district-council/walsall ,WC139-328,30.06.2022,ADULT SOCIAL CARE,ACEPAY LTD (COTTAGE NUR HOME),07/06/2022,"2,456.24",6541-Nursing,THIRD PARTY PAYMENTS,PRIVATE CONTRACTOR,REVENUE
Walsall Council,http://opendatacommunities.org/id/metropolitan-district-council/walsall ,WC139-329,30.06.2022,ADULT SOCIAL CARE,ACEPAY LTD (COTTAGE NUR HOME),07/06/2022,"2,366.04",6541-Residential EMI,THIRD PARTY PAYMENTS,PRIVATE CONTRACTOR,REVENUE
Walsall Council,http://opendatacommunities.org/id/metropolitan-district-council/walsall ,WC139-330,30.06.2022,ADULT SOCIAL CARE,ACEPAY LTD (COTTAGE NUR HOME),07/06/2022,"2,095.40",6541-Residential,THIRD PARTY PAYMENTS,PRIVATE CONTRACTOR,REVENUE
Walsall Council,http://opendatacommunities.org/id/metropolitan-district-council/walsall ,WC139-331,30.06.2022,ADULT SOCIAL CARE,ACEPAY LTD (COTTAGE NUR HOME),07/06/2022,"2,366.04",6541-Residential EMI,THIRD PARTY PAYMENTS,PRIVATE CONTRACTOR,REVENUE
Walsall Council,http://opendatacommunities.org/id/metropolitan-district-council/walsall ,WC139-332,30.06.2022,ADULT SOCIAL CARE,ACEPAY LTD (COTTAGE NUR HOME),07/06/2022,"2,763.80",6541-Nursing EMI,THIRD PARTY PAYMENTS,PRIVATE CONTRACTOR,REVENUE
Walsall Council,http://opendatacommunities.org/id/metropolitan-district-council/walsall ,WC139-333,30.06.2022,ADULT SOCIAL CARE,ACEPAY LTD (COTTAGE NUR HOME),07/06/2022,"2,763.80",6541-Nursing EMI,THIRD PARTY PAYMENTS,PRIVATE CONTRACTOR,REVENUE
Walsall Council,http://opendatacommunities.org/id/metropolitan-district-council/walsall ,WC139-334,30.06.2022,ADULT SOCIAL CARE,ACEPAY LTD (COTTAGE NUR HOME),07/06/2022,"2,456.24",6541-Nursing,THIRD PARTY PAYMENTS,PRIVATE CONTRACTOR,REVENUE
Walsall Council,http://opendatacommunities.org/id/metropolitan-district-council/walsall ,WC139-335,30.06.2022,ADULT SOCIAL CARE,ACEPAY LTD (COTTAGE NUR HOME),07/06/2022,"2,456.24",6541-Nursing,THIRD PARTY PAYMENTS,PRIVATE CONTRACTOR,REVENUE
Walsall Council,http://opendatacommunities.org/id/metropolitan-district-council/walsall ,WC139-336,30.06.2022,ADULT SOCIAL CARE,ACEPAY LTD (COTTAGE NUR HOME),07/06/2022,"2,095.40",6541-Residential,THIRD PARTY PAYMENTS,PRIVATE CONTRACTOR,REVENUE
Walsall Council,http://opendatacommunities.org/id/metropolitan-district-council/walsall ,WC139-337,30.06.2022,ADULT SOCIAL CARE,ACEPAY LTD (COTTAGE NUR HOME),07/06/2022,"1,315.84",6541-Nursing,THIRD PARTY PAYMENTS,PRIVATE CONTRACTOR,REVENUE
Walsall Council,http://opendatacommunities.org/id/metropolitan-district-council/walsall ,WC139-338,30.06.2022,ADULT SOCIAL CARE,ACEPAY LTD (COTTAGE NUR HOME),07/06/2022,"2,763.80",6541-Nursing EMI,THIRD PARTY PAYMENTS,PRIVATE CONTRACTOR,REVENUE
Walsall Council,http://opendatacommunities.org/id/metropolitan-district-council/walsall ,WC139-339,30.06.2022,ADULT SOCIAL CARE,ACEPAY LTD (COTTAGE NUR HOME),07/06/2022,"2,456.24",6541-Nursing,THIRD PARTY PAYMENTS,PRIVATE CONTRACTOR,REVENUE
Walsall Council,http://opendatacommunities.org/id/metropolitan-district-council/walsall ,WC139-340,30.06.2022,ADULT SOCIAL CARE,ACEPAY LTD (COTTAGE NUR HOME),07/06/2022,"2,456.24",6541-Nursing,THIRD PARTY PAYMENTS,PRIVATE CONTRACTOR,REVENUE
Walsall Council,http://opendatacommunities.org/id/metropolitan-district-council/walsall ,WC139-341,30.06.2022,ADULT SOCIAL CARE,ACEPAY LTD (COTTAGE NUR HOME),17/06/2022,368.65,6554-Professional Services-Priv Contractor & Other Agencies,THIRD PARTY PAYMENTS,PRIVATE CONTRACTOR,REVENUE
Walsall Council,http://opendatacommunities.org/id/metropolitan-district-council/walsall ,WC139-342,30.06.2022,CHILDRENS,ACORN CARE & EDUCATION LTD (SALES),14/06/2022,"13,952.00",6223-External Residential Care-Oth Agency Provision,THIRD PARTY PAYMENTS,PRIVATE CONTRACTOR,REVENUE
Walsall Council,http://opendatacommunities.org/id/metropolitan-district-council/walsall ,WC139-343,30.06.2022,CHILDRENS,ACORN FOSTERING SERVICES LTD,14/06/2022,"3,216.00",6223-Independent Foster Care-Oth Agency Provision,THIRD PARTY PAYMENTS,PRIVATE CONTRACTOR,REVENUE
Walsall Council,http://opendatacommunities.org/id/metropolitan-district-council/walsall ,WC139-344,30.06.2022,CHILDRENS,ACORNS CHILDRENS HOSPICE TRUST,14/06/2022,"1,700.00",6220-Professional Fees & Services,SUPPLIES & SERVICES,SERVICES,REVENUE
Walsall Council,http://opendatacommunities.org/id/metropolitan-district-council/walsall ,WC139-345,30.06.2022,CHILDRENS,ACORNS CHILDRENS HOSPICE TRUST,06/06/2022,850.00,6220-Professional Fees & Services,SUPPLIES & SERVICES,SERVICES,REVENUE
Walsall Council,http://opendatacommunities.org/id/metropolitan-district-council/walsall ,WC139-346,30.06.2022,CHILDRENS,ACORNS CHILDRENS HOSPICE TRUST,06/06/2022,850.00,6220-Professional Fees & Services,SUPPLIES & SERVICES,SERVICES,REVENUE
Walsall Council,http://opendatacommunities.org/id/metropolitan-district-council/walsall ,WC139-347,30.06.2022,CHILDRENS,ACORNS CHILDRENS HOSPICE TRUST,30/06/2022,"1,700.00",6220-Professional Fees & Services,SUPPLIES & SERVICES,SERVICES,REVENUE
Walsall Council,http://opendatacommunities.org/id/metropolitan-district-council/walsall ,WC139-348,30.06.2022,CHILDRENS,ACPAS LIMITED,08/06/2022,702.00,6222-Professional Fees & Services,SUPPLIES & SERVICES,SERVICES,REVENUE
Walsall Council,http://opendatacommunities.org/id/metropolitan-district-council/walsall ,WC139-349,30.06.2022,CHILDRENS,ACPAS LIMITED,22/06/2022,795.60,6222-Professional Fees & Services,SUPPLIES & SERVICES,SERVICES,REVENUE
Walsall Council,http://opendatacommunities.org/id/metropolitan-district-council/walsall ,WC139-350,30.06.2022,CHILDRENS,ACPAS LIMITED,14/06/2022,257.61,6220-School Only Payments - Catering,THIRD PARTY PAYMENTS,INDEPENDENT UNIT WITHIN COUNCIL,REVENUE
Walsall Council,http://opendatacommunities.org/id/metropolitan-district-council/walsall ,WC139-351,30.06.2022,"ECONOMY, ENVIRONMENT & COMMUNITIES",ACTION GRAPHICS & DISPLAY LTD,16/06/2022,-312.10,6414-External Printing Services,SUPPLIES & SERVICES,PRINTING STATIONERY & GENERAL OFFICE,REVENUE
Walsall Council,http://opendatacommunities.org/id/metropolitan-district-council/walsall ,WC139-352,30.06.2022,"ECONOMY, ENVIRONMENT & COMMUNITIES",ACTION GRAPHICS & DISPLAY LTD,16/06/2022,312.00,6414-External Printing Services,SUPPLIES & SERVICES,PRINTING STATIONERY & GENERAL OFFICE,REVENUE
Walsall Council,http://opendatacommunities.org/id/metropolitan-district-council/walsall ,WC139-353,30.06.2022,"ECONOMY, ENVIRONMENT & COMMUNITIES",ACTION GRAPHICS & DISPLAY LTD,16/06/2022,312.10,6414-External Printing Services,SUPPLIES & SERVICES,PRINTING STATIONERY & GENERAL OFFICE,REVENUE
Walsall Council,http://opendatacommunities.org/id/metropolitan-district-council/walsall ,WC139-354,30.06.2022,"ECONOMY, ENVIRONMENT & COMMUNITIES",ACTION GRAPHICS & DISPLAY LTD,29/06/2022,"1,564.90",6414-Events & Visual Arts,SUPPLIES & SERVICES,SERVICES,REVENUE
Walsall Council,http://opendatacommunities.org/id/metropolitan-district-council/walsall ,WC139-355,30.06.2022,CHILDRENS,ACTIVE CARE SOLUTIONS LTD,14/06/2022,"3,445.08",6223-Independent Foster Care-Oth Agency Provision,THIRD PARTY PAYMENTS,PRIVATE CONTRACTOR,REVENUE
Walsall Council,http://opendatacommunities.org/id/metropolitan-district-council/walsall ,WC139-356,30.06.2022,"ECONOMY, ENVIRONMENT & COMMUNITIES",ACTSO LTD,08/06/2022,250.00,6440-Subscriptions,SUPPLIES & SERVICES,GRANTS (EXP) & SUBSCRIPTIONS,REVENUE
Walsall Council,http://opendatacommunities.org/id/metropolitan-district-council/walsall ,WC139-357,30.06.2022,ADULT SOCIAL CARE,REDACTED,08/06/2022,"1,788.50",6541-Direct Payment,THIRD PARTY PAYMENTS,PRIVATE CONTRACTOR,REVENUE
Walsall Council,http://opendatacommunities.org/id/metropolitan-district-council/walsall ,WC139-358,30.06.2022,CHILDRENS,ADCS (ASSOCIATION OF DIRECTORS OF CHILDRENS SERVICES),30/06/2022,875.00,6220-External Training,INDIRECT EMPLOYEES,EXTERNAL TRAINING,REVENUE
Walsall Council,http://opendatacommunities.org/id/metropolitan-district-council/walsall ,WC139-359,30.06.2022,CHILDRENS,ADCS (ASSOCIATION OF DIRECTORS OF CHILDRENS SERVICES),30/06/2022,467.00,6213-External Training,INDIRECT EMPLOYEES,EXTERNAL TRAINING,REVENUE
Walsall Council,http://opendatacommunities.org/id/metropolitan-district-council/walsall ,WC139-360,30.06.2022,CHILDRENS,REDACTED,01/06/2022,363.24,6223-Residents Orders,TRANSFER PAYMENTS,CHILDREN SOCIAL SERVICES CLIENT,REVENUE
Walsall Council,http://opendatacommunities.org/id/metropolitan-district-council/walsall ,WC139-361,30.06.2022,CHILDRENS,REDACTED,29/06/2022,363.24,6223-Residents Orders,TRANSFER PAYMENTS,CHILDREN SOCIAL SERVICES CLIENT,REVENUE
Walsall Council,http://opendatacommunities.org/id/metropolitan-district-council/walsall ,WC139-362,30.06.2022,ADULT SOCIAL CARE,REDACTED,08/06/2022,"2,604.00",6541-Direct Payment,THIRD PARTY PAYMENTS,PRIVATE CONTRACTOR,REVENUE
Walsall Council,http://opendatacommunities.org/id/metropolitan-district-council/walsall ,WC139-363,30.06.2022,ADULT SOCIAL CARE,ADVANCE HEALTH CARE (UK) LTD,01/06/2022,"2,129.68",6541-Domiciliary Care,THIRD PARTY PAYMENTS,PRIVATE CONTRACTOR,REVENUE
Walsall Council,http://opendatacommunities.org/id/metropolitan-district-council/walsall ,WC139-364,30.06.2022,ADULT SOCIAL CARE,ADVANCE HEALTH CARE (UK) LTD,01/06/2022,"2,581.64",6541-Domiciliary Care,THIRD PARTY PAYMENTS,PRIVATE CONTRACTOR,REVENUE
Walsall Council,http://opendatacommunities.org/id/metropolitan-district-council/walsall ,WC139-365,30.06.2022,ADULT SOCIAL CARE,ADVANCE HEALTH CARE (UK) LTD,01/06/2022,"1,042.80",6541-Domiciliary Care,THIRD PARTY PAYMENTS,PRIVATE CONTRACTOR,REVENUE
Walsall Council,http://opendatacommunities.org/id/metropolitan-district-council/walsall ,WC139-366,30.06.2022,ADULT SOCIAL CARE,ADVANCE HEALTH CARE (UK) LTD,01/06/2022,919.52,6541-Domiciliary Care,THIRD PARTY PAYMENTS,PRIVATE CONTRACTOR,REVENUE
Walsall Council,http://opendatacommunities.org/id/metropolitan-district-council/walsall ,WC139-367,30.06.2022,ADULT SOCIAL CARE,ADVANCE HEALTH CARE (UK) LTD,01/06/2022,"1,027.00",6541-Domiciliary Care,THIRD PARTY PAYMENTS,PRIVATE CONTRACTOR,REVENUE
Walsall Council,http://opendatacommunities.org/id/metropolitan-district-council/walsall ,WC139-368,30.06.2022,ADULT SOCIAL CARE,ADVANCE HEALTH CARE (UK) LTD,01/06/2022,767.76,6541-Domiciliary Care,THIRD PARTY PAYMENTS,PRIVATE CONTRACTOR,REVENUE
Walsall Council,http://opendatacommunities.org/id/metropolitan-district-council/walsall ,WC139-369,30.06.2022,ADULT SOCIAL CARE,ADVANCE HEALTH CARE (UK) LTD,01/06/2022,802.48,6541-Domiciliary Care,THIRD PARTY PAYMENTS,PRIVATE CONTRACTOR,REVENUE
Walsall Council,http://opendatacommunities.org/id/metropolitan-district-council/walsall ,WC139-370,30.06.2022,ADULT SOCIAL CARE,ADVANCE HEALTH CARE (UK) LTD,01/06/2022,733.04,6541-Domiciliary Care,THIRD PARTY PAYMENTS,PRIVATE CONTRACTOR,REVENUE
Walsall Council,http://opendatacommunities.org/id/metropolitan-district-council/walsall ,WC139-371,30.06.2022,ADULT SOCIAL CARE,ADVANCE HEALTH CARE (UK) LTD,01/06/2022,"1,832.60",6541-Domiciliary Care,THIRD PARTY PAYMENTS,PRIVATE CONTRACTOR,REVENUE
Walsall Council,http://opendatacommunities.org/id/metropolitan-district-council/walsall ,WC139-372,30.06.2022,ADULT SOCIAL CARE,ADVANCE HEALTH CARE (UK) LTD,01/06/2022,830.96,6541-Domiciliary Care,THIRD PARTY PAYMENTS,PRIVATE CONTRACTOR,REVENUE
Walsall Council,http://opendatacommunities.org/id/metropolitan-district-council/walsall ,WC139-373,30.06.2022,ADULT SOCIAL CARE,ADVANCE HEALTH CARE (UK) LTD,01/06/2022,477.12,6541-Domiciliary Care,THIRD PARTY PAYMENTS,PRIVATE CONTRACTOR,REVENUE
Walsall Council,http://opendatacommunities.org/id/metropolitan-district-council/walsall ,WC139-374,30.06.2022,ADULT SOCIAL CARE,ADVANCE HEALTH CARE (UK) LTD,01/06/2022,808.92,6541-Domiciliary Care,THIRD PARTY PAYMENTS,PRIVATE CONTRACTOR,REVENUE
Walsall Council,http://opendatacommunities.org/id/metropolitan-district-council/walsall ,WC139-375,30.06.2022,ADULT SOCIAL CARE,ADVANCE HEALTH CARE (UK) LTD,01/06/2022,685.64,6541-Domiciliary Care,THIRD PARTY PAYMENTS,PRIVATE CONTRACTOR,REVENUE
Walsall Council,http://opendatacommunities.org/id/metropolitan-district-council/walsall ,WC139-376,30.06.2022,ADULT SOCIAL CARE,ADVANCE HEALTH CARE (UK) LTD,29/06/2022,"2,170.24",6541-Domiciliary Care,THIRD PARTY PAYMENTS,PRIVATE CONTRACTOR,REVENUE
Walsall Council,http://opendatacommunities.org/id/metropolitan-district-council/walsall ,WC139-377,30.06.2022,ADULT SOCIAL CARE,ADVANCE HEALTH CARE (UK) LTD,29/06/2022,"2,586.12",6541-Domiciliary Care,THIRD PARTY PAYMENTS,PRIVATE CONTRACTOR,REVENUE
Walsall Council,http://opendatacommunities.org/id/metropolitan-district-council/walsall ,WC139-378,30.06.2022,ADULT SOCIAL CARE,ADVANCE HEALTH CARE (UK) LTD,29/06/2022,"1,042.80",6541-Domiciliary Care,THIRD PARTY PAYMENTS,PRIVATE CONTRACTOR,REVENUE
Walsall Council,http://opendatacommunities.org/id/metropolitan-district-council/walsall ,WC139-379,30.06.2022,ADULT SOCIAL CARE,ADVANCE HEALTH CARE (UK) LTD,29/06/2022,921.76,6541-Domiciliary Care,THIRD PARTY PAYMENTS,PRIVATE CONTRACTOR,REVENUE
Walsall Council,http://opendatacommunities.org/id/metropolitan-district-council/walsall ,WC139-380,30.06.2022,ADULT SOCIAL CARE,ADVANCE HEALTH CARE (UK) LTD,29/06/2022,"1,027.00",6541-Domiciliary Care,THIRD PARTY PAYMENTS,PRIVATE CONTRACTOR,REVENUE
Walsall Council,http://opendatacommunities.org/id/metropolitan-district-council/walsall ,WC139-381,30.06.2022,ADULT SOCIAL CARE,ADVANCE HEALTH CARE (UK) LTD,29/06/2022,774.48,6541-Domiciliary Care,THIRD PARTY PAYMENTS,PRIVATE CONTRACTOR,REVENUE
Walsall Council,http://opendatacommunities.org/id/metropolitan-district-council/walsall ,WC139-382,30.06.2022,ADULT SOCIAL CARE,ADVANCE HEALTH CARE (UK) LTD,29/06/2022,663.88,6541-Domiciliary Care,THIRD PARTY PAYMENTS,PRIVATE CONTRACTOR,REVENUE
Walsall Council,http://opendatacommunities.org/id/metropolitan-district-council/walsall ,WC139-383,30.06.2022,ADULT SOCIAL CARE,ADVANCE HEALTH CARE (UK) LTD,29/06/2022,737.52,6541-Domiciliary Care,THIRD PARTY PAYMENTS,PRIVATE CONTRACTOR,REVENUE
Walsall Council,http://opendatacommunities.org/id/metropolitan-district-council/walsall ,WC139-384,30.06.2022,ADULT SOCIAL CARE,ADVANCE HEALTH CARE (UK) LTD,29/06/2022,"1,843.80",6541-Domiciliary Care,THIRD PARTY PAYMENTS,PRIVATE CONTRACTOR,REVENUE
Walsall Council,http://opendatacommunities.org/id/metropolitan-district-council/walsall ,WC139-385,30.06.2022,ADULT SOCIAL CARE,ADVANCE HEALTH CARE (UK) LTD,29/06/2022,837.68,6541-Domiciliary Care,THIRD PARTY PAYMENTS,PRIVATE CONTRACTOR,REVENUE
Walsall Council,http://opendatacommunities.org/id/metropolitan-district-council/walsall ,WC139-386,30.06.2022,ADULT SOCIAL CARE,ADVANCE HEALTH CARE (UK) LTD,29/06/2022,479.36,6541-Domiciliary Care,THIRD PARTY PAYMENTS,PRIVATE CONTRACTOR,REVENUE
Walsall Council,http://opendatacommunities.org/id/metropolitan-district-council/walsall ,WC139-387,30.06.2022,ADULT SOCIAL CARE,ADVANCE HEALTH CARE (UK) LTD,29/06/2022,811.16,6541-Domiciliary Care,THIRD PARTY PAYMENTS,PRIVATE CONTRACTOR,REVENUE
Walsall Council,http://opendatacommunities.org/id/metropolitan-district-council/walsall ,WC139-388,30.06.2022,ADULT SOCIAL CARE,ADVANCE HEALTH CARE (UK) LTD,29/06/2022,690.12,6541-Domiciliary Care,THIRD PARTY PAYMENTS,PRIVATE CONTRACTOR,REVENUE
Walsall Council,http://opendatacommunities.org/id/metropolitan-district-council/walsall ,WC139-389,30.06.2022,ADULT SOCIAL CARE,ADVANCE HEALTH CARE (UK) LTD,01/06/2022,458.20,6541-Domiciliary Care,THIRD PARTY PAYMENTS,PRIVATE CONTRACTOR,REVENUE
Walsall Council,http://opendatacommunities.org/id/metropolitan-district-council/walsall ,WC139-390,30.06.2022,ADULT SOCIAL CARE,ADVANCE HEALTH CARE (UK) LTD,01/06/2022,"1,769.60",6541-Domiciliary Care,THIRD PARTY PAYMENTS,PRIVATE CONTRACTOR,REVENUE
Walsall Council,http://opendatacommunities.org/id/metropolitan-district-council/walsall ,WC139-391,30.06.2022,ADULT SOCIAL CARE,ADVANCE HEALTH CARE (UK) LTD,01/06/2022,395.00,6541-Domiciliary Care,THIRD PARTY PAYMENTS,PRIVATE CONTRACTOR,REVENUE
Walsall Council,http://opendatacommunities.org/id/metropolitan-district-council/walsall ,WC139-392,30.06.2022,ADULT SOCIAL CARE,ADVANCE HEALTH CARE (UK) LTD,01/06/2022,268.60,6541-Domiciliary Care,THIRD PARTY PAYMENTS,PRIVATE CONTRACTOR,REVENUE
Walsall Council,http://opendatacommunities.org/id/metropolitan-district-council/walsall ,WC139-393,30.06.2022,ADULT SOCIAL CARE,ADVANCE HEALTH CARE (UK) LTD,01/06/2022,"1,832.80",6541-Domiciliary Care,THIRD PARTY PAYMENTS,PRIVATE CONTRACTOR,REVENUE
Walsall Council,http://opendatacommunities.org/id/metropolitan-district-council/walsall ,WC139-394,30.06.2022,ADULT SOCIAL CARE,ADVANCE HEALTH CARE (UK) LTD,01/06/2022,497.70,6541-Domiciliary Care,THIRD PARTY PAYMENTS,PRIVATE CONTRACTOR,REVENUE
Walsall Council,http://opendatacommunities.org/id/metropolitan-district-council/walsall ,WC139-395,30.06.2022,ADULT SOCIAL CARE,ADVANCE HEALTH CARE (UK) LTD,01/06/2022,477.95,6541-Domiciliary Care,THIRD PARTY PAYMENTS,PRIVATE CONTRACTOR,REVENUE
Walsall Council,http://opendatacommunities.org/id/metropolitan-district-council/walsall ,WC139-396,30.06.2022,ADULT SOCIAL CARE,ADVANCE HEALTH CARE (UK) LTD,01/06/2022,355.50,6541-Domiciliary Care,THIRD PARTY PAYMENTS,PRIVATE CONTRACTOR,REVENUE
Walsall Council,http://opendatacommunities.org/id/metropolitan-district-council/walsall ,WC139-397,30.06.2022,ADULT SOCIAL CARE,ADVANCE HEALTH CARE (UK) LTD,01/06/2022,884.80,6541-Domiciliary Care,THIRD PARTY PAYMENTS,PRIVATE CONTRACTOR,REVENUE
Walsall Council,http://opendatacommunities.org/id/metropolitan-district-council/walsall ,WC139-398,30.06.2022,ADULT SOCIAL CARE,ADVANCE HEALTH CARE (UK) LTD,07/06/2022,442.40,6541-Domiciliary Care,THIRD PARTY PAYMENTS,PRIVATE CONTRACTOR,REVENUE
Walsall Council,http://opendatacommunities.org/id/metropolitan-district-council/walsall ,WC139-399,30.06.2022,ADULT SOCIAL CARE,ADVANCE HEALTH CARE (UK) LTD,07/06/2022,331.94,6541-Domiciliary Care,THIRD PARTY PAYMENTS,PRIVATE CONTRACTOR,REVENUE
Walsall Council,http://opendatacommunities.org/id/metropolitan-district-council/walsall ,WC139-400,30.06.2022,ADULT SOCIAL CARE,ADVANCE HEALTH CARE (UK) LTD,07/06/2022,460.88,6541-Domiciliary Care,THIRD PARTY PAYMENTS,PRIVATE CONTRACTOR,REVENUE
Walsall Council,http://opendatacommunities.org/id/metropolitan-district-council/walsall ,WC139-401,30.06.2022,ADULT SOCIAL CARE,ADVANCE HEALTH CARE (UK) LTD,07/06/2022,845.30,6541-Domiciliary Care,THIRD PARTY PAYMENTS,PRIVATE CONTRACTOR,REVENUE
Walsall Council,http://opendatacommunities.org/id/metropolitan-district-council/walsall ,WC139-402,30.06.2022,ADULT SOCIAL CARE,ADVANCE HEALTH CARE (UK) LTD,07/06/2022,547.76,6541-Domiciliary Care,THIRD PARTY PAYMENTS,PRIVATE CONTRACTOR,REVENUE
Walsall Council,http://opendatacommunities.org/id/metropolitan-district-council/walsall ,WC139-403,30.06.2022,ADULT SOCIAL CARE,ADVANCE HEALTH CARE (UK) LTD,07/06/2022,497.70,6541-Domiciliary Care,THIRD PARTY PAYMENTS,PRIVATE CONTRACTOR,REVENUE
Walsall Council,http://opendatacommunities.org/id/metropolitan-district-council/walsall ,WC139-404,30.06.2022,ADULT SOCIAL CARE,ADVANCE HEALTH CARE (UK) LTD,07/06/2022,576.70,6541-Domiciliary Care,THIRD PARTY PAYMENTS,PRIVATE CONTRACTOR,REVENUE
Walsall Council,http://opendatacommunities.org/id/metropolitan-district-council/walsall ,WC139-405,30.06.2022,ADULT SOCIAL CARE,ADVANCE HEALTH CARE (UK) LTD,07/06/2022,497.70,6541-Domiciliary Care,THIRD PARTY PAYMENTS,PRIVATE CONTRACTOR,REVENUE
Walsall Council,http://opendatacommunities.org/id/metropolitan-district-council/walsall ,WC139-406,30.06.2022,ADULT SOCIAL CARE,ADVANCE HEALTH CARE (UK) LTD,07/06/2022,497.70,6541-Domiciliary Care,THIRD PARTY PAYMENTS,PRIVATE CONTRACTOR,REVENUE
Walsall Council,http://opendatacommunities.org/id/metropolitan-district-council/walsall ,WC139-407,30.06.2022,ADULT SOCIAL CARE,ADVANCE HEALTH CARE (UK) LTD,07/06/2022,368.76,6541-Domiciliary Care,THIRD PARTY PAYMENTS,PRIVATE CONTRACTOR,REVENUE
Walsall Council,http://opendatacommunities.org/id/metropolitan-district-council/walsall ,WC139-408,30.06.2022,ADULT SOCIAL CARE,ADVANCE HEALTH CARE (UK) LTD,07/06/2022,497.70,6541-Domiciliary Care,THIRD PARTY PAYMENTS,PRIVATE CONTRACTOR,REVENUE
Walsall Council,http://opendatacommunities.org/id/metropolitan-district-council/walsall ,WC139-409,30.06.2022,ADULT SOCIAL CARE,ADVANCE HEALTH CARE (UK) LTD,07/06/2022,497.70,6541-Domiciliary Care,THIRD PARTY PAYMENTS,PRIVATE CONTRACTOR,REVENUE
Walsall Council,http://opendatacommunities.org/id/metropolitan-district-council/walsall ,WC139-410,30.06.2022,ADULT SOCIAL CARE,ADVANCE HEALTH CARE (UK) LTD,07/06/2022,497.70,6541-Domiciliary Care,THIRD PARTY PAYMENTS,PRIVATE CONTRACTOR,REVENUE
Walsall Council,http://opendatacommunities.org/id/metropolitan-district-council/walsall ,WC139-411,30.06.2022,ADULT SOCIAL CARE,ADVANCE HEALTH CARE (UK) LTD,07/06/2022,497.70,6541-Domiciliary Care,THIRD PARTY PAYMENTS,PRIVATE CONTRACTOR,REVENUE
Walsall Council,http://opendatacommunities.org/id/metropolitan-district-council/walsall ,WC139-412,30.06.2022,ADULT SOCIAL CARE,ADVANCE HEALTH CARE (UK) LTD,07/06/2022,553.00,6541-Domiciliary Care,THIRD PARTY PAYMENTS,PRIVATE CONTRACTOR,REVENUE
Walsall Council,http://opendatacommunities.org/id/metropolitan-district-council/walsall ,WC139-413,30.06.2022,ADULT SOCIAL CARE,ADVANCE HEALTH CARE (UK) LTD,07/06/2022,553.00,6541-Domiciliary Care,THIRD PARTY PAYMENTS,PRIVATE CONTRACTOR,REVENUE
Walsall Council,http://opendatacommunities.org/id/metropolitan-district-council/walsall ,WC139-414,30.06.2022,ADULT SOCIAL CARE,ADVANCE HEALTH CARE (UK) LTD,07/06/2022,490.40,6541-Domiciliary Care,THIRD PARTY PAYMENTS,PRIVATE CONTRACTOR,REVENUE
Walsall Council,http://opendatacommunities.org/id/metropolitan-district-council/walsall ,WC139-415,30.06.2022,ADULT SOCIAL CARE,ADVANCE HEALTH CARE (UK) LTD,07/06/2022,331.80,6541-Domiciliary Care,THIRD PARTY PAYMENTS,PRIVATE CONTRACTOR,REVENUE
Walsall Council,http://opendatacommunities.org/id/metropolitan-district-council/walsall ,WC139-416,30.06.2022,ADULT SOCIAL CARE,ADVANCE HEALTH CARE (UK) LTD,07/06/2022,331.94,6541-Domiciliary Care,THIRD PARTY PAYMENTS,PRIVATE CONTRACTOR,REVENUE
Walsall Council,http://opendatacommunities.org/id/metropolitan-district-council/walsall ,WC139-417,30.06.2022,ADULT SOCIAL CARE,ADVANCE HEALTH CARE (UK) LTD,07/06/2022,497.70,6541-Domiciliary Care,THIRD PARTY PAYMENTS,PRIVATE CONTRACTOR,REVENUE
Walsall Council,http://opendatacommunities.org/id/metropolitan-district-council/walsall ,WC139-418,30.06.2022,ADULT SOCIAL CARE,ADVANCE HEALTH CARE (UK) LTD,07/06/2022,331.80,6541-Domiciliary Care,THIRD PARTY PAYMENTS,PRIVATE CONTRACTOR,REVENUE
Walsall Council,http://opendatacommunities.org/id/metropolitan-district-council/walsall ,WC139-419,30.06.2022,ADULT SOCIAL CARE,ADVANCE HEALTH CARE (UK) LTD,07/06/2022,497.70,6541-Domiciliary Care,THIRD PARTY PAYMENTS,PRIVATE CONTRACTOR,REVENUE
Walsall Council,http://opendatacommunities.org/id/metropolitan-district-council/walsall ,WC139-420,30.06.2022,ADULT SOCIAL CARE,ADVANCE HEALTH CARE (UK) LTD,07/06/2022,884.80,6541-Domiciliary Care,THIRD PARTY PAYMENTS,PRIVATE CONTRACTOR,REVENUE
Walsall Council,http://opendatacommunities.org/id/metropolitan-district-council/walsall ,WC139-421,30.06.2022,ADULT SOCIAL CARE,ADVANCE HEALTH CARE (UK) LTD,07/06/2022,497.70,6541-Domiciliary Care,THIRD PARTY PAYMENTS,PRIVATE CONTRACTOR,REVENUE
Walsall Council,http://opendatacommunities.org/id/metropolitan-district-council/walsall ,WC139-422,30.06.2022,ADULT SOCIAL CARE,ADVANCE HEALTH CARE (UK) LTD,07/06/2022,497.70,6541-Domiciliary Care,THIRD PARTY PAYMENTS,PRIVATE CONTRACTOR,REVENUE
Walsall Council,http://opendatacommunities.org/id/metropolitan-district-council/walsall ,WC139-423,30.06.2022,ADULT SOCIAL CARE,ADVANCE HEALTH CARE (UK) LTD,07/06/2022,553.00,6541-Domiciliary Care,THIRD PARTY PAYMENTS,PRIVATE CONTRACTOR,REVENUE
Walsall Council,http://opendatacommunities.org/id/metropolitan-district-council/walsall ,WC139-424,30.06.2022,ADULT SOCIAL CARE,ADVANCE HEALTH CARE (UK) LTD,07/06/2022,513.50,6541-Domiciliary Care,THIRD PARTY PAYMENTS,PRIVATE CONTRACTOR,REVENUE
Walsall Council,http://opendatacommunities.org/id/metropolitan-district-council/walsall ,WC139-425,30.06.2022,ADULT SOCIAL CARE,ADVANCE HEALTH CARE (UK) LTD,07/06/2022,497.70,6541-Domiciliary Care,THIRD PARTY PAYMENTS,PRIVATE CONTRACTOR,REVENUE
Walsall Council,http://opendatacommunities.org/id/metropolitan-district-council/walsall ,WC139-426,30.06.2022,ADULT SOCIAL CARE,ADVANCE HEALTH CARE (UK) LTD,07/06/2022,497.70,6541-Domiciliary Care,THIRD PARTY PAYMENTS,PRIVATE CONTRACTOR,REVENUE
Walsall Council,http://opendatacommunities.org/id/metropolitan-district-council/walsall ,WC139-427,30.06.2022,ADULT SOCIAL CARE,ADVANCE HEALTH CARE (UK) LTD,07/06/2022,460.88,6541-Domiciliary Care,THIRD PARTY PAYMENTS,PRIVATE CONTRACTOR,REVENUE
Walsall Council,http://opendatacommunities.org/id/metropolitan-district-council/walsall ,WC139-428,30.06.2022,ADULT SOCIAL CARE,ADVANCE HEALTH CARE (UK) LTD,07/06/2022,497.70,6541-Domiciliary Care,THIRD PARTY PAYMENTS,PRIVATE CONTRACTOR,REVENUE
Walsall Council,http://opendatacommunities.org/id/metropolitan-district-council/walsall ,WC139-429,30.06.2022,ADULT SOCIAL CARE,ADVANCE HEALTH CARE (UK) LTD,07/06/2022,845.30,6541-Domiciliary Care,THIRD PARTY PAYMENTS,PRIVATE CONTRACTOR,REVENUE
Walsall Council,http://opendatacommunities.org/id/metropolitan-district-council/walsall ,WC139-430,30.06.2022,ADULT SOCIAL CARE,ADVANCE HEALTH CARE (UK) LTD,07/06/2022,700.52,6541-Domiciliary Care,THIRD PARTY PAYMENTS,PRIVATE CONTRACTOR,REVENUE
Walsall Council,http://opendatacommunities.org/id/metropolitan-district-council/walsall ,WC139-431,30.06.2022,ADULT SOCIAL CARE,ADVANCE HEALTH CARE (UK) LTD,07/06/2022,497.70,6541-Domiciliary Care,THIRD PARTY PAYMENTS,PRIVATE CONTRACTOR,REVENUE
Walsall Council,http://opendatacommunities.org/id/metropolitan-district-council/walsall ,WC139-432,30.06.2022,ADULT SOCIAL CARE,ADVANCE HEALTH CARE (UK) LTD,07/06/2022,576.70,6541-Domiciliary Care,THIRD PARTY PAYMENTS,PRIVATE CONTRACTOR,REVENUE
Walsall Council,http://opendatacommunities.org/id/metropolitan-district-council/walsall ,WC139-433,30.06.2022,ADULT SOCIAL CARE,ADVANCE HEALTH CARE (UK) LTD,07/06/2022,497.70,6541-Domiciliary Care,THIRD PARTY PAYMENTS,PRIVATE CONTRACTOR,REVENUE
Walsall Council,http://opendatacommunities.org/id/metropolitan-district-council/walsall ,WC139-434,30.06.2022,ADULT SOCIAL CARE,ADVANCE HEALTH CARE (UK) LTD,07/06/2022,497.70,6541-Domiciliary Care,THIRD PARTY PAYMENTS,PRIVATE CONTRACTOR,REVENUE
Walsall Council,http://opendatacommunities.org/id/metropolitan-district-council/walsall ,WC139-435,30.06.2022,ADULT SOCIAL CARE,ADVANCE HEALTH CARE (UK) LTD,07/06/2022,368.76,6541-Domiciliary Care,THIRD PARTY PAYMENTS,PRIVATE CONTRACTOR,REVENUE
Walsall Council,http://opendatacommunities.org/id/metropolitan-district-council/walsall ,WC139-436,30.06.2022,ADULT SOCIAL CARE,ADVANCE HEALTH CARE (UK) LTD,07/06/2022,497.70,6541-Domiciliary Care,THIRD PARTY PAYMENTS,PRIVATE CONTRACTOR,REVENUE
Walsall Council,http://opendatacommunities.org/id/metropolitan-district-council/walsall ,WC139-437,30.06.2022,ADULT SOCIAL CARE,ADVANCE HEALTH CARE (UK) LTD,07/06/2022,442.40,6541-Domiciliary Care,THIRD PARTY PAYMENTS,PRIVATE CONTRACTOR,REVENUE
Walsall Council,http://opendatacommunities.org/id/metropolitan-district-council/walsall ,WC139-438,30.06.2022,ADULT SOCIAL CARE,ADVANCE HEALTH CARE (UK) LTD,07/06/2022,331.94,6541-Domiciliary Care,THIRD PARTY PAYMENTS,PRIVATE CONTRACTOR,REVENUE
Walsall Council,http://opendatacommunities.org/id/metropolitan-district-council/walsall ,WC139-439,30.06.2022,ADULT SOCIAL CARE,ADVANCE HEALTH CARE (UK) LTD,07/06/2022,884.80,6541-Domiciliary Care,THIRD PARTY PAYMENTS,PRIVATE CONTRACTOR,REVENUE
Walsall Council,http://opendatacommunities.org/id/metropolitan-district-council/walsall ,WC139-440,30.06.2022,ADULT SOCIAL CARE,ADVANCE HEALTH CARE (UK) LTD,07/06/2022,497.70,6541-Domiciliary Care,THIRD PARTY PAYMENTS,PRIVATE CONTRACTOR,REVENUE
Walsall Council,http://opendatacommunities.org/id/metropolitan-district-council/walsall ,WC139-441,30.06.2022,ADULT SOCIAL CARE,ADVANCE HEALTH CARE (UK) LTD,07/06/2022,497.70,6541-Domiciliary Care,THIRD PARTY PAYMENTS,PRIVATE CONTRACTOR,REVENUE
Walsall Council,http://opendatacommunities.org/id/metropolitan-district-council/walsall ,WC139-442,30.06.2022,ADULT SOCIAL CARE,ADVANCE HEALTH CARE (UK) LTD,07/06/2022,387.10,6541-Domiciliary Care,THIRD PARTY PAYMENTS,PRIVATE CONTRACTOR,REVENUE
Walsall Council,http://opendatacommunities.org/id/metropolitan-district-council/walsall ,WC139-443,30.06.2022,ADULT SOCIAL CARE,ADVANCE HEALTH CARE (UK) LTD,07/06/2022,497.70,6541-Domiciliary Care,THIRD PARTY PAYMENTS,PRIVATE CONTRACTOR,REVENUE
Walsall Council,http://opendatacommunities.org/id/metropolitan-district-council/walsall ,WC139-444,30.06.2022,ADULT SOCIAL CARE,ADVANCE HEALTH CARE (UK) LTD,07/06/2022,460.88,6541-Domiciliary Care,THIRD PARTY PAYMENTS,PRIVATE CONTRACTOR,REVENUE
Walsall Council,http://opendatacommunities.org/id/metropolitan-district-council/walsall ,WC139-445,30.06.2022,ADULT SOCIAL CARE,ADVANCE HEALTH CARE (UK) LTD,07/06/2022,331.80,6541-Domiciliary Care,THIRD PARTY PAYMENTS,PRIVATE CONTRACTOR,REVENUE
Walsall Council,http://opendatacommunities.org/id/metropolitan-district-council/walsall ,WC139-446,30.06.2022,ADULT SOCIAL CARE,ADVANCE HEALTH CARE (UK) LTD,07/06/2022,497.70,6541-Domiciliary Care,THIRD PARTY PAYMENTS,PRIVATE CONTRACTOR,REVENUE
Walsall Council,http://opendatacommunities.org/id/metropolitan-district-council/walsall ,WC139-447,30.06.2022,ADULT SOCIAL CARE,ADVANCE HEALTH CARE (UK) LTD,07/06/2022,331.80,6541-Domiciliary Care,THIRD PARTY PAYMENTS,PRIVATE CONTRACTOR,REVENUE
Walsall Council,http://opendatacommunities.org/id/metropolitan-district-council/walsall ,WC139-448,30.06.2022,ADULT SOCIAL CARE,ADVANCE HEALTH CARE (UK) LTD,07/06/2022,331.94,6541-Domiciliary Care,THIRD PARTY PAYMENTS,PRIVATE CONTRACTOR,REVENUE
Walsall Council,http://opendatacommunities.org/id/metropolitan-district-council/walsall ,WC139-449,30.06.2022,ADULT SOCIAL CARE,ADVANCE HEALTH CARE (UK) LTD,07/06/2022,497.70,6541-Domiciliary Care,THIRD PARTY PAYMENTS,PRIVATE CONTRACTOR,REVENUE
Walsall Council,http://opendatacommunities.org/id/metropolitan-district-council/walsall ,WC139-450,30.06.2022,ADULT SOCIAL CARE,ADVANCE HEALTH CARE (UK) LTD,07/06/2022,497.70,6541-Domiciliary Care,THIRD PARTY PAYMENTS,PRIVATE CONTRACTOR,REVENUE
Walsall Council,http://opendatacommunities.org/id/metropolitan-district-council/walsall ,WC139-451,30.06.2022,ADULT SOCIAL CARE,ADVANCE HEALTH CARE (UK) LTD,07/06/2022,553.00,6541-Domiciliary Care,THIRD PARTY PAYMENTS,PRIVATE CONTRACTOR,REVENUE
Walsall Council,http://opendatacommunities.org/id/metropolitan-district-council/walsall ,WC139-452,30.06.2022,ADULT SOCIAL CARE,ADVANCE HEALTH CARE (UK) LTD,07/06/2022,513.50,6541-Domiciliary Care,THIRD PARTY PAYMENTS,PRIVATE CONTRACTOR,REVENUE
Walsall Council,http://opendatacommunities.org/id/metropolitan-district-council/walsall ,WC139-453,30.06.2022,ADULT SOCIAL CARE,ADVANCE HEALTH CARE (UK) LTD,07/06/2022,497.70,6541-Domiciliary Care,THIRD PARTY PAYMENTS,PRIVATE CONTRACTOR,REVENUE
Walsall Council,http://opendatacommunities.org/id/metropolitan-district-council/walsall ,WC139-454,30.06.2022,ADULT SOCIAL CARE,ADVANCE HEALTH CARE (UK) LTD,07/06/2022,497.70,6541-Domiciliary Care,THIRD PARTY PAYMENTS,PRIVATE CONTRACTOR,REVENUE
Walsall Council,http://opendatacommunities.org/id/metropolitan-district-council/walsall ,WC139-455,30.06.2022,ADULT SOCIAL CARE,ADVANCE HEALTH CARE (UK) LTD,07/06/2022,497.70,6541-Domiciliary Care,THIRD PARTY PAYMENTS,PRIVATE CONTRACTOR,REVENUE
Walsall Council,http://opendatacommunities.org/id/metropolitan-district-council/walsall ,WC139-456,30.06.2022,ADULT SOCIAL CARE,ADVANCE HEALTH CARE (UK) LTD,07/06/2022,497.70,6541-Domiciliary Care,THIRD PARTY PAYMENTS,PRIVATE CONTRACTOR,REVENUE
Walsall Council,http://opendatacommunities.org/id/metropolitan-district-council/walsall ,WC139-457,30.06.2022,ADULT SOCIAL CARE,ADVANCE HEALTH CARE (UK) LTD,07/06/2022,553.00,6541-Domiciliary Care,THIRD PARTY PAYMENTS,PRIVATE CONTRACTOR,REVENUE
Walsall Council,http://opendatacommunities.org/id/metropolitan-district-council/walsall ,WC139-458,30.06.2022,ADULT SOCIAL CARE,ADVANCE HEALTH CARE (UK) LTD,07/06/2022,316.00,6541-Domiciliary Care,THIRD PARTY PAYMENTS,PRIVATE CONTRACTOR,REVENUE
Walsall Council,http://opendatacommunities.org/id/metropolitan-district-council/walsall ,WC139-459,30.06.2022,ADULT SOCIAL CARE,ADVANCE HEALTH CARE (UK) LTD,07/06/2022,553.00,6541-Domiciliary Care,THIRD PARTY PAYMENTS,PRIVATE CONTRACTOR,REVENUE
Walsall Council,http://opendatacommunities.org/id/metropolitan-district-council/walsall ,WC139-460,30.06.2022,ADULT SOCIAL CARE,ADVANCE HEALTH CARE (UK) LTD,07/06/2022,490.40,6541-Domiciliary Care,THIRD PARTY PAYMENTS,PRIVATE CONTRACTOR,REVENUE
Walsall Council,http://opendatacommunities.org/id/metropolitan-district-council/walsall ,WC139-461,30.06.2022,ADULT SOCIAL CARE,ADVANCE HEALTH CARE (UK) LTD,21/06/2022,497.70,6541-Domiciliary Care,THIRD PARTY PAYMENTS,PRIVATE CONTRACTOR,REVENUE
Walsall Council,http://opendatacommunities.org/id/metropolitan-district-council/walsall ,WC139-462,30.06.2022,ADULT SOCIAL CARE,ADVANCE HEALTH CARE (UK) LTD,21/06/2022,497.70,6541-Domiciliary Care,THIRD PARTY PAYMENTS,PRIVATE CONTRACTOR,REVENUE
Walsall Council,http://opendatacommunities.org/id/metropolitan-district-council/walsall ,WC139-463,30.06.2022,ADULT SOCIAL CARE,ADVANCE HEALTH CARE (UK) LTD,21/06/2022,553.00,6541-Domiciliary Care,THIRD PARTY PAYMENTS,PRIVATE CONTRACTOR,REVENUE
Walsall Council,http://opendatacommunities.org/id/metropolitan-district-council/walsall ,WC139-464,30.06.2022,ADULT SOCIAL CARE,ADVANCE HEALTH CARE (UK) LTD,21/06/2022,442.40,6541-Domiciliary Care,THIRD PARTY PAYMENTS,PRIVATE CONTRACTOR,REVENUE
Walsall Council,http://opendatacommunities.org/id/metropolitan-district-council/walsall ,WC139-465,30.06.2022,ADULT SOCIAL CARE,ADVANCE HEALTH CARE (UK) LTD,21/06/2022,331.94,6541-Domiciliary Care,THIRD PARTY PAYMENTS,PRIVATE CONTRACTOR,REVENUE
Walsall Council,http://opendatacommunities.org/id/metropolitan-district-council/walsall ,WC139-466,30.06.2022,ADULT SOCIAL CARE,ADVANCE HEALTH CARE (UK) LTD,21/06/2022,845.30,6541-Domiciliary Care,THIRD PARTY PAYMENTS,PRIVATE CONTRACTOR,REVENUE
Walsall Council,http://opendatacommunities.org/id/metropolitan-district-council/walsall ,WC139-467,30.06.2022,ADULT SOCIAL CARE,ADVANCE HEALTH CARE (UK) LTD,21/06/2022,697.88,6541-Domiciliary Care,THIRD PARTY PAYMENTS,PRIVATE CONTRACTOR,REVENUE
Walsall Council,http://opendatacommunities.org/id/metropolitan-district-council/walsall ,WC139-468,30.06.2022,ADULT SOCIAL CARE,ADVANCE HEALTH CARE (UK) LTD,21/06/2022,497.70,6541-Domiciliary Care,THIRD PARTY PAYMENTS,PRIVATE CONTRACTOR,REVENUE
Walsall Council,http://opendatacommunities.org/id/metropolitan-district-council/walsall ,WC139-469,30.06.2022,ADULT SOCIAL CARE,ADVANCE HEALTH CARE (UK) LTD,21/06/2022,387.10,6541-Domiciliary Care,THIRD PARTY PAYMENTS,PRIVATE CONTRACTOR,REVENUE
Walsall Council,http://opendatacommunities.org/id/metropolitan-district-council/walsall ,WC139-470,30.06.2022,ADULT SOCIAL CARE,ADVANCE HEALTH CARE (UK) LTD,21/06/2022,497.70,6541-Domiciliary Care,THIRD PARTY PAYMENTS,PRIVATE CONTRACTOR,REVENUE
Walsall Council,http://opendatacommunities.org/id/metropolitan-district-council/walsall ,WC139-471,30.06.2022,ADULT SOCIAL CARE,ADVANCE HEALTH CARE (UK) LTD,21/06/2022,460.88,6541-Domiciliary Care,THIRD PARTY PAYMENTS,PRIVATE CONTRACTOR,REVENUE
Walsall Council,http://opendatacommunities.org/id/metropolitan-district-council/walsall ,WC139-472,30.06.2022,ADULT SOCIAL CARE,ADVANCE HEALTH CARE (UK) LTD,21/06/2022,553.00,6541-Domiciliary Care,THIRD PARTY PAYMENTS,PRIVATE CONTRACTOR,REVENUE
Walsall Council,http://opendatacommunities.org/id/metropolitan-district-council/walsall ,WC139-473,30.06.2022,ADULT SOCIAL CARE,ADVANCE HEALTH CARE (UK) LTD,21/06/2022,553.00,6541-Domiciliary Care,THIRD PARTY PAYMENTS,PRIVATE CONTRACTOR,REVENUE
Walsall Council,http://opendatacommunities.org/id/metropolitan-district-council/walsall ,WC139-474,30.06.2022,ADULT SOCIAL CARE,ADVANCE HEALTH CARE (UK) LTD,21/06/2022,490.40,6541-Domiciliary Care,THIRD PARTY PAYMENTS,PRIVATE CONTRACTOR,REVENUE
Walsall Council,http://opendatacommunities.org/id/metropolitan-district-council/walsall ,WC139-475,30.06.2022,ADULT SOCIAL CARE,ADVANCE HEALTH CARE (UK) LTD,21/06/2022,497.70,6541-Domiciliary Care,THIRD PARTY PAYMENTS,PRIVATE CONTRACTOR,REVENUE
Walsall Council,http://opendatacommunities.org/id/metropolitan-district-council/walsall ,WC139-476,30.06.2022,ADULT SOCIAL CARE,ADVANCE HEALTH CARE (UK) LTD,21/06/2022,576.70,6541-Domiciliary Care,THIRD PARTY PAYMENTS,PRIVATE CONTRACTOR,REVENUE
Walsall Council,http://opendatacommunities.org/id/metropolitan-district-council/walsall ,WC139-477,30.06.2022,ADULT SOCIAL CARE,ADVANCE HEALTH CARE (UK) LTD,21/06/2022,497.70,6541-Domiciliary Care,THIRD PARTY PAYMENTS,PRIVATE CONTRACTOR,REVENUE
Walsall Council,http://opendatacommunities.org/id/metropolitan-district-council/walsall ,WC139-478,30.06.2022,ADULT SOCIAL CARE,ADVANCE HEALTH CARE (UK) LTD,21/06/2022,-426.60,6541-Domiciliary Care,THIRD PARTY PAYMENTS,PRIVATE CONTRACTOR,REVENUE
Walsall Council,http://opendatacommunities.org/id/metropolitan-district-council/walsall ,WC139-479,30.06.2022,ADULT SOCIAL CARE,ADVANCE HEALTH CARE (UK) LTD,21/06/2022,497.70,6541-Domiciliary Care,THIRD PARTY PAYMENTS,PRIVATE CONTRACTOR,REVENUE
Walsall Council,http://opendatacommunities.org/id/metropolitan-district-council/walsall ,WC139-480,30.06.2022,ADULT SOCIAL CARE,ADVANCE HEALTH CARE (UK) LTD,21/06/2022,368.76,6541-Domiciliary Care,THIRD PARTY PAYMENTS,PRIVATE CONTRACTOR,REVENUE
Walsall Council,http://opendatacommunities.org/id/metropolitan-district-council/walsall ,WC139-481,30.06.2022,ADULT SOCIAL CARE,ADVANCE HEALTH CARE (UK) LTD,21/06/2022,331.80,6541-Domiciliary Care,THIRD PARTY PAYMENTS,PRIVATE CONTRACTOR,REVENUE
Walsall Council,http://opendatacommunities.org/id/metropolitan-district-council/walsall ,WC139-482,30.06.2022,ADULT SOCIAL CARE,ADVANCE HEALTH CARE (UK) LTD,21/06/2022,331.94,6541-Domiciliary Care,THIRD PARTY PAYMENTS,PRIVATE CONTRACTOR,REVENUE
Walsall Council,http://opendatacommunities.org/id/metropolitan-district-council/walsall ,WC139-483,30.06.2022,ADULT SOCIAL CARE,ADVANCE HEALTH CARE (UK) LTD,21/06/2022,497.70,6541-Domiciliary Care,THIRD PARTY PAYMENTS,PRIVATE CONTRACTOR,REVENUE
Walsall Council,http://opendatacommunities.org/id/metropolitan-district-council/walsall ,WC139-484,30.06.2022,ADULT SOCIAL CARE,ADVANCE HEALTH CARE (UK) LTD,21/06/2022,497.70,6541-Domiciliary Care,THIRD PARTY PAYMENTS,PRIVATE CONTRACTOR,REVENUE
Walsall Council,http://opendatacommunities.org/id/metropolitan-district-council/walsall ,WC139-485,30.06.2022,ADULT SOCIAL CARE,ADVANCE HEALTH CARE (UK) LTD,21/06/2022,884.80,6541-Domiciliary Care,THIRD PARTY PAYMENTS,PRIVATE CONTRACTOR,REVENUE
Walsall Council,http://opendatacommunities.org/id/metropolitan-district-council/walsall ,WC139-486,30.06.2022,ADULT SOCIAL CARE,ADVANCE HEALTH CARE (UK) LTD,21/06/2022,497.70,6541-Domiciliary Care,THIRD PARTY PAYMENTS,PRIVATE CONTRACTOR,REVENUE
Walsall Council,http://opendatacommunities.org/id/metropolitan-district-council/walsall ,WC139-487,30.06.2022,ADULT SOCIAL CARE,ADVANCE HEALTH CARE (UK) LTD,21/06/2022,497.70,6541-Domiciliary Care,THIRD PARTY PAYMENTS,PRIVATE CONTRACTOR,REVENUE
Walsall Council,http://opendatacommunities.org/id/metropolitan-district-council/walsall ,WC139-488,30.06.2022,ADULT SOCIAL CARE,ADVANCE HEALTH CARE (UK) LTD,21/06/2022,497.70,6541-Domiciliary Care,THIRD PARTY PAYMENTS,PRIVATE CONTRACTOR,REVENUE
Walsall Council,http://opendatacommunities.org/id/metropolitan-district-council/walsall ,WC139-489,30.06.2022,ADULT SOCIAL CARE,ADVANCE HEALTH CARE (UK) LTD,21/06/2022,331.80,6541-Domiciliary Care,THIRD PARTY PAYMENTS,PRIVATE CONTRACTOR,REVENUE
Walsall Council,http://opendatacommunities.org/id/metropolitan-district-council/walsall ,WC139-490,30.06.2022,ADULT SOCIAL CARE,ADVANCE HEALTH CARE (UK) LTD,21/06/2022,553.00,6541-Domiciliary Care,THIRD PARTY PAYMENTS,PRIVATE CONTRACTOR,REVENUE
Walsall Council,http://opendatacommunities.org/id/metropolitan-district-council/walsall ,WC139-491,30.06.2022,ADULT SOCIAL CARE,ADVANCE HEALTH CARE (UK) LTD,21/06/2022,513.50,6541-Domiciliary Care,THIRD PARTY PAYMENTS,PRIVATE CONTRACTOR,REVENUE
Walsall Council,http://opendatacommunities.org/id/metropolitan-district-council/walsall ,WC139-492,30.06.2022,ADULT SOCIAL CARE,ADVANCE HEALTH CARE (UK) LTD,21/06/2022,497.70,6541-Domiciliary Care,THIRD PARTY PAYMENTS,PRIVATE CONTRACTOR,REVENUE
Walsall Council,http://opendatacommunities.org/id/metropolitan-district-council/walsall ,WC139-493,30.06.2022,ADULT SOCIAL CARE,ADVANCE HEALTH CARE (UK) LTD,21/06/2022,331.80,6541-Domiciliary Care,THIRD PARTY PAYMENTS,PRIVATE CONTRACTOR,REVENUE
Walsall Council,http://opendatacommunities.org/id/metropolitan-district-council/walsall ,WC139-494,30.06.2022,ADULT SOCIAL CARE,ADVANCE HEALTH CARE (UK) LTD,21/06/2022,-553.00,6541-Domiciliary Care,THIRD PARTY PAYMENTS,PRIVATE CONTRACTOR,REVENUE
Walsall Council,http://opendatacommunities.org/id/metropolitan-district-council/walsall ,WC139-495,30.06.2022,ADULT SOCIAL CARE,ADVANCE HEALTH CARE (UK) LTD,21/06/2022,497.70,6541-Domiciliary Care,THIRD PARTY PAYMENTS,PRIVATE CONTRACTOR,REVENUE
Walsall Council,http://opendatacommunities.org/id/metropolitan-district-council/walsall ,WC139-496,30.06.2022,ADULT SOCIAL CARE,ADVANCE HEALTH CARE (UK) LTD,21/06/2022,711.00,6541-Domiciliary Care,THIRD PARTY PAYMENTS,PRIVATE CONTRACTOR,REVENUE
Walsall Council,http://opendatacommunities.org/id/metropolitan-district-council/walsall ,WC139-497,30.06.2022,ADULT SOCIAL CARE,ADVANCE HEALTH CARE (UK) LTD,21/06/2022,884.80,6541-Domiciliary Care,THIRD PARTY PAYMENTS,PRIVATE CONTRACTOR,REVENUE
Walsall Council,http://opendatacommunities.org/id/metropolitan-district-council/walsall ,WC139-498,30.06.2022,ADULT SOCIAL CARE,ADVANCE HEALTH CARE (UK) LTD,21/06/2022,497.70,6541-Domiciliary Care,THIRD PARTY PAYMENTS,PRIVATE CONTRACTOR,REVENUE
Walsall Council,http://opendatacommunities.org/id/metropolitan-district-council/walsall ,WC139-499,30.06.2022,ADULT SOCIAL CARE,ADVANCE HEALTH CARE (UK) LTD,21/06/2022,497.70,6541-Domiciliary Care,THIRD PARTY PAYMENTS,PRIVATE CONTRACTOR,REVENUE
Walsall Council,http://opendatacommunities.org/id/metropolitan-district-council/walsall ,WC139-500,30.06.2022,ADULT SOCIAL CARE,ADVANCE HEALTH CARE (UK) LTD,21/06/2022,442.40,6541-Domiciliary Care,THIRD PARTY PAYMENTS,PRIVATE CONTRACTOR,REVENUE
Walsall Council,http://opendatacommunities.org/id/metropolitan-district-council/walsall ,WC139-501,30.06.2022,ADULT SOCIAL CARE,ADVANCE HEALTH CARE (UK) LTD,21/06/2022,331.94,6541-Domiciliary Care,THIRD PARTY PAYMENTS,PRIVATE CONTRACTOR,REVENUE
Walsall Council,http://opendatacommunities.org/id/metropolitan-district-council/walsall ,WC139-502,30.06.2022,ADULT SOCIAL CARE,ADVANCE HEALTH CARE (UK) LTD,21/06/2022,576.70,6541-Domiciliary Care,THIRD PARTY PAYMENTS,PRIVATE CONTRACTOR,REVENUE
Walsall Council,http://opendatacommunities.org/id/metropolitan-district-council/walsall ,WC139-503,30.06.2022,ADULT SOCIAL CARE,ADVANCE HEALTH CARE (UK) LTD,21/06/2022,497.70,6541-Domiciliary Care,THIRD PARTY PAYMENTS,PRIVATE CONTRACTOR,REVENUE
Walsall Council,http://opendatacommunities.org/id/metropolitan-district-council/walsall ,WC139-504,30.06.2022,ADULT SOCIAL CARE,ADVANCE HEALTH CARE (UK) LTD,21/06/2022,497.70,6541-Domiciliary Care,THIRD PARTY PAYMENTS,PRIVATE CONTRACTOR,REVENUE
Walsall Council,http://opendatacommunities.org/id/metropolitan-district-council/walsall ,WC139-505,30.06.2022,ADULT SOCIAL CARE,ADVANCE HEALTH CARE (UK) LTD,21/06/2022,368.76,6541-Domiciliary Care,THIRD PARTY PAYMENTS,PRIVATE CONTRACTOR,REVENUE
Walsall Council,http://opendatacommunities.org/id/metropolitan-district-council/walsall ,WC139-506,30.06.2022,ADULT SOCIAL CARE,ADVANCE HEALTH CARE (UK) LTD,21/06/2022,553.00,6541-Domiciliary Care,THIRD PARTY PAYMENTS,PRIVATE CONTRACTOR,REVENUE
Walsall Council,http://opendatacommunities.org/id/metropolitan-district-council/walsall ,WC139-507,30.06.2022,ADULT SOCIAL CARE,ADVANCE HEALTH CARE (UK) LTD,21/06/2022,513.50,6541-Domiciliary Care,THIRD PARTY PAYMENTS,PRIVATE CONTRACTOR,REVENUE
Walsall Council,http://opendatacommunities.org/id/metropolitan-district-council/walsall ,WC139-508,30.06.2022,ADULT SOCIAL CARE,ADVANCE HEALTH CARE (UK) LTD,21/06/2022,497.70,6541-Domiciliary Care,THIRD PARTY PAYMENTS,PRIVATE CONTRACTOR,REVENUE
Walsall Council,http://opendatacommunities.org/id/metropolitan-district-council/walsall ,WC139-509,30.06.2022,ADULT SOCIAL CARE,ADVANCE HEALTH CARE (UK) LTD,21/06/2022,497.70,6541-Domiciliary Care,THIRD PARTY PAYMENTS,PRIVATE CONTRACTOR,REVENUE
Walsall Council,http://opendatacommunities.org/id/metropolitan-district-council/walsall ,WC139-510,30.06.2022,ADULT SOCIAL CARE,ADVANCE HEALTH CARE (UK) LTD,21/06/2022,331.80,6541-Domiciliary Care,THIRD PARTY PAYMENTS,PRIVATE CONTRACTOR,REVENUE
Walsall Council,http://opendatacommunities.org/id/metropolitan-district-council/walsall ,WC139-511,30.06.2022,ADULT SOCIAL CARE,ADVANCE HEALTH CARE (UK) LTD,21/06/2022,497.70,6541-Domiciliary Care,THIRD PARTY PAYMENTS,PRIVATE CONTRACTOR,REVENUE
Walsall Council,http://opendatacommunities.org/id/metropolitan-district-council/walsall ,WC139-512,30.06.2022,ADULT SOCIAL CARE,ADVANCE HEALTH CARE (UK) LTD,21/06/2022,497.70,6541-Domiciliary Care,THIRD PARTY PAYMENTS,PRIVATE CONTRACTOR,REVENUE
Walsall Council,http://opendatacommunities.org/id/metropolitan-district-council/walsall ,WC139-513,30.06.2022,ADULT SOCIAL CARE,ADVANCE HEALTH CARE (UK) LTD,21/06/2022,331.80,6541-Domiciliary Care,THIRD PARTY PAYMENTS,PRIVATE CONTRACTOR,REVENUE
Walsall Council,http://opendatacommunities.org/id/metropolitan-district-council/walsall ,WC139-514,30.06.2022,ADULT SOCIAL CARE,ADVANCE HEALTH CARE (UK) LTD,21/06/2022,331.94,6541-Domiciliary Care,THIRD PARTY PAYMENTS,PRIVATE CONTRACTOR,REVENUE
Walsall Council,http://opendatacommunities.org/id/metropolitan-district-council/walsall ,WC139-515,30.06.2022,ADULT SOCIAL CARE,ADVANCE HEALTH CARE (UK) LTD,21/06/2022,497.70,6541-Domiciliary Care,THIRD PARTY PAYMENTS,PRIVATE CONTRACTOR,REVENUE
Walsall Council,http://opendatacommunities.org/id/metropolitan-district-council/walsall ,WC139-516,30.06.2022,ADULT SOCIAL CARE,ADVANCE HEALTH CARE (UK) LTD,21/06/2022,497.70,6541-Domiciliary Care,THIRD PARTY PAYMENTS,PRIVATE CONTRACTOR,REVENUE
Walsall Council,http://opendatacommunities.org/id/metropolitan-district-council/walsall ,WC139-517,30.06.2022,ADULT SOCIAL CARE,ADVANCE HEALTH CARE (UK) LTD,21/06/2022,497.70,6541-Domiciliary Care,THIRD PARTY PAYMENTS,PRIVATE CONTRACTOR,REVENUE
Walsall Council,http://opendatacommunities.org/id/metropolitan-district-council/walsall ,WC139-518,30.06.2022,ADULT SOCIAL CARE,ADVANCE HEALTH CARE (UK) LTD,21/06/2022,497.70,6541-Domiciliary Care,THIRD PARTY PAYMENTS,PRIVATE CONTRACTOR,REVENUE
Walsall Council,http://opendatacommunities.org/id/metropolitan-district-council/walsall ,WC139-519,30.06.2022,ADULT SOCIAL CARE,ADVANCE HEALTH CARE (UK) LTD,21/06/2022,553.00,6541-Domiciliary Care,THIRD PARTY PAYMENTS,PRIVATE CONTRACTOR,REVENUE
Walsall Council,http://opendatacommunities.org/id/metropolitan-district-council/walsall ,WC139-520,30.06.2022,ADULT SOCIAL CARE,ADVANCE HEALTH CARE (UK) LTD,21/06/2022,553.00,6541-Domiciliary Care,THIRD PARTY PAYMENTS,PRIVATE CONTRACTOR,REVENUE
Walsall Council,http://opendatacommunities.org/id/metropolitan-district-council/walsall ,WC139-521,30.06.2022,ADULT SOCIAL CARE,ADVANCE HEALTH CARE (UK) LTD,21/06/2022,490.40,6541-Domiciliary Care,THIRD PARTY PAYMENTS,PRIVATE CONTRACTOR,REVENUE
Walsall Council,http://opendatacommunities.org/id/metropolitan-district-council/walsall ,WC139-522,30.06.2022,ADULT SOCIAL CARE,ADVANCE HEALTH CARE (UK) LTD,21/06/2022,497.70,6541-Domiciliary Care,THIRD PARTY PAYMENTS,PRIVATE CONTRACTOR,REVENUE
Walsall Council,http://opendatacommunities.org/id/metropolitan-district-council/walsall ,WC139-523,30.06.2022,ADULT SOCIAL CARE,ADVANCE HEALTH CARE (UK) LTD,21/06/2022,845.30,6541-Domiciliary Care,THIRD PARTY PAYMENTS,PRIVATE CONTRACTOR,REVENUE
Walsall Council,http://opendatacommunities.org/id/metropolitan-district-council/walsall ,WC139-524,30.06.2022,ADULT SOCIAL CARE,ADVANCE HEALTH CARE (UK) LTD,21/06/2022,697.88,6541-Domiciliary Care,THIRD PARTY PAYMENTS,PRIVATE CONTRACTOR,REVENUE
Walsall Council,http://opendatacommunities.org/id/metropolitan-district-council/walsall ,WC139-525,30.06.2022,ADULT SOCIAL CARE,ADVANCE HEALTH CARE (UK) LTD,21/06/2022,497.70,6541-Domiciliary Care,THIRD PARTY PAYMENTS,PRIVATE CONTRACTOR,REVENUE
Walsall Council,http://opendatacommunities.org/id/metropolitan-district-council/walsall ,WC139-526,30.06.2022,ADULT SOCIAL CARE,ADVANCE HEALTH CARE (UK) LTD,21/06/2022,387.10,6541-Domiciliary Care,THIRD PARTY PAYMENTS,PRIVATE CONTRACTOR,REVENUE
Walsall Council,http://opendatacommunities.org/id/metropolitan-district-council/walsall ,WC139-527,30.06.2022,ADULT SOCIAL CARE,ADVANCE HEALTH CARE (UK) LTD,21/06/2022,276.50,6541-Domiciliary Care,THIRD PARTY PAYMENTS,PRIVATE CONTRACTOR,REVENUE
Walsall Council,http://opendatacommunities.org/id/metropolitan-district-council/walsall ,WC139-528,30.06.2022,ADULT SOCIAL CARE,ADVANCE HEALTH CARE (UK) LTD,21/06/2022,497.70,6541-Domiciliary Care,THIRD PARTY PAYMENTS,PRIVATE CONTRACTOR,REVENUE
Walsall Council,http://opendatacommunities.org/id/metropolitan-district-council/walsall ,WC139-529,30.06.2022,ADULT SOCIAL CARE,ADVANCE HEALTH CARE (UK) LTD,21/06/2022,460.88,6541-Domiciliary Care,THIRD PARTY PAYMENTS,PRIVATE CONTRACTOR,REVENUE
Walsall Council,http://opendatacommunities.org/id/metropolitan-district-council/walsall ,WC139-530,30.06.2022,ADULT SOCIAL CARE,ADVANCE HEALTH CARE (UK) LTD,29/06/2022,"1,216.60",6541-Domiciliary Care,THIRD PARTY PAYMENTS,PRIVATE CONTRACTOR,REVENUE
Walsall Council,http://opendatacommunities.org/id/metropolitan-district-council/walsall ,WC139-531,30.06.2022,ADULT SOCIAL CARE,ADVANCE HEALTH CARE (UK) LTD,29/06/2022,549.05,6541-Domiciliary Care,THIRD PARTY PAYMENTS,PRIVATE CONTRACTOR,REVENUE
Walsall Council,http://opendatacommunities.org/id/metropolitan-district-council/walsall ,WC139-532,30.06.2022,ADULT SOCIAL CARE,ADVANCE HEALTH CARE (UK) LTD,29/06/2022,"1,390.40",6541-Domiciliary Care,THIRD PARTY PAYMENTS,PRIVATE CONTRACTOR,REVENUE
Walsall Council,http://opendatacommunities.org/id/metropolitan-district-council/walsall ,WC139-533,30.06.2022,ADULT SOCIAL CARE,ADVANCE HEALTH CARE (UK) LTD,29/06/2022,"1,990.80",6541-Domiciliary Care,THIRD PARTY PAYMENTS,PRIVATE CONTRACTOR,REVENUE
Walsall Council,http://opendatacommunities.org/id/metropolitan-district-council/walsall ,WC139-534,30.06.2022,ADULT SOCIAL CARE,ADVANCE HEALTH CARE (UK) LTD,29/06/2022,379.20,6541-Domiciliary Care,THIRD PARTY PAYMENTS,PRIVATE CONTRACTOR,REVENUE
Walsall Council,http://opendatacommunities.org/id/metropolitan-district-council/walsall ,WC139-535,30.06.2022,ADULT SOCIAL CARE,ADVANCE HEALTH CARE (UK) LTD,29/06/2022,296.25,6541-Domiciliary Care,THIRD PARTY PAYMENTS,PRIVATE CONTRACTOR,REVENUE
Walsall Council,http://opendatacommunities.org/id/metropolitan-district-council/walsall ,WC139-536,30.06.2022,ADULT SOCIAL CARE,ADVANCE HEALTH CARE (UK) LTD,29/06/2022,"1,437.80",6541-Domiciliary Care,THIRD PARTY PAYMENTS,PRIVATE CONTRACTOR,REVENUE
Walsall Council,http://opendatacommunities.org/id/metropolitan-district-council/walsall ,WC139-537,30.06.2022,ADULT SOCIAL CARE,ADVANCE HEALTH CARE (UK) LTD,29/06/2022,331.80,6541-Domiciliary Care,THIRD PARTY PAYMENTS,PRIVATE CONTRACTOR,REVENUE
Walsall Council,http://opendatacommunities.org/id/metropolitan-district-council/walsall ,WC139-538,30.06.2022,ADULT SOCIAL CARE,ADVANCE HEALTH CARE (UK) LTD,29/06/2022,"1,501.00",6541-Domiciliary Care,THIRD PARTY PAYMENTS,PRIVATE CONTRACTOR,REVENUE
Walsall Council,http://opendatacommunities.org/id/metropolitan-district-council/walsall ,WC139-539,30.06.2022,ADULT SOCIAL CARE,ADVANCE HEALTH CARE (UK) LTD,29/06/2022,323.90,6541-Domiciliary Care,THIRD PARTY PAYMENTS,PRIVATE CONTRACTOR,REVENUE
Walsall Council,http://opendatacommunities.org/id/metropolitan-district-council/walsall ,WC139-540,30.06.2022,ADULT SOCIAL CARE,ADVANCE HEALTH CARE (UK) LTD,29/06/2022,426.60,6541-Domiciliary Care,THIRD PARTY PAYMENTS,PRIVATE CONTRACTOR,REVENUE
Walsall Council,http://opendatacommunities.org/id/metropolitan-district-council/walsall ,WC139-541,30.06.2022,CHILDRENS,ADVENTURELAND DAY NURSERY,14/06/2022,640.00,1184-Transfer Payments-Other Schoolchildren/Student Related Items,TRANSFER PAYMENTS,SCHOOLCHILDREN/STUDENTS,REVENUE
Walsall Council,http://opendatacommunities.org/id/metropolitan-district-council/walsall ,WC139-542,30.06.2022,CHILDRENS,ADVENTURELAND DAY NURSERY,14/06/2022,"1,280.00",1184-Transfer Payments-Other Schoolchildren/Student Related Items,TRANSFER PAYMENTS,SCHOOLCHILDREN/STUDENTS,REVENUE
Walsall Council,http://opendatacommunities.org/id/metropolitan-district-council/walsall ,WC139-543,30.06.2022,CHILDRENS,ADVENTURELAND DAY NURSERY,24/06/2022,"5,426.46",1220-Top Up Funding -Grants to Schools,SUPPLIES & SERVICES,GRANTS (EXP) & SUBSCRIPTIONS,REVENUE
Walsall Council,http://opendatacommunities.org/id/metropolitan-district-council/walsall ,WC139-544,30.06.2022,ADULT SOCIAL CARE,ADVINIA CARE HOMES LTD - HAMMERWICH HALL CARE HOME,07/06/2022,"2,366.04",6541-Residential EMI,THIRD PARTY PAYMENTS,PRIVATE CONTRACTOR,REVENUE
Walsall Council,http://opendatacommunities.org/id/metropolitan-district-council/walsall ,WC139-545,30.06.2022,ADULT SOCIAL CARE,ADVINIA CARE HOMES LTD - HAMMERWICH HALL CARE HOME,07/06/2022,"2,095.40",6541-Residential,THIRD PARTY PAYMENTS,PRIVATE CONTRACTOR,REVENUE
Walsall Council,http://opendatacommunities.org/id/metropolitan-district-council/walsall ,WC139-546,30.06.2022,ADULT SOCIAL CARE,AESOP ARTS AND SOCIETY LTD,06/06/2022,"6,192.50",6420-Consultant Fees,SUPPLIES & SERVICES,SERVICES,REVENUE
Walsall Council,http://opendatacommunities.org/id/metropolitan-district-council/walsall ,WC139-547,30.06.2022,ADULT SOCIAL CARE,AFGHAN COMMUNITY & WELFARE CENTRE,29/06/2022,721.00,6420-Professional Fees & Services,SUPPLIES & SERVICES,SERVICES,REVENUE
Walsall Council,http://opendatacommunities.org/id/metropolitan-district-council/walsall ,WC139-548,30.06.2022,CHILDRENS,REDACTED,01/06/2022,526.76,6223-Foster Carers Maintenance Allowance,TRANSFER PAYMENTS,CHILDREN SOCIAL SERVICES CLIENT,REVENUE
Walsall Council,http://opendatacommunities.org/id/metropolitan-district-council/walsall ,WC139-549,30.06.2022,CHILDRENS,REDACTED,01/06/2022,408.00,6223-Internal Foster Carers-Carer Fees,TRANSFER PAYMENTS,CHILDREN SOCIAL SERVICES CLIENT,REVENUE
Walsall Council,http://opendatacommunities.org/id/metropolitan-district-council/walsall ,WC139-550,30.06.2022,CHILDRENS,REDACTED,01/06/2022,584.00,6223-Foster Carers Maintenance Allowance,TRANSFER PAYMENTS,CHILDREN SOCIAL SERVICES CLIENT,REVENUE
Walsall Council,http://opendatacommunities.org/id/metropolitan-district-council/walsall ,WC139-551,30.06.2022,RESOURCES AND TRANSFORMATION,AGILE APPLICATIONS LIMITED,22/06/2022,"13,500.00",6623-Computer Equipment,SUPPLIES & SERVICES,COMMUNICATIONS & COMPUTING,REVENUE
Walsall Council,http://opendatacommunities.org/id/metropolitan-district-council/walsall ,WC139-552,30.06.2022,RESOURCES AND TRANSFORMATION,AGILISYS LTD,01/06/2022,"72,683.81",6626-Consultant Fees,SUPPLIES & SERVICES,SERVICES,REVENUE
Walsall Council,http://opendatacommunities.org/id/metropolitan-district-council/walsall ,WC139-553,30.06.2022,RESOURCES AND TRANSFORMATION CAPITAL,AGILISYS LTD,16/06/2022,"3,881.39",7300-Consultants Fees,CAPITAL,"NEW CONSTRUCTION,CONVERSION & RENOVATION",CAPITAL
Walsall Council,http://opendatacommunities.org/id/metropolitan-district-council/walsall ,WC139-554,30.06.2022,RESOURCES AND TRANSFORMATION CAPITAL,AGILISYS LTD,07/06/2022,"3,881.39",7300-Consultants Fees,CAPITAL,"NEW CONSTRUCTION,CONVERSION & RENOVATION",CAPITAL
Walsall Council,http://opendatacommunities.org/id/metropolitan-district-council/walsall ,WC139-555,30.06.2022,RESOURCES AND TRANSFORMATION CAPITAL,AGILISYS LTD,14/06/2022,"12,716.00",7300-Consultants Fees,CAPITAL,"NEW CONSTRUCTION,CONVERSION & RENOVATION",CAPITAL
Walsall Council,http://opendatacommunities.org/id/metropolitan-district-council/walsall ,WC139-556,30.06.2022,RESOURCES AND TRANSFORMATION CAPITAL,AGILISYS LTD,16/06/2022,"-4,657.67",7300-Consultants Fees,CAPITAL,"NEW CONSTRUCTION,CONVERSION & RENOVATION",CAPITAL
Walsall Council,http://opendatacommunities.org/id/metropolitan-district-council/walsall ,WC139-557,30.06.2022,RESOURCES AND TRANSFORMATION CAPITAL,AGILISYS LTD,24/06/2022,"10,072.50",7300-Consultants Fees,CAPITAL,"NEW CONSTRUCTION,CONVERSION & RENOVATION",CAPITAL
Walsall Council,http://opendatacommunities.org/id/metropolitan-district-council/walsall ,WC139-558,30.06.2022,RESOURCES AND TRANSFORMATION CAPITAL,AGILISYS LTD,21/06/2022,"-120,000.00",7300-Consultants Fees,CAPITAL,"NEW CONSTRUCTION,CONVERSION & RENOVATION",CAPITAL
Walsall Council,http://opendatacommunities.org/id/metropolitan-district-council/walsall ,WC139-559,30.06.2022,RESOURCES AND TRANSFORMATION CAPITAL,AGILISYS LTD,21/06/2022,"120,000.00",7300-Consultants Fees,CAPITAL,"NEW CONSTRUCTION,CONVERSION & RENOVATION",CAPITAL
Walsall Council,http://opendatacommunities.org/id/metropolitan-district-council/walsall ,WC139-560,30.06.2022,RESOURCES AND TRANSFORMATION,AGILISYS LTD,27/06/2022,"82,676.24",6626-Consultant Fees,SUPPLIES & SERVICES,SERVICES,REVENUE
Walsall Council,http://opendatacommunities.org/id/metropolitan-district-council/walsall ,WC139-561,30.06.2022,"ECONOMY, ENVIRONMENT & COMMUNITIES",AGROVISTA UK LTD,07/06/2022,"1,443.96",6410-Materials,SUPPLIES & SERVICES,EQUIPMENT FURNITURE & MATERIALS,REVENUE
Walsall Council,http://opendatacommunities.org/id/metropolitan-district-council/walsall ,WC139-562,30.06.2022,"ECONOMY, ENVIRONMENT & COMMUNITIES",AGROVISTA UK LTD,28/06/2022,"2,071.60",6410-Materials,SUPPLIES & SERVICES,EQUIPMENT FURNITURE & MATERIALS,REVENUE
Walsall Council,http://opendatacommunities.org/id/metropolitan-district-council/walsall ,WC139-563,30.06.2022,"ECONOMY, ENVIRONMENT & COMMUNITIES",AGROVISTA UK LTD,28/06/2022,"2,475.00",6410-Materials,SUPPLIES & SERVICES,EQUIPMENT FURNITURE & MATERIALS,REVENUE
Walsall Council,http://opendatacommunities.org/id/metropolitan-district-council/walsall ,WC139-564,30.06.2022,ADULT SOCIAL CARE,REDACTED,08/06/2022,"3,146.40",6541-Direct Payment,THIRD PARTY PAYMENTS,PRIVATE CONTRACTOR,REVENUE
Walsall Council,http://opendatacommunities.org/id/metropolitan-district-council/walsall ,WC139-565,30.06.2022,"ECONOMY, ENVIRONMENT & COMMUNITIES",AKD SOLUTIONS LTD,08/06/2022,"1,800.00",6430-Grants to Other Orgs,SUPPLIES & SERVICES,GRANTS (EXP) & SUBSCRIPTIONS,REVENUE
Walsall Council,http://opendatacommunities.org/id/metropolitan-district-council/walsall ,WC139-566,30.06.2022,CHILDRENS,ALAN SAVILL T/A INSPIRED TRAINERS,24/06/2022,360.00,6211-External Training,INDIRECT EMPLOYEES,EXTERNAL TRAINING,REVENUE
Walsall Council,http://opendatacommunities.org/id/metropolitan-district-council/walsall ,WC139-567,30.06.2022,CHILDRENS,ALASDAIR CANT & ASSOCIATES LIMITED,28/06/2022,"5,211.00",6220-Professional Fees & Services,SUPPLIES & SERVICES,SERVICES,REVENUE
Walsall Council,http://opendatacommunities.org/id/metropolitan-district-council/walsall ,WC139-568,30.06.2022,"ECONOMY, ENVIRONMENT & COMMUNITIES",ALBERT JAGGER LTD,01/06/2022,349.36,6410-Materials,SUPPLIES & SERVICES,EQUIPMENT FURNITURE & MATERIALS,REVENUE
Walsall Council,http://opendatacommunities.org/id/metropolitan-district-council/walsall ,WC139-569,30.06.2022,CHILDRENS,ALDRIDGE & BARONS LIMITED,21/06/2022,"1,848.00",6241-Hire of Vehicle with Driver,TRANSPORT,DIRECT TRANSPORT COSTS,REVENUE
Walsall Council,http://opendatacommunities.org/id/metropolitan-district-council/walsall ,WC139-570,30.06.2022,CHILDRENS,ALDRIDGE & BARONS LIMITED,21/06/2022,"1,610.70",6241-Hire of Vehicle with Driver,TRANSPORT,DIRECT TRANSPORT COSTS,REVENUE
Walsall Council,http://opendatacommunities.org/id/metropolitan-district-council/walsall ,WC139-571,30.06.2022,CHILDRENS,ALDRIDGE & BARONS LIMITED,21/06/2022,"2,160.00",6241-Hire of Vehicle with Driver,TRANSPORT,DIRECT TRANSPORT COSTS,REVENUE
Walsall Council,http://opendatacommunities.org/id/metropolitan-district-council/walsall ,WC139-572,30.06.2022,CHILDRENS,ALDRIDGE & BARONS LIMITED,21/06/2022,281.40,6241-Hire of Vehicle with Driver,TRANSPORT,DIRECT TRANSPORT COSTS,REVENUE
Walsall Council,http://opendatacommunities.org/id/metropolitan-district-council/walsall ,WC139-573,30.06.2022,CHILDRENS,ALDRIDGE & BARONS LIMITED,21/06/2022,"1,448.55",6241-Hire of Vehicle with Driver,TRANSPORT,DIRECT TRANSPORT COSTS,REVENUE
Walsall Council,http://opendatacommunities.org/id/metropolitan-district-council/walsall ,WC139-574,30.06.2022,CHILDRENS,ALDRIDGE & BARONS LIMITED,21/06/2022,"1,451.25",6241-Hire of Vehicle with Driver,TRANSPORT,DIRECT TRANSPORT COSTS,REVENUE
Walsall Council,http://opendatacommunities.org/id/metropolitan-district-council/walsall ,WC139-575,30.06.2022,CHILDRENS,ALDRIDGE & BARONS LIMITED,21/06/2022,"1,770.00",6241-Hire of Vehicle with Driver,TRANSPORT,DIRECT TRANSPORT COSTS,REVENUE
Walsall Council,http://opendatacommunities.org/id/metropolitan-district-council/walsall ,WC139-576,30.06.2022,CHILDRENS,ALDRIDGE & BARONS LIMITED,21/06/2022,720.00,6241-Hire of Vehicle with Driver,TRANSPORT,DIRECT TRANSPORT COSTS,REVENUE
Walsall Council,http://opendatacommunities.org/id/metropolitan-district-council/walsall ,WC139-577,30.06.2022,CHILDRENS,ALDRIDGE & BARONS LIMITED,21/06/2022,"1,350.00",6241-Hire of Vehicle with Driver,TRANSPORT,DIRECT TRANSPORT COSTS,REVENUE
Walsall Council,http://opendatacommunities.org/id/metropolitan-district-council/walsall ,WC139-578,30.06.2022,CHILDRENS,ALDRIDGE & BARONS LIMITED,21/06/2022,"1,287.75",6241-Hire of Vehicle with Driver,TRANSPORT,DIRECT TRANSPORT COSTS,REVENUE
Walsall Council,http://opendatacommunities.org/id/metropolitan-district-council/walsall ,WC139-579,30.06.2022,CHILDRENS,ALDRIDGE & BARONS LIMITED,21/06/2022,"1,681.50",6241-Hire of Vehicle with Driver,TRANSPORT,DIRECT TRANSPORT COSTS,REVENUE
Walsall Council,http://opendatacommunities.org/id/metropolitan-district-council/walsall ,WC139-580,30.06.2022,CHILDRENS,ALDRIDGE & BARONS LIMITED,21/06/2022,"1,840.50",6241-Hire of Vehicle with Driver,TRANSPORT,DIRECT TRANSPORT COSTS,REVENUE
Walsall Council,http://opendatacommunities.org/id/metropolitan-district-council/walsall ,WC139-581,30.06.2022,CHILDRENS,ALDRIDGE & BARONS LIMITED,21/06/2022,"2,084.40",6241-Hire of Vehicle with Driver,TRANSPORT,DIRECT TRANSPORT COSTS,REVENUE
Walsall Council,http://opendatacommunities.org/id/metropolitan-district-council/walsall ,WC139-582,30.06.2022,CHILDRENS,ALDRIDGE & BARONS LIMITED,21/06/2022,"2,250.00",6241-Hire of Vehicle with Driver,TRANSPORT,DIRECT TRANSPORT COSTS,REVENUE
Walsall Council,http://opendatacommunities.org/id/metropolitan-district-council/walsall ,WC139-583,30.06.2022,CHILDRENS,ALDRIDGE & BARONS LIMITED,21/06/2022,"1,459.50",6241-Hire of Vehicle with Driver,TRANSPORT,DIRECT TRANSPORT COSTS,REVENUE
Walsall Council,http://opendatacommunities.org/id/metropolitan-district-council/walsall ,WC139-584,30.06.2022,CHILDRENS,ALDRIDGE & BARONS LIMITED,21/06/2022,"1,650.00",6241-Hire of Vehicle with Driver,TRANSPORT,DIRECT TRANSPORT COSTS,REVENUE
Walsall Council,http://opendatacommunities.org/id/metropolitan-district-council/walsall ,WC139-585,30.06.2022,CHILDRENS,ALDRIDGE & BARONS LIMITED,21/06/2022,"1,810.50",6241-Hire of Vehicle with Driver,TRANSPORT,DIRECT TRANSPORT COSTS,REVENUE
Walsall Council,http://opendatacommunities.org/id/metropolitan-district-council/walsall ,WC139-586,30.06.2022,CHILDRENS,ALDRIDGE & BARONS LIMITED,21/06/2022,522.00,6241-Hire of Vehicle with Driver,TRANSPORT,DIRECT TRANSPORT COSTS,REVENUE
Walsall Council,http://opendatacommunities.org/id/metropolitan-district-council/walsall ,WC139-587,30.06.2022,CHILDRENS,ALDRIDGE & BARONS LIMITED,21/06/2022,"1,674.00",6241-Hire of Vehicle with Driver,TRANSPORT,DIRECT TRANSPORT COSTS,REVENUE
Walsall Council,http://opendatacommunities.org/id/metropolitan-district-council/walsall ,WC139-588,30.06.2022,CHILDRENS,ALDRIDGE & BARONS LIMITED,21/06/2022,"1,560.00",6241-Hire of Vehicle with Driver,TRANSPORT,DIRECT TRANSPORT COSTS,REVENUE
Walsall Council,http://opendatacommunities.org/id/metropolitan-district-council/walsall ,WC139-589,30.06.2022,CHILDRENS,ALDRIDGE & BARONS LIMITED,21/06/2022,"1,597.50",6241-Hire of Vehicle with Driver,TRANSPORT,DIRECT TRANSPORT COSTS,REVENUE
Walsall Council,http://opendatacommunities.org/id/metropolitan-district-council/walsall ,WC139-590,30.06.2022,CHILDRENS,ALDRIDGE & BARONS LIMITED,21/06/2022,"1,263.00",6241-Hire of Vehicle with Driver,TRANSPORT,DIRECT TRANSPORT COSTS,REVENUE
Walsall Council,http://opendatacommunities.org/id/metropolitan-district-council/walsall ,WC139-591,30.06.2022,CHILDRENS,ALDRIDGE & BARONS LIMITED,21/06/2022,"1,950.00",6241-Hire of Vehicle with Driver,TRANSPORT,DIRECT TRANSPORT COSTS,REVENUE
Walsall Council,http://opendatacommunities.org/id/metropolitan-district-council/walsall ,WC139-592,30.06.2022,CHILDRENS,ALDRIDGE & BARONS LIMITED,21/06/2022,"1,181.70",6241-Hire of Vehicle with Driver,TRANSPORT,DIRECT TRANSPORT COSTS,REVENUE
Walsall Council,http://opendatacommunities.org/id/metropolitan-district-council/walsall ,WC139-593,30.06.2022,CHILDRENS,ALDRIDGE & BARONS LIMITED,21/06/2022,"1,433.65",6241-Hire of Vehicle with Driver,TRANSPORT,DIRECT TRANSPORT COSTS,REVENUE
Walsall Council,http://opendatacommunities.org/id/metropolitan-district-council/walsall ,WC139-594,30.06.2022,CHILDRENS,ALDRIDGE & BARONS LIMITED,21/06/2022,"1,350.00",6241-Hire of Vehicle with Driver,TRANSPORT,DIRECT TRANSPORT COSTS,REVENUE
Walsall Council,http://opendatacommunities.org/id/metropolitan-district-council/walsall ,WC139-595,30.06.2022,CHILDRENS,ALDRIDGE & BARONS LIMITED,21/06/2022,"1,435.50",6241-Hire of Vehicle with Driver,TRANSPORT,DIRECT TRANSPORT COSTS,REVENUE
Walsall Council,http://opendatacommunities.org/id/metropolitan-district-council/walsall ,WC139-596,30.06.2022,CHILDRENS,ALDRIDGE & BARONS LIMITED,21/06/2022,"1,560.00",6241-Hire of Vehicle with Driver,TRANSPORT,DIRECT TRANSPORT COSTS,REVENUE
Walsall Council,http://opendatacommunities.org/id/metropolitan-district-council/walsall ,WC139-597,30.06.2022,CHILDRENS,ALDRIDGE & BARONS LIMITED,21/06/2022,"1,488.75",6241-Hire of Vehicle with Driver,TRANSPORT,DIRECT TRANSPORT COSTS,REVENUE
Walsall Council,http://opendatacommunities.org/id/metropolitan-district-council/walsall ,WC139-598,30.06.2022,CHILDRENS,ALDRIDGE & BARONS LIMITED,21/06/2022,"1,100.00",6241-Hire of Vehicle with Driver,TRANSPORT,DIRECT TRANSPORT COSTS,REVENUE
Walsall Council,http://opendatacommunities.org/id/metropolitan-district-council/walsall ,WC139-599,30.06.2022,CHILDRENS,ALDRIDGE & BARONS LIMITED,21/06/2022,297.00,6241-Hire of Vehicle with Driver,TRANSPORT,DIRECT TRANSPORT COSTS,REVENUE
Walsall Council,http://opendatacommunities.org/id/metropolitan-district-council/walsall ,WC139-600,30.06.2022,CHILDRENS,ALDRIDGE & BARONS LIMITED,21/06/2022,"1,350.00",6241-Hire of Vehicle with Driver,TRANSPORT,DIRECT TRANSPORT COSTS,REVENUE
Walsall Council,http://opendatacommunities.org/id/metropolitan-district-council/walsall ,WC139-601,30.06.2022,CHILDRENS,ALDRIDGE & BARONS LIMITED,21/06/2022,"1,650.00",6241-Hire of Vehicle with Driver,TRANSPORT,DIRECT TRANSPORT COSTS,REVENUE
Walsall Council,http://opendatacommunities.org/id/metropolitan-district-council/walsall ,WC139-602,30.06.2022,CHILDRENS,ALDRIDGE & BARONS LIMITED,21/06/2022,"1,230.00",6241-Hire of Vehicle with Driver,TRANSPORT,DIRECT TRANSPORT COSTS,REVENUE
Walsall Council,http://opendatacommunities.org/id/metropolitan-district-council/walsall ,WC139-603,30.06.2022,ADULT SOCIAL CARE,REDACTED,08/06/2022,"1,896.00",6541-Direct Payment,THIRD PARTY PAYMENTS,PRIVATE CONTRACTOR,REVENUE
Walsall Council,http://opendatacommunities.org/id/metropolitan-district-council/walsall ,WC139-604,30.06.2022,ADULT SOCIAL CARE,ALEXANDRA HOUSE CARE SERVICES LTD T/A STONEBRIDGE NURSING HOME,07/06/2022,"7,434.72",6541-Residential,THIRD PARTY PAYMENTS,PRIVATE CONTRACTOR,REVENUE
Walsall Council,http://opendatacommunities.org/id/metropolitan-district-council/walsall ,WC139-605,30.06.2022,ADULT SOCIAL CARE,REDACTED,08/06/2022,"1,214.40",6541-Direct Payment,THIRD PARTY PAYMENTS,PRIVATE CONTRACTOR,REVENUE
Walsall Council,http://opendatacommunities.org/id/metropolitan-district-council/walsall ,WC139-606,30.06.2022,CHILDRENS,REDACTED,01/06/2022,318.68,6223-Special Guardianship Orders,TRANSFER PAYMENTS,CHILDREN SOCIAL SERVICES CLIENT,REVENUE
Walsall Council,http://opendatacommunities.org/id/metropolitan-district-council/walsall ,WC139-607,30.06.2022,CHILDRENS,REDACTED,29/06/2022,318.68,6223-Special Guardianship Orders,TRANSFER PAYMENTS,CHILDREN SOCIAL SERVICES CLIENT,REVENUE
Walsall Council,http://opendatacommunities.org/id/metropolitan-district-council/walsall ,WC139-608,30.06.2022,ECONOMY & ENVIRONMENT CAPITAL,ALLIANCE LEISURE SERVICES LTD,29/06/2022,"84,239.73",7200-Site Works Contractors,CAPITAL,"NEW CONSTRUCTION,CONVERSION & RENOVATION",CAPITAL
Walsall Council,http://opendatacommunities.org/id/metropolitan-district-council/walsall ,WC139-609,30.06.2022,"ECONOMY, ENVIRONMENT & COMMUNITIES",ALLIANCE LEISURE SERVICES LTD,23/06/2022,"-110,587.00",6413-Materials,SUPPLIES & SERVICES,EQUIPMENT FURNITURE & MATERIALS,REVENUE
Walsall Council,http://opendatacommunities.org/id/metropolitan-district-council/walsall ,WC139-610,30.06.2022,"ECONOMY, ENVIRONMENT & COMMUNITIES",ALLIANCE LEISURE SERVICES LTD,23/06/2022,"110,587.00",6413-Materials,SUPPLIES & SERVICES,EQUIPMENT FURNITURE & MATERIALS,REVENUE
Walsall Council,http://opendatacommunities.org/id/metropolitan-district-council/walsall ,WC139-611,30.06.2022,ADULT SOCIAL CARE,ALMA COURT,07/06/2022,"4,805.72",6541-Nursing EMI,THIRD PARTY PAYMENTS,PRIVATE CONTRACTOR,REVENUE
Walsall Council,http://opendatacommunities.org/id/metropolitan-district-council/walsall ,WC139-612,30.06.2022,ADULT SOCIAL CARE,ALMA COURT,07/06/2022,"6,718.40",6541-Residential,THIRD PARTY PAYMENTS,PRIVATE CONTRACTOR,REVENUE
Walsall Council,http://opendatacommunities.org/id/metropolitan-district-council/walsall ,WC139-613,30.06.2022,ADULT SOCIAL CARE,ALMA COURT,07/06/2022,"4,263.00",6541-Residential,THIRD PARTY PAYMENTS,PRIVATE CONTRACTOR,REVENUE
Walsall Council,http://opendatacommunities.org/id/metropolitan-district-council/walsall ,WC139-614,30.06.2022,ADULT SOCIAL CARE,ALMA COURT,07/06/2022,"3,667.80",6541-Nursing EMI,THIRD PARTY PAYMENTS,PRIVATE CONTRACTOR,REVENUE
Walsall Council,http://opendatacommunities.org/id/metropolitan-district-council/walsall ,WC139-615,30.06.2022,"ECONOMY, ENVIRONMENT & COMMUNITIES",ALMOZENE NURSERY & CHILDRENS CENTRE,01/06/2022,"1,069.98",6313-Grants to Other Orgs,SUPPLIES & SERVICES,GRANTS (EXP) & SUBSCRIPTIONS,REVENUE
Walsall Council,http://opendatacommunities.org/id/metropolitan-district-council/walsall ,WC139-616,30.06.2022,"ECONOMY, ENVIRONMENT & COMMUNITIES",ALMOZENE NURSERY & CHILDRENS CENTRE,09/06/2022,851.37,6313-Grants to Other Orgs,SUPPLIES & SERVICES,GRANTS (EXP) & SUBSCRIPTIONS,REVENUE
Walsall Council,http://opendatacommunities.org/id/metropolitan-district-council/walsall ,WC139-617,30.06.2022,"ECONOMY, ENVIRONMENT & COMMUNITIES",ALMOZENE NURSERY & CHILDRENS CENTRE,29/06/2022,459.00,6313-Grants to Other Orgs,SUPPLIES & SERVICES,GRANTS (EXP) & SUBSCRIPTIONS,REVENUE
Walsall Council,http://opendatacommunities.org/id/metropolitan-district-council/walsall ,WC139-618,30.06.2022,ADULT SOCIAL CARE,ALPHA HEALTH CARE LTD,07/06/2022,"2,889.52",6541-Residential EMI,THIRD PARTY PAYMENTS,PRIVATE CONTRACTOR,REVENUE
Walsall Council,http://opendatacommunities.org/id/metropolitan-district-council/walsall ,WC139-619,30.06.2022,ADULT SOCIAL CARE,ALPHA HEALTH CARE LTD,07/06/2022,"2,763.80",6541-Nursing EMI,THIRD PARTY PAYMENTS,PRIVATE CONTRACTOR,REVENUE
Walsall Council,http://opendatacommunities.org/id/metropolitan-district-council/walsall ,WC139-620,30.06.2022,ADULT SOCIAL CARE,ALPHA HEALTH CARE LTD,07/06/2022,"3,132.12",6541-Nursing EMI,THIRD PARTY PAYMENTS,PRIVATE CONTRACTOR,REVENUE
Walsall Council,http://opendatacommunities.org/id/metropolitan-district-council/walsall ,WC139-621,30.06.2022,ADULT SOCIAL CARE,ALPHA HEALTH CARE LTD,07/06/2022,"7,105.00",6541-Residential,THIRD PARTY PAYMENTS,PRIVATE CONTRACTOR,REVENUE
Walsall Council,http://opendatacommunities.org/id/metropolitan-district-council/walsall ,WC139-622,30.06.2022,ADULT SOCIAL CARE,ALPHA HEALTH CARE LTD,07/06/2022,"3,132.12",6541-Nursing EMI,THIRD PARTY PAYMENTS,PRIVATE CONTRACTOR,REVENUE
Walsall Council,http://opendatacommunities.org/id/metropolitan-district-council/walsall ,WC139-623,30.06.2022,ADULT SOCIAL CARE,ALPHA HEALTH CARE LTD,07/06/2022,"5,740.84",6541-Residential,THIRD PARTY PAYMENTS,PRIVATE CONTRACTOR,REVENUE
Walsall Council,http://opendatacommunities.org/id/metropolitan-district-council/walsall ,WC139-624,30.06.2022,ADULT SOCIAL CARE,ALPHA HEALTH CARE LTD,07/06/2022,"2,763.80",6541-Nursing EMI,THIRD PARTY PAYMENTS,PRIVATE CONTRACTOR,REVENUE
Walsall Council,http://opendatacommunities.org/id/metropolitan-district-council/walsall ,WC139-625,30.06.2022,ADULT SOCIAL CARE,ALPHA HEALTH CARE LTD,07/06/2022,"7,067.80",6541-Nursing EMI,THIRD PARTY PAYMENTS,PRIVATE CONTRACTOR,REVENUE
Walsall Council,http://opendatacommunities.org/id/metropolitan-district-council/walsall ,WC139-626,30.06.2022,ADULT SOCIAL CARE,ALPHA HEALTH CARE LTD,07/06/2022,"3,374.96",6541-Residential EMI,THIRD PARTY PAYMENTS,PRIVATE CONTRACTOR,REVENUE
Walsall Council,http://opendatacommunities.org/id/metropolitan-district-council/walsall ,WC139-627,30.06.2022,ADULT SOCIAL CARE,ALPHA HEALTH CARE LTD,07/06/2022,"2,366.04",6541-Residential EMI,THIRD PARTY PAYMENTS,PRIVATE CONTRACTOR,REVENUE
Walsall Council,http://opendatacommunities.org/id/metropolitan-district-council/walsall ,WC139-628,30.06.2022,ADULT SOCIAL CARE,ALPHA HEALTH CARE LTD,07/06/2022,"3,398.04",6541-Residential EMI,THIRD PARTY PAYMENTS,PRIVATE CONTRACTOR,REVENUE
Walsall Council,http://opendatacommunities.org/id/metropolitan-district-council/walsall ,WC139-629,30.06.2022,ADULT SOCIAL CARE,ALPHA HEALTH CARE LTD,07/06/2022,"3,090.44",6541-Nursing EMI,THIRD PARTY PAYMENTS,PRIVATE CONTRACTOR,REVENUE
Walsall Council,http://opendatacommunities.org/id/metropolitan-district-council/walsall ,WC139-630,30.06.2022,ADULT SOCIAL CARE,ALPHA HEALTH CARE LTD,07/06/2022,"6,343.36",6541-Residential,THIRD PARTY PAYMENTS,PRIVATE CONTRACTOR,REVENUE
Walsall Council,http://opendatacommunities.org/id/metropolitan-district-council/walsall ,WC139-631,30.06.2022,ADULT SOCIAL CARE,ALPHA HEALTH CARE LTD,07/06/2022,"3,374.96",6541-Residential EMI,THIRD PARTY PAYMENTS,PRIVATE CONTRACTOR,REVENUE
Walsall Council,http://opendatacommunities.org/id/metropolitan-district-council/walsall ,WC139-632,30.06.2022,ADULT SOCIAL CARE,ALPHA HEALTH CARE LTD,07/06/2022,"3,105.16",6541-Nursing EMI,THIRD PARTY PAYMENTS,PRIVATE CONTRACTOR,REVENUE
Walsall Council,http://opendatacommunities.org/id/metropolitan-district-council/walsall ,WC139-633,30.06.2022,ADULT SOCIAL CARE,ALPHA HEALTH CARE LTD,07/06/2022,"3,085.88",6541-Nursing,THIRD PARTY PAYMENTS,PRIVATE CONTRACTOR,REVENUE
Walsall Council,http://opendatacommunities.org/id/metropolitan-district-council/walsall ,WC139-634,30.06.2022,ADULT SOCIAL CARE,ALPHA HEALTH CARE LTD,07/06/2022,"2,766.04",6541-Residential EMI,THIRD PARTY PAYMENTS,PRIVATE CONTRACTOR,REVENUE
Walsall Council,http://opendatacommunities.org/id/metropolitan-district-council/walsall ,WC139-635,30.06.2022,ADULT SOCIAL CARE,ALPHA HEALTH CARE LTD,07/06/2022,"1,662.75",6541-Nursing EMI,THIRD PARTY PAYMENTS,PRIVATE CONTRACTOR,REVENUE
Walsall Council,http://opendatacommunities.org/id/metropolitan-district-council/walsall ,WC139-636,30.06.2022,ADULT SOCIAL CARE,ALPHA HEALTH CARE LTD,07/06/2022,"-3,105.91",6541-Residential,THIRD PARTY PAYMENTS,PRIVATE CONTRACTOR,REVENUE
Walsall Council,http://opendatacommunities.org/id/metropolitan-district-council/walsall ,WC139-637,30.06.2022,ADULT SOCIAL CARE,ALPHA HEALTH CARE LTD,07/06/2022,"3,958.52",6541-Residential,THIRD PARTY PAYMENTS,PRIVATE CONTRACTOR,REVENUE
Walsall Council,http://opendatacommunities.org/id/metropolitan-district-council/walsall ,WC139-638,30.06.2022,ADULT SOCIAL CARE,ALPHA HEALTH CARE LTD,07/06/2022,"3,836.28",6541-Nursing,THIRD PARTY PAYMENTS,PRIVATE CONTRACTOR,REVENUE
Walsall Council,http://opendatacommunities.org/id/metropolitan-district-council/walsall ,WC139-639,30.06.2022,ADULT SOCIAL CARE,ALPHA HEALTH CARE LTD,07/06/2022,"1,885.71",6541-Professional Services-Priv Contractor & Other Agencies,THIRD PARTY PAYMENTS,PRIVATE CONTRACTOR,REVENUE
Walsall Council,http://opendatacommunities.org/id/metropolitan-district-council/walsall ,WC139-640,30.06.2022,ADULT SOCIAL CARE,ALPHA HEALTH CARE LTD,07/06/2022,"2,763.80",6541-Nursing EMI,THIRD PARTY PAYMENTS,PRIVATE CONTRACTOR,REVENUE
Walsall Council,http://opendatacommunities.org/id/metropolitan-district-council/walsall ,WC139-641,30.06.2022,ADULT SOCIAL CARE,ALPHA HEALTH CARE LTD,07/06/2022,"2,998.00",6541-Nursing,THIRD PARTY PAYMENTS,PRIVATE CONTRACTOR,REVENUE
Walsall Council,http://opendatacommunities.org/id/metropolitan-district-council/walsall ,WC139-642,30.06.2022,ADULT SOCIAL CARE,ALPHA HEALTH CARE LTD,07/06/2022,"3,667.80",6541-Nursing EMI,THIRD PARTY PAYMENTS,PRIVATE CONTRACTOR,REVENUE
Walsall Council,http://opendatacommunities.org/id/metropolitan-district-council/walsall ,WC139-643,30.06.2022,ADULT SOCIAL CARE,ALPHA HEALTH CARE LTD,07/06/2022,"2,630.96",6541-Residential,THIRD PARTY PAYMENTS,PRIVATE CONTRACTOR,REVENUE
Walsall Council,http://opendatacommunities.org/id/metropolitan-district-council/walsall ,WC139-644,30.06.2022,CHILDRENS,ALPHABIOLABS,17/06/2022,361.67,6220-School Only Payments - Catering,THIRD PARTY PAYMENTS,INDEPENDENT UNIT WITHIN COUNCIL,REVENUE
Walsall Council,http://opendatacommunities.org/id/metropolitan-district-council/walsall ,WC139-645,30.06.2022,CHILDRENS,ALPHABIOLABS,29/06/2022,425.00,6222-Professional Fees & Services,SUPPLIES & SERVICES,SERVICES,REVENUE
Walsall Council,http://opendatacommunities.org/id/metropolitan-district-council/walsall ,WC139-646,30.06.2022,CHILDRENS,AMAH NURSERIES LIMITED T/A BANANA MOON WALSALL,14/06/2022,640.00,1184-Transfer Payments-Other Schoolchildren/Student Related Items,TRANSFER PAYMENTS,SCHOOLCHILDREN/STUDENTS,REVENUE
Walsall Council,http://opendatacommunities.org/id/metropolitan-district-council/walsall ,WC139-647,30.06.2022,CHILDRENS,AMANS TRAVEL LTD,21/06/2022,"2,850.00",6241-Hire of Vehicle with Driver,TRANSPORT,DIRECT TRANSPORT COSTS,REVENUE
Walsall Council,http://opendatacommunities.org/id/metropolitan-district-council/walsall ,WC139-648,30.06.2022,CHILDRENS,AMANS TRAVEL LTD,21/06/2022,"2,850.00",6241-Hire of Vehicle with Driver,TRANSPORT,DIRECT TRANSPORT COSTS,REVENUE
Walsall Council,http://opendatacommunities.org/id/metropolitan-district-council/walsall ,WC139-649,30.06.2022,CHILDRENS,AMANS TRAVEL LTD,21/06/2022,"2,850.00",6241-Hire of Vehicle with Driver,TRANSPORT,DIRECT TRANSPORT COSTS,REVENUE
Walsall Council,http://opendatacommunities.org/id/metropolitan-district-council/walsall ,WC139-650,30.06.2022,ADULT SOCIAL CARE,REDACTED,08/06/2022,"9,217.22",6541-Direct Payment,THIRD PARTY PAYMENTS,PRIVATE CONTRACTOR,REVENUE
Walsall Council,http://opendatacommunities.org/id/metropolitan-district-council/walsall ,WC139-651,30.06.2022,ADULT SOCIAL CARE,REDACTED,08/06/2022,796.75,6541-Direct Payment,THIRD PARTY PAYMENTS,PRIVATE CONTRACTOR,REVENUE
Walsall Council,http://opendatacommunities.org/id/metropolitan-district-council/walsall ,WC139-652,30.06.2022,ADULT SOCIAL CARE,REDACTED,08/06/2022,"2,063.60",6541-Direct Payment,THIRD PARTY PAYMENTS,PRIVATE CONTRACTOR,REVENUE
Walsall Council,http://opendatacommunities.org/id/metropolitan-district-council/walsall ,WC139-653,30.06.2022,RESOURCES AND TRANSFORMATION,AMBUR RADIO,16/06/2022,"4,475.35",6312-Grants to Other Orgs,SUPPLIES & SERVICES,GRANTS (EXP) & SUBSCRIPTIONS,REVENUE
Walsall Council,http://opendatacommunities.org/id/metropolitan-district-council/walsall ,WC139-654,30.06.2022,"ECONOMY, ENVIRONMENT & COMMUNITIES",AMEY LG LIMITED,16/06/2022,"1,295.47",6411-Repair & Maintenance of Furniture & Equipment,SUPPLIES & SERVICES,EQUIPMENT FURNITURE & MATERIALS,REVENUE
Walsall Council,http://opendatacommunities.org/id/metropolitan-district-council/walsall ,WC139-655,30.06.2022,"ECONOMY, ENVIRONMENT & COMMUNITIES",AMEY LG LIMITED,16/06/2022,"1,172.57",6411-Repair & Maintenance of Furniture & Equipment,SUPPLIES & SERVICES,EQUIPMENT FURNITURE & MATERIALS,REVENUE
Walsall Council,http://opendatacommunities.org/id/metropolitan-district-council/walsall ,WC139-656,30.06.2022,"ECONOMY, ENVIRONMENT & COMMUNITIES",AMEY LG LIMITED,01/06/2022,"10,889.47",6411-Materials,SUPPLIES & SERVICES,EQUIPMENT FURNITURE & MATERIALS,REVENUE
Walsall Council,http://opendatacommunities.org/id/metropolitan-district-council/walsall ,WC139-657,30.06.2022,"ECONOMY, ENVIRONMENT & COMMUNITIES",AMEY LG LIMITED,23/06/2022,"10,121.96",6411-Materials,SUPPLIES & SERVICES,EQUIPMENT FURNITURE & MATERIALS,REVENUE
Walsall Council,http://opendatacommunities.org/id/metropolitan-district-council/walsall ,WC139-658,30.06.2022,"ECONOMY, ENVIRONMENT & COMMUNITIES",AMEY LG LIMITED,23/06/2022,"14,472.79",6411-Materials,SUPPLIES & SERVICES,EQUIPMENT FURNITURE & MATERIALS,REVENUE
Walsall Council,http://opendatacommunities.org/id/metropolitan-district-council/walsall ,WC139-659,30.06.2022,"ECONOMY, ENVIRONMENT & COMMUNITIES",AMEY LG LIMITED,28/06/2022,"16,047.84",6411-Materials,SUPPLIES & SERVICES,EQUIPMENT FURNITURE & MATERIALS,REVENUE
Walsall Council,http://opendatacommunities.org/id/metropolitan-district-council/walsall ,WC139-660,30.06.2022,"ECONOMY, ENVIRONMENT & COMMUNITIES",AMEY LG LIMITED,29/06/2022,"2,776.70",6430-Repair & Maintenance of Furniture & Equipment,SUPPLIES & SERVICES,EQUIPMENT FURNITURE & MATERIALS,REVENUE
Walsall Council,http://opendatacommunities.org/id/metropolitan-district-council/walsall ,WC139-661,30.06.2022,ECONOMY & ENVIRONMENT CAPITAL,AMEY OW LTD,28/06/2022,"13,962.28",7200-Project Fees,CAPITAL,"NEW CONSTRUCTION,CONVERSION & RENOVATION",CAPITAL
Walsall Council,http://opendatacommunities.org/id/metropolitan-district-council/walsall ,WC139-662,30.06.2022,CHILDRENS,AMG NURSING CARE SERVICES,01/06/2022,445.92,6220-Professional Fees & Services,SUPPLIES & SERVICES,SERVICES,REVENUE
Walsall Council,http://opendatacommunities.org/id/metropolitan-district-council/walsall ,WC139-663,30.06.2022,CHILDRENS,AMG NURSING CARE SERVICES,01/06/2022,779.44,6220-Professional Fees & Services,SUPPLIES & SERVICES,SERVICES,REVENUE
Walsall Council,http://opendatacommunities.org/id/metropolitan-district-council/walsall ,WC139-664,30.06.2022,CHILDRENS,AMG NURSING CARE SERVICES,01/06/2022,397.56,6220-Professional Fees & Services,SUPPLIES & SERVICES,SERVICES,REVENUE
Walsall Council,http://opendatacommunities.org/id/metropolitan-district-council/walsall ,WC139-665,30.06.2022,CHILDRENS,AMG NURSING CARE SERVICES,01/06/2022,406.60,6220-Professional Fees & Services,SUPPLIES & SERVICES,SERVICES,REVENUE
Walsall Council,http://opendatacommunities.org/id/metropolitan-district-council/walsall ,WC139-666,30.06.2022,CHILDRENS,AMG NURSING CARE SERVICES,01/06/2022,321.84,6220-Professional Fees & Services,SUPPLIES & SERVICES,SERVICES,REVENUE
Walsall Council,http://opendatacommunities.org/id/metropolitan-district-council/walsall ,WC139-667,30.06.2022,CHILDRENS,AMG NURSING CARE SERVICES,24/06/2022,430.64,6220-Professional Fees & Services,SUPPLIES & SERVICES,SERVICES,REVENUE
Walsall Council,http://opendatacommunities.org/id/metropolitan-district-council/walsall ,WC139-668,30.06.2022,CHILDRENS,AMG NURSING CARE SERVICES,24/06/2022,"1,453.71",6220-Professional Fees & Services,SUPPLIES & SERVICES,SERVICES,REVENUE
Walsall Council,http://opendatacommunities.org/id/metropolitan-district-council/walsall ,WC139-669,30.06.2022,CHILDRENS,AMG NURSING CARE SERVICES,30/06/2022,325.28,6220-Professional Fees & Services,SUPPLIES & SERVICES,SERVICES,REVENUE
Walsall Council,http://opendatacommunities.org/id/metropolitan-district-council/walsall ,WC139-670,30.06.2022,CHILDRENS,AMG NURSING CARE SERVICES,30/06/2022,"1,550.12",6220-Professional Fees & Services,SUPPLIES & SERVICES,SERVICES,REVENUE
Walsall Council,http://opendatacommunities.org/id/metropolitan-district-council/walsall ,WC139-671,30.06.2022,ADULT SOCIAL CARE,AMG NURSING CARE SERVICES,29/06/2022,"15,515.88",6541-Community Supported Living/Supported Accommodation,THIRD PARTY PAYMENTS,PRIVATE CONTRACTOR,REVENUE
Walsall Council,http://opendatacommunities.org/id/metropolitan-district-council/walsall ,WC139-672,30.06.2022,ADULT SOCIAL CARE,AMG NURSING CARE SERVICES,29/06/2022,"3,632.50",6541-Community Supported Living/Supported Accommodation,THIRD PARTY PAYMENTS,PRIVATE CONTRACTOR,REVENUE
Walsall Council,http://opendatacommunities.org/id/metropolitan-district-council/walsall ,WC139-673,30.06.2022,CHILDRENS,AMG NURSING CARE SERVICES,30/06/2022,"1,502.25",6220-Professional Fees & Services,SUPPLIES & SERVICES,SERVICES,REVENUE
Walsall Council,http://opendatacommunities.org/id/metropolitan-district-council/walsall ,WC139-674,30.06.2022,CHILDRENS,REDACTED,01/06/2022,340.00,6223-Internal Foster Carers-Carer Fees,TRANSFER PAYMENTS,CHILDREN SOCIAL SERVICES CLIENT,REVENUE
Walsall Council,http://opendatacommunities.org/id/metropolitan-district-council/walsall ,WC139-675,30.06.2022,CHILDRENS,REDACTED,01/06/2022,584.00,6223-Foster Carers Maintenance Allowance,TRANSFER PAYMENTS,CHILDREN SOCIAL SERVICES CLIENT,REVENUE
Walsall Council,http://opendatacommunities.org/id/metropolitan-district-council/walsall ,WC139-676,30.06.2022,CHILDRENS,REDACTED,29/06/2022,584.00,6223-Foster Carers Maintenance Allowance,TRANSFER PAYMENTS,CHILDREN SOCIAL SERVICES CLIENT,REVENUE
Walsall Council,http://opendatacommunities.org/id/metropolitan-district-council/walsall ,WC139-677,30.06.2022,CHILDRENS,REDACTED,29/06/2022,340.00,6223-Internal Foster Carers-Carer Fees,TRANSFER PAYMENTS,CHILDREN SOCIAL SERVICES CLIENT,REVENUE
Walsall Council,http://opendatacommunities.org/id/metropolitan-district-council/walsall ,WC139-678,30.06.2022,ADULT SOCIAL CARE,ANCHOR CARE HOMES LTD,07/06/2022,"2,366.04",6541-Residential EMI,THIRD PARTY PAYMENTS,PRIVATE CONTRACTOR,REVENUE
Walsall Council,http://opendatacommunities.org/id/metropolitan-district-council/walsall ,WC139-679,30.06.2022,ADULT SOCIAL CARE,ANCHOR CAREHOMES LTD - HARDEN HALL,01/06/2022,"1,998.00",6541-Residential EMI,THIRD PARTY PAYMENTS,PRIVATE CONTRACTOR,REVENUE
Walsall Council,http://opendatacommunities.org/id/metropolitan-district-council/walsall ,WC139-680,30.06.2022,ADULT SOCIAL CARE,ANCHOR CAREHOMES LTD - HARDEN HALL,01/06/2022,"3,496.61",6541-Residential EMI,THIRD PARTY PAYMENTS,PRIVATE CONTRACTOR,REVENUE
Walsall Council,http://opendatacommunities.org/id/metropolitan-district-council/walsall ,WC139-681,30.06.2022,ADULT SOCIAL CARE,ANCHOR CAREHOMES LTD - HARDEN HALL,07/06/2022,"2,366.04",6541-Residential EMI,THIRD PARTY PAYMENTS,PRIVATE CONTRACTOR,REVENUE
Walsall Council,http://opendatacommunities.org/id/metropolitan-district-council/walsall ,WC139-682,30.06.2022,ADULT SOCIAL CARE,ANCHOR CAREHOMES LTD - HARDEN HALL,07/06/2022,"2,329.52",6541-Residential EMI,THIRD PARTY PAYMENTS,PRIVATE CONTRACTOR,REVENUE
Walsall Council,http://opendatacommunities.org/id/metropolitan-district-council/walsall ,WC139-683,30.06.2022,ADULT SOCIAL CARE,ANCHOR CAREHOMES LTD - HARDEN HALL,07/06/2022,"2,726.04",6541-Residential EMI,THIRD PARTY PAYMENTS,PRIVATE CONTRACTOR,REVENUE
Walsall Council,http://opendatacommunities.org/id/metropolitan-district-council/walsall ,WC139-684,30.06.2022,ADULT SOCIAL CARE,ANCHOR CAREHOMES LTD - HARDEN HALL,07/06/2022,"1,870.89",6541-Residential,THIRD PARTY PAYMENTS,PRIVATE CONTRACTOR,REVENUE
Walsall Council,http://opendatacommunities.org/id/metropolitan-district-council/walsall ,WC139-685,30.06.2022,ADULT SOCIAL CARE,ANCHOR CAREHOMES LTD - HARDEN HALL,07/06/2022,"2,366.04",6541-Residential EMI,THIRD PARTY PAYMENTS,PRIVATE CONTRACTOR,REVENUE
Walsall Council,http://opendatacommunities.org/id/metropolitan-district-council/walsall ,WC139-686,30.06.2022,ADULT SOCIAL CARE,ANCHOR CAREHOMES LTD - HARDEN HALL,07/06/2022,"2,366.04",6541-Residential EMI,THIRD PARTY PAYMENTS,PRIVATE CONTRACTOR,REVENUE
Walsall Council,http://opendatacommunities.org/id/metropolitan-district-council/walsall ,WC139-687,30.06.2022,ADULT SOCIAL CARE,ANCHOR CAREHOMES LTD - HARDEN HALL,07/06/2022,"2,366.04",6541-Residential EMI,THIRD PARTY PAYMENTS,PRIVATE CONTRACTOR,REVENUE
Walsall Council,http://opendatacommunities.org/id/metropolitan-district-council/walsall ,WC139-688,30.06.2022,ADULT SOCIAL CARE,ANCHOR CAREHOMES LTD - HARDEN HALL,07/06/2022,"2,366.04",6541-Residential EMI,THIRD PARTY PAYMENTS,PRIVATE CONTRACTOR,REVENUE
Walsall Council,http://opendatacommunities.org/id/metropolitan-district-council/walsall ,WC139-689,30.06.2022,ADULT SOCIAL CARE,ANCHOR CAREHOMES LTD - HARDEN HALL,07/06/2022,"2,366.04",6541-Residential EMI,THIRD PARTY PAYMENTS,PRIVATE CONTRACTOR,REVENUE
Walsall Council,http://opendatacommunities.org/id/metropolitan-district-council/walsall ,WC139-690,30.06.2022,ADULT SOCIAL CARE,ANCHOR CAREHOMES LTD - HARDEN HALL,07/06/2022,"2,366.04",6541-Residential EMI,THIRD PARTY PAYMENTS,PRIVATE CONTRACTOR,REVENUE
Walsall Council,http://opendatacommunities.org/id/metropolitan-district-council/walsall ,WC139-691,30.06.2022,ADULT SOCIAL CARE,ANCHOR CAREHOMES LTD - HARDEN HALL,07/06/2022,"2,366.04",6541-Residential EMI,THIRD PARTY PAYMENTS,PRIVATE CONTRACTOR,REVENUE
Walsall Council,http://opendatacommunities.org/id/metropolitan-district-council/walsall ,WC139-692,30.06.2022,ADULT SOCIAL CARE,ANCHOR CAREHOMES LTD - HARDEN HALL,07/06/2022,"2,417.00",6541-Residential EMI,THIRD PARTY PAYMENTS,PRIVATE CONTRACTOR,REVENUE
Walsall Council,http://opendatacommunities.org/id/metropolitan-district-council/walsall ,WC139-693,30.06.2022,ADULT SOCIAL CARE,ANCHOR CAREHOMES LTD - HARDEN HALL,07/06/2022,"2,366.04",6541-Residential EMI,THIRD PARTY PAYMENTS,PRIVATE CONTRACTOR,REVENUE
Walsall Council,http://opendatacommunities.org/id/metropolitan-district-council/walsall ,WC139-694,30.06.2022,ADULT SOCIAL CARE,ANCHOR CAREHOMES LTD - HARDEN HALL,07/06/2022,"1,347.04",6541-Residential,THIRD PARTY PAYMENTS,PRIVATE CONTRACTOR,REVENUE
Walsall Council,http://opendatacommunities.org/id/metropolitan-district-council/walsall ,WC139-695,30.06.2022,ADULT SOCIAL CARE,ANCHOR CAREHOMES LTD - HARDEN HALL,07/06/2022,"6,112.69",6541-Residential EMI,THIRD PARTY PAYMENTS,PRIVATE CONTRACTOR,REVENUE
Walsall Council,http://opendatacommunities.org/id/metropolitan-district-council/walsall ,WC139-696,30.06.2022,ADULT SOCIAL CARE,ANCHOR CAREHOMES LTD - HARDEN HALL,07/06/2022,"2,726.04",6541-Residential EMI,THIRD PARTY PAYMENTS,PRIVATE CONTRACTOR,REVENUE
Walsall Council,http://opendatacommunities.org/id/metropolitan-district-council/walsall ,WC139-697,30.06.2022,ADULT SOCIAL CARE,ANCHOR CAREHOMES LTD - HARDEN HALL,07/06/2022,"2,726.04",6541-Residential EMI,THIRD PARTY PAYMENTS,PRIVATE CONTRACTOR,REVENUE
Walsall Council,http://opendatacommunities.org/id/metropolitan-district-council/walsall ,WC139-698,30.06.2022,ADULT SOCIAL CARE,ANCHOR CAREHOMES LTD - HARDEN HALL,07/06/2022,"2,566.04",6541-Residential EMI,THIRD PARTY PAYMENTS,PRIVATE CONTRACTOR,REVENUE
Walsall Council,http://opendatacommunities.org/id/metropolitan-district-council/walsall ,WC139-699,30.06.2022,ADULT SOCIAL CARE,ANCHOR CAREHOMES LTD - HARDEN HALL,07/06/2022,"2,366.04",6541-Residential EMI,THIRD PARTY PAYMENTS,PRIVATE CONTRACTOR,REVENUE
Walsall Council,http://opendatacommunities.org/id/metropolitan-district-council/walsall ,WC139-700,30.06.2022,ADULT SOCIAL CARE,ANCHOR CAREHOMES LTD - HARDEN HALL,07/06/2022,"2,095.40",6541-Residential,THIRD PARTY PAYMENTS,PRIVATE CONTRACTOR,REVENUE
Walsall Council,http://opendatacommunities.org/id/metropolitan-district-council/walsall ,WC139-701,30.06.2022,ADULT SOCIAL CARE,ANCHOR CAREHOMES LTD - HARDEN HALL,07/06/2022,"2,726.04",6541-Residential EMI,THIRD PARTY PAYMENTS,PRIVATE CONTRACTOR,REVENUE
Walsall Council,http://opendatacommunities.org/id/metropolitan-district-council/walsall ,WC139-702,30.06.2022,ADULT SOCIAL CARE,ANCHOR CAREHOMES LTD - HARDEN HALL,07/06/2022,"2,726.04",6541-Residential EMI,THIRD PARTY PAYMENTS,PRIVATE CONTRACTOR,REVENUE
Walsall Council,http://opendatacommunities.org/id/metropolitan-district-council/walsall ,WC139-703,30.06.2022,ADULT SOCIAL CARE,ANCHOR CAREHOMES LTD - HARDEN HALL,07/06/2022,"2,366.04",6541-Residential EMI,THIRD PARTY PAYMENTS,PRIVATE CONTRACTOR,REVENUE
Walsall Council,http://opendatacommunities.org/id/metropolitan-district-council/walsall ,WC139-704,30.06.2022,ADULT SOCIAL CARE,ANCHOR CAREHOMES LTD - HARDEN HALL,07/06/2022,"2,646.04",6541-Residential EMI,THIRD PARTY PAYMENTS,PRIVATE CONTRACTOR,REVENUE
Walsall Council,http://opendatacommunities.org/id/metropolitan-district-council/walsall ,WC139-705,30.06.2022,ADULT SOCIAL CARE,ANCHOR CAREHOMES LTD - HARDEN HALL,07/06/2022,681.51,6541-Residential EMI,THIRD PARTY PAYMENTS,PRIVATE CONTRACTOR,REVENUE
Walsall Council,http://opendatacommunities.org/id/metropolitan-district-council/walsall ,WC139-706,30.06.2022,CHILDRENS,REDACTED,01/06/2022,314.48,6223-Special Guardianship Orders,TRANSFER PAYMENTS,CHILDREN SOCIAL SERVICES CLIENT,REVENUE
Walsall Council,http://opendatacommunities.org/id/metropolitan-district-council/walsall ,WC139-707,30.06.2022,CHILDRENS,REDACTED,29/06/2022,314.48,6223-Special Guardianship Orders,TRANSFER PAYMENTS,CHILDREN SOCIAL SERVICES CLIENT,REVENUE
Walsall Council,http://opendatacommunities.org/id/metropolitan-district-council/walsall ,WC139-708,30.06.2022,ADULT SOCIAL CARE,REDACTED,08/06/2022,"3,436.50",6541-Direct Payment,THIRD PARTY PAYMENTS,PRIVATE CONTRACTOR,REVENUE
Walsall Council,http://opendatacommunities.org/id/metropolitan-district-council/walsall ,WC139-709,30.06.2022,CHILDRENS CAPITAL,ANDREWS ELECTRICAL LTD,17/06/2022,"2,185.00",7155-Site Works Contractors,CAPITAL,"NEW CONSTRUCTION,CONVERSION & RENOVATION",CAPITAL
Walsall Council,http://opendatacommunities.org/id/metropolitan-district-council/walsall ,WC139-710,30.06.2022,CHILDRENS CAPITAL,ANDREWS ELECTRICAL LTD,06/06/2022,"16,800.00",7150-Site Works Contractors,CAPITAL,"NEW CONSTRUCTION,CONVERSION & RENOVATION",CAPITAL
Walsall Council,http://opendatacommunities.org/id/metropolitan-district-council/walsall ,WC139-711,30.06.2022,RESOURCES AND TRANSFORMATION,ANDREWS ELECTRICAL LTD,06/06/2022,"1,452.00",6310-Planned Maintenance,PREMISES,REPAIRS & MAINTENANCE,REVENUE
Walsall Council,http://opendatacommunities.org/id/metropolitan-district-council/walsall ,WC139-712,30.06.2022,RESOURCES AND TRANSFORMATION,ANDREWS ELECTRICAL LTD,06/06/2022,"1,280.00",6310-Planned Maintenance,PREMISES,REPAIRS & MAINTENANCE,REVENUE
Walsall Council,http://opendatacommunities.org/id/metropolitan-district-council/walsall ,WC139-713,30.06.2022,RESOURCES AND TRANSFORMATION,ANDREWS ELECTRICAL LTD,06/06/2022,"1,950.00",6310-Planned Maintenance,PREMISES,REPAIRS & MAINTENANCE,REVENUE
Walsall Council,http://opendatacommunities.org/id/metropolitan-district-council/walsall ,WC139-714,30.06.2022,RESOURCES AND TRANSFORMATION,ANDREWS ELECTRICAL LTD,06/06/2022,"20,000.00",6310-Planned Maintenance,PREMISES,REPAIRS & MAINTENANCE,REVENUE
Walsall Council,http://opendatacommunities.org/id/metropolitan-district-council/walsall ,WC139-715,30.06.2022,CHILDRENS,REDACTED,01/06/2022,363.24,6223-Special Guardianship Orders,TRANSFER PAYMENTS,CHILDREN SOCIAL SERVICES CLIENT,REVENUE
Walsall Council,http://opendatacommunities.org/id/metropolitan-district-council/walsall ,WC139-716,30.06.2022,CHILDRENS,REDACTED,01/06/2022,496.04,6223-Special Guardianship Orders,TRANSFER PAYMENTS,CHILDREN SOCIAL SERVICES CLIENT,REVENUE
Walsall Council,http://opendatacommunities.org/id/metropolitan-district-council/walsall ,WC139-717,30.06.2022,CHILDRENS,REDACTED,29/06/2022,363.24,6223-Special Guardianship Orders,TRANSFER PAYMENTS,CHILDREN SOCIAL SERVICES CLIENT,REVENUE
Walsall Council,http://opendatacommunities.org/id/metropolitan-district-council/walsall ,WC139-718,30.06.2022,CHILDRENS,REDACTED,29/06/2022,496.04,6223-Special Guardianship Orders,TRANSFER PAYMENTS,CHILDREN SOCIAL SERVICES CLIENT,REVENUE
Walsall Council,http://opendatacommunities.org/id/metropolitan-district-council/walsall ,WC139-719,30.06.2022,CHILDRENS,REDACTED,01/06/2022,318.36,6223-Special Guardianship Orders,TRANSFER PAYMENTS,CHILDREN SOCIAL SERVICES CLIENT,REVENUE
Walsall Council,http://opendatacommunities.org/id/metropolitan-district-council/walsall ,WC139-720,30.06.2022,CHILDRENS,REDACTED,29/06/2022,318.36,6223-Special Guardianship Orders,TRANSFER PAYMENTS,CHILDREN SOCIAL SERVICES CLIENT,REVENUE
Walsall Council,http://opendatacommunities.org/id/metropolitan-district-council/walsall ,WC139-721,30.06.2022,ADULT SOCIAL CARE,REDACTED,01/06/2022,400.80,6541-Shared Lives,THIRD PARTY PAYMENTS,PRIVATE CONTRACTOR,REVENUE
Walsall Council,http://opendatacommunities.org/id/metropolitan-district-council/walsall ,WC139-722,30.06.2022,ADULT SOCIAL CARE,REDACTED,01/06/2022,270.50,6541-Shared Lives,THIRD PARTY PAYMENTS,PRIVATE CONTRACTOR,REVENUE
Walsall Council,http://opendatacommunities.org/id/metropolitan-district-council/walsall ,WC139-723,30.06.2022,ADULT SOCIAL CARE,REDACTED,15/06/2022,400.80,6541-Shared Lives,THIRD PARTY PAYMENTS,PRIVATE CONTRACTOR,REVENUE
Walsall Council,http://opendatacommunities.org/id/metropolitan-district-council/walsall ,WC139-724,30.06.2022,ADULT SOCIAL CARE,REDACTED,29/06/2022,400.80,6541-Shared Lives,THIRD PARTY PAYMENTS,PRIVATE CONTRACTOR,REVENUE
Walsall Council,http://opendatacommunities.org/id/metropolitan-district-council/walsall ,WC139-725,30.06.2022,CHILDRENS,REDACTED,01/06/2022,526.76,6223-Foster Carers Maintenance Allowance,TRANSFER PAYMENTS,CHILDREN SOCIAL SERVICES CLIENT,REVENUE
Walsall Council,http://opendatacommunities.org/id/metropolitan-district-council/walsall ,WC139-726,30.06.2022,CHILDRENS,REDACTED,01/06/2022,314.00,6223-Purchase of Furniture & Equipment,SUPPLIES & SERVICES,EQUIPMENT FURNITURE & MATERIALS,REVENUE
Walsall Council,http://opendatacommunities.org/id/metropolitan-district-council/walsall ,WC139-727,30.06.2022,CHILDRENS,REDACTED,01/06/2022,340.00,6223-Internal Foster Carers-Carer Fees,TRANSFER PAYMENTS,CHILDREN SOCIAL SERVICES CLIENT,REVENUE
Walsall Council,http://opendatacommunities.org/id/metropolitan-district-council/walsall ,WC139-728,30.06.2022,CHILDRENS,REDACTED,29/06/2022,526.76,6223-Foster Carers Maintenance Allowance,TRANSFER PAYMENTS,CHILDREN SOCIAL SERVICES CLIENT,REVENUE
Walsall Council,http://opendatacommunities.org/id/metropolitan-district-council/walsall ,WC139-729,30.06.2022,CHILDRENS,REDACTED,29/06/2022,340.00,6223-Internal Foster Carers-Carer Fees,TRANSFER PAYMENTS,CHILDREN SOCIAL SERVICES CLIENT,REVENUE
Walsall Council,http://opendatacommunities.org/id/metropolitan-district-council/walsall ,WC139-730,30.06.2022,CHILDRENS,REDACTED,01/06/2022,340.00,6223-Internal Foster Carers-Carer Fees,TRANSFER PAYMENTS,CHILDREN SOCIAL SERVICES CLIENT,REVENUE
Walsall Council,http://opendatacommunities.org/id/metropolitan-district-council/walsall ,WC139-731,30.06.2022,CHILDRENS,REDACTED,01/06/2022,689.00,6223-Foster Carers Maintenance Allowance,TRANSFER PAYMENTS,CHILDREN SOCIAL SERVICES CLIENT,REVENUE
Walsall Council,http://opendatacommunities.org/id/metropolitan-district-council/walsall ,WC139-732,30.06.2022,CHILDRENS,REDACTED,29/06/2022,340.00,6223-Internal Foster Carers-Carer Fees,TRANSFER PAYMENTS,CHILDREN SOCIAL SERVICES CLIENT,REVENUE
Walsall Council,http://opendatacommunities.org/id/metropolitan-district-council/walsall ,WC139-733,30.06.2022,CHILDRENS,REDACTED,29/06/2022,689.00,6223-Foster Carers Maintenance Allowance,TRANSFER PAYMENTS,CHILDREN SOCIAL SERVICES CLIENT,REVENUE
Walsall Council,http://opendatacommunities.org/id/metropolitan-district-council/walsall ,WC139-734,30.06.2022,ADULT SOCIAL CARE,REDACTED,08/06/2022,470.00,6541-Direct Payment,THIRD PARTY PAYMENTS,PRIVATE CONTRACTOR,REVENUE
Walsall Council,http://opendatacommunities.org/id/metropolitan-district-council/walsall ,WC139-735,30.06.2022,CHILDRENS,REDACTED,01/06/2022,600.72,6223-Special Guardianship Orders,TRANSFER PAYMENTS,CHILDREN SOCIAL SERVICES CLIENT,REVENUE
Walsall Council,http://opendatacommunities.org/id/metropolitan-district-council/walsall ,WC139-736,30.06.2022,CHILDRENS,REDACTED,29/06/2022,429.04,6223-Special Guardianship Orders,TRANSFER PAYMENTS,CHILDREN SOCIAL SERVICES CLIENT,REVENUE
Walsall Council,http://opendatacommunities.org/id/metropolitan-district-council/walsall ,WC139-737,30.06.2022,ADULT SOCIAL CARE,ANSON COURT RESIDENTIAL HOME,07/06/2022,"2,366.04",6541-Residential EMI,THIRD PARTY PAYMENTS,PRIVATE CONTRACTOR,REVENUE
Walsall Council,http://opendatacommunities.org/id/metropolitan-district-council/walsall ,WC139-738,30.06.2022,ADULT SOCIAL CARE,ANSON COURT RESIDENTIAL HOME,07/06/2022,"2,366.04",6541-Residential EMI,THIRD PARTY PAYMENTS,PRIVATE CONTRACTOR,REVENUE
Walsall Council,http://opendatacommunities.org/id/metropolitan-district-council/walsall ,WC139-739,30.06.2022,ADULT SOCIAL CARE,ANSON COURT RESIDENTIAL HOME,07/06/2022,"2,366.04",6541-Residential EMI,THIRD PARTY PAYMENTS,PRIVATE CONTRACTOR,REVENUE
Walsall Council,http://opendatacommunities.org/id/metropolitan-district-council/walsall ,WC139-740,30.06.2022,ADULT SOCIAL CARE,ANSON COURT RESIDENTIAL HOME,07/06/2022,"2,366.04",6541-Residential EMI,THIRD PARTY PAYMENTS,PRIVATE CONTRACTOR,REVENUE
Walsall Council,http://opendatacommunities.org/id/metropolitan-district-council/walsall ,WC139-741,30.06.2022,ADULT SOCIAL CARE,ANSON COURT RESIDENTIAL HOME,07/06/2022,"2,366.04",6541-Residential EMI,THIRD PARTY PAYMENTS,PRIVATE CONTRACTOR,REVENUE
Walsall Council,http://opendatacommunities.org/id/metropolitan-district-council/walsall ,WC139-742,30.06.2022,ADULT SOCIAL CARE,ANSON COURT RESIDENTIAL HOME,07/06/2022,"2,366.04",6541-Residential EMI,THIRD PARTY PAYMENTS,PRIVATE CONTRACTOR,REVENUE
Walsall Council,http://opendatacommunities.org/id/metropolitan-district-council/walsall ,WC139-743,30.06.2022,ADULT SOCIAL CARE,ANSON COURT RESIDENTIAL HOME,07/06/2022,"2,366.04",6541-Residential EMI,THIRD PARTY PAYMENTS,PRIVATE CONTRACTOR,REVENUE
Walsall Council,http://opendatacommunities.org/id/metropolitan-district-council/walsall ,WC139-744,30.06.2022,ADULT SOCIAL CARE,ANSON COURT RESIDENTIAL HOME,07/06/2022,"2,366.04",6541-Residential EMI,THIRD PARTY PAYMENTS,PRIVATE CONTRACTOR,REVENUE
Walsall Council,http://opendatacommunities.org/id/metropolitan-district-council/walsall ,WC139-745,30.06.2022,ADULT SOCIAL CARE,ANSON COURT RESIDENTIAL HOME,07/06/2022,"2,366.04",6541-Residential EMI,THIRD PARTY PAYMENTS,PRIVATE CONTRACTOR,REVENUE
Walsall Council,http://opendatacommunities.org/id/metropolitan-district-council/walsall ,WC139-746,30.06.2022,ADULT SOCIAL CARE,ANSON COURT RESIDENTIAL HOME,07/06/2022,"2,366.04",6541-Residential EMI,THIRD PARTY PAYMENTS,PRIVATE CONTRACTOR,REVENUE
Walsall Council,http://opendatacommunities.org/id/metropolitan-district-council/walsall ,WC139-747,30.06.2022,ADULT SOCIAL CARE,ANSON COURT RESIDENTIAL HOME,07/06/2022,"2,366.04",6541-Residential EMI,THIRD PARTY PAYMENTS,PRIVATE CONTRACTOR,REVENUE
Walsall Council,http://opendatacommunities.org/id/metropolitan-district-council/walsall ,WC139-748,30.06.2022,ADULT SOCIAL CARE,ANSON COURT RESIDENTIAL HOME,07/06/2022,"2,215.40",6541-Residential,THIRD PARTY PAYMENTS,PRIVATE CONTRACTOR,REVENUE
Walsall Council,http://opendatacommunities.org/id/metropolitan-district-council/walsall ,WC139-749,30.06.2022,ADULT SOCIAL CARE,ANSON COURT RESIDENTIAL HOME,07/06/2022,"1,272.21",6541-Short Stay Residential,THIRD PARTY PAYMENTS,PRIVATE CONTRACTOR,REVENUE
Walsall Council,http://opendatacommunities.org/id/metropolitan-district-council/walsall ,WC139-750,30.06.2022,ADULT SOCIAL CARE,ANSON COURT RESIDENTIAL HOME,07/06/2022,"2,366.04",6541-Residential EMI,THIRD PARTY PAYMENTS,PRIVATE CONTRACTOR,REVENUE
Walsall Council,http://opendatacommunities.org/id/metropolitan-district-council/walsall ,WC139-751,30.06.2022,ADULT SOCIAL CARE,ANSON COURT RESIDENTIAL HOME,07/06/2022,"2,366.04",6541-Residential EMI,THIRD PARTY PAYMENTS,PRIVATE CONTRACTOR,REVENUE
Walsall Council,http://opendatacommunities.org/id/metropolitan-district-council/walsall ,WC139-752,30.06.2022,ADULT SOCIAL CARE,ANSON COURT RESIDENTIAL HOME,07/06/2022,"2,095.40",6541-Residential,THIRD PARTY PAYMENTS,PRIVATE CONTRACTOR,REVENUE
Walsall Council,http://opendatacommunities.org/id/metropolitan-district-council/walsall ,WC139-753,30.06.2022,ADULT SOCIAL CARE,ANSON COURT RESIDENTIAL HOME,07/06/2022,"2,095.40",6541-Residential,THIRD PARTY PAYMENTS,PRIVATE CONTRACTOR,REVENUE
Walsall Council,http://opendatacommunities.org/id/metropolitan-district-council/walsall ,WC139-754,30.06.2022,ADULT SOCIAL CARE,ANSON COURT RESIDENTIAL HOME,21/06/2022,"1,990.71",6541-Residential,THIRD PARTY PAYMENTS,PRIVATE CONTRACTOR,REVENUE
Walsall Council,http://opendatacommunities.org/id/metropolitan-district-council/walsall ,WC139-755,30.06.2022,ADULT SOCIAL CARE,ANSON COURT RESIDENTIAL HOME,21/06/2022,915.78,6541-Residential EMI,THIRD PARTY PAYMENTS,PRIVATE CONTRACTOR,REVENUE
Walsall Council,http://opendatacommunities.org/id/metropolitan-district-council/walsall ,WC139-756,30.06.2022,ADULT SOCIAL CARE,ANSON COURT RESIDENTIAL HOME,21/06/2022,"1,032.22",6541-Residential,THIRD PARTY PAYMENTS,PRIVATE CONTRACTOR,REVENUE
Walsall Council,http://opendatacommunities.org/id/metropolitan-district-council/walsall ,WC139-757,30.06.2022,ADULT SOCIAL CARE,ANSON COURT RESIDENTIAL HOME,29/06/2022,"1,183.02",6541-Residential EMI,THIRD PARTY PAYMENTS,PRIVATE CONTRACTOR,REVENUE
Walsall Council,http://opendatacommunities.org/id/metropolitan-district-council/walsall ,WC139-758,30.06.2022,ADULT SOCIAL CARE,ANSON COURT RESIDENTIAL HOME,01/06/2022,884.76,6541-Residential,THIRD PARTY PAYMENTS,PRIVATE CONTRACTOR,REVENUE
Walsall Council,http://opendatacommunities.org/id/metropolitan-district-council/walsall ,WC139-759,30.06.2022,ADULT SOCIAL CARE,ANTALIS LIMITED,21/06/2022,852.25,6623-Materials,SUPPLIES & SERVICES,EQUIPMENT FURNITURE & MATERIALS,REVENUE
Walsall Council,http://opendatacommunities.org/id/metropolitan-district-council/walsall ,WC139-760,30.06.2022,CHILDRENS,REDACTED,01/06/2022,417.03,6223-Special Guardianship Orders,TRANSFER PAYMENTS,CHILDREN SOCIAL SERVICES CLIENT,REVENUE
Walsall Council,http://opendatacommunities.org/id/metropolitan-district-council/walsall ,WC139-761,30.06.2022,CHILDRENS,REDACTED,29/06/2022,334.64,6223-Special Guardianship Orders,TRANSFER PAYMENTS,CHILDREN SOCIAL SERVICES CLIENT,REVENUE
Walsall Council,http://opendatacommunities.org/id/metropolitan-district-council/walsall ,WC139-762,30.06.2022,"ECONOMY, ENVIRONMENT & COMMUNITIES",APCOA PARKING SERVICES (UK) LTD,01/06/2022,"59,852.99",6411-Professional Services-Priv Contractor & Other Agencies,THIRD PARTY PAYMENTS,PRIVATE CONTRACTOR,REVENUE
Walsall Council,http://opendatacommunities.org/id/metropolitan-district-council/walsall ,WC139-763,30.06.2022,RESOURCES AND TRANSFORMATION,APCOA PARKING SERVICES (UK) LTD,06/06/2022,-748.16,6634-Oxygen Finance Rebates ,SUPPLIES & SERVICES,SERVICES,REVENUE
Walsall Council,http://opendatacommunities.org/id/metropolitan-district-council/walsall ,WC139-764,30.06.2022,"ECONOMY, ENVIRONMENT & COMMUNITIES",APEX ARB TRAINING LIMITED,27/06/2022,-990.00,6410-Grounds Maintenance,PREMISES,GROUNDS MAINTENANCE,REVENUE
Walsall Council,http://opendatacommunities.org/id/metropolitan-district-council/walsall ,WC139-765,30.06.2022,"ECONOMY, ENVIRONMENT & COMMUNITIES",APEX ARB TRAINING LIMITED,27/06/2022,-914.00,6410-Grounds Maintenance,PREMISES,GROUNDS MAINTENANCE,REVENUE
Walsall Council,http://opendatacommunities.org/id/metropolitan-district-council/walsall ,WC139-766,30.06.2022,"ECONOMY, ENVIRONMENT & COMMUNITIES",APEX ARB TRAINING LIMITED,27/06/2022,914.00,6410-Grounds Maintenance,PREMISES,GROUNDS MAINTENANCE,REVENUE
Walsall Council,http://opendatacommunities.org/id/metropolitan-district-council/walsall ,WC139-767,30.06.2022,"ECONOMY, ENVIRONMENT & COMMUNITIES",APEX ARB TRAINING LIMITED,27/06/2022,990.00,6410-Grounds Maintenance,PREMISES,GROUNDS MAINTENANCE,REVENUE
Walsall Council,http://opendatacommunities.org/id/metropolitan-district-council/walsall ,WC139-768,30.06.2022,CHILDRENS,APP CARZ,22/06/2022,493.50,6314-Other Travel Allowances,TRANSPORT,CAR ALLOWANCES,REVENUE
Walsall Council,http://opendatacommunities.org/id/metropolitan-district-council/walsall ,WC139-769,30.06.2022,CHILDRENS,APP CARZ,21/06/2022,"-1,240.00",6241-Hire of Vehicle with Driver,TRANSPORT,DIRECT TRANSPORT COSTS,REVENUE
Walsall Council,http://opendatacommunities.org/id/metropolitan-district-council/walsall ,WC139-770,30.06.2022,CHILDRENS,APP CARZ,21/06/2022,528.00,6241-Hire of Vehicle with Driver,TRANSPORT,DIRECT TRANSPORT COSTS,REVENUE
Walsall Council,http://opendatacommunities.org/id/metropolitan-district-council/walsall ,WC139-771,30.06.2022,CHILDRENS,APP CARZ,21/06/2022,"1,650.00",6241-Hire of Vehicle with Driver,TRANSPORT,DIRECT TRANSPORT COSTS,REVENUE
Walsall Council,http://opendatacommunities.org/id/metropolitan-district-council/walsall ,WC139-772,30.06.2022,CHILDRENS,APP CARZ,21/06/2022,936.00,6241-Hire of Vehicle with Driver,TRANSPORT,DIRECT TRANSPORT COSTS,REVENUE
Walsall Council,http://opendatacommunities.org/id/metropolitan-district-council/walsall ,WC139-773,30.06.2022,CHILDRENS,APP CARZ,21/06/2022,750.00,6241-Hire of Vehicle with Driver,TRANSPORT,DIRECT TRANSPORT COSTS,REVENUE
Walsall Council,http://opendatacommunities.org/id/metropolitan-district-council/walsall ,WC139-774,30.06.2022,CHILDRENS,APP CARZ,21/06/2022,900.00,6241-Hire of Vehicle with Driver,TRANSPORT,DIRECT TRANSPORT COSTS,REVENUE
Walsall Council,http://opendatacommunities.org/id/metropolitan-district-council/walsall ,WC139-775,30.06.2022,CHILDRENS,APP CARZ,21/06/2022,"1,575.00",6241-Hire of Vehicle with Driver,TRANSPORT,DIRECT TRANSPORT COSTS,REVENUE
Walsall Council,http://opendatacommunities.org/id/metropolitan-district-council/walsall ,WC139-776,30.06.2022,CHILDRENS,APP CARZ,21/06/2022,"1,070.00",6241-Hire of Vehicle with Driver,TRANSPORT,DIRECT TRANSPORT COSTS,REVENUE
Walsall Council,http://opendatacommunities.org/id/metropolitan-district-council/walsall ,WC139-777,30.06.2022,CHILDRENS,APP CARZ,21/06/2022,432.00,6241-Hire of Vehicle with Driver,TRANSPORT,DIRECT TRANSPORT COSTS,REVENUE
Walsall Council,http://opendatacommunities.org/id/metropolitan-district-council/walsall ,WC139-778,30.06.2022,CHILDRENS,APP CARZ,21/06/2022,"1,350.00",6241-Hire of Vehicle with Driver,TRANSPORT,DIRECT TRANSPORT COSTS,REVENUE
Walsall Council,http://opendatacommunities.org/id/metropolitan-district-council/walsall ,WC139-779,30.06.2022,CHILDRENS,APP CARZ,21/06/2022,"2,040.00",6241-Hire of Vehicle with Driver,TRANSPORT,DIRECT TRANSPORT COSTS,REVENUE
Walsall Council,http://opendatacommunities.org/id/metropolitan-district-council/walsall ,WC139-780,30.06.2022,CHILDRENS,APP CARZ,21/06/2022,"1,275.00",6241-Hire of Vehicle with Driver,TRANSPORT,DIRECT TRANSPORT COSTS,REVENUE
Walsall Council,http://opendatacommunities.org/id/metropolitan-district-council/walsall ,WC139-781,30.06.2022,CHILDRENS,APP CARZ,21/06/2022,975.00,6241-Hire of Vehicle with Driver,TRANSPORT,DIRECT TRANSPORT COSTS,REVENUE
Walsall Council,http://opendatacommunities.org/id/metropolitan-district-council/walsall ,WC139-782,30.06.2022,CHILDRENS,APP CARZ,21/06/2022,810.00,6241-Hire of Vehicle with Driver,TRANSPORT,DIRECT TRANSPORT COSTS,REVENUE
Walsall Council,http://opendatacommunities.org/id/metropolitan-district-council/walsall ,WC139-783,30.06.2022,ADULT SOCIAL CARE,ARBORETUM NURSING HOME.,07/06/2022,"2,456.24",6541-Nursing,THIRD PARTY PAYMENTS,PRIVATE CONTRACTOR,REVENUE
Walsall Council,http://opendatacommunities.org/id/metropolitan-district-council/walsall ,WC139-784,30.06.2022,ADULT SOCIAL CARE,ARBORETUM NURSING HOME.,07/06/2022,"2,456.24",6541-Nursing,THIRD PARTY PAYMENTS,PRIVATE CONTRACTOR,REVENUE
Walsall Council,http://opendatacommunities.org/id/metropolitan-district-council/walsall ,WC139-785,30.06.2022,ADULT SOCIAL CARE,ARBORETUM NURSING HOME.,07/06/2022,"2,456.24",6541-Nursing,THIRD PARTY PAYMENTS,PRIVATE CONTRACTOR,REVENUE
Walsall Council,http://opendatacommunities.org/id/metropolitan-district-council/walsall ,WC139-786,30.06.2022,ADULT SOCIAL CARE,ARBORETUM NURSING HOME.,07/06/2022,"2,456.24",6541-Nursing,THIRD PARTY PAYMENTS,PRIVATE CONTRACTOR,REVENUE
Walsall Council,http://opendatacommunities.org/id/metropolitan-district-council/walsall ,WC139-787,30.06.2022,ADULT SOCIAL CARE,ARBORETUM NURSING HOME.,07/06/2022,"2,456.24",6541-Nursing,THIRD PARTY PAYMENTS,PRIVATE CONTRACTOR,REVENUE
Walsall Council,http://opendatacommunities.org/id/metropolitan-district-council/walsall ,WC139-788,30.06.2022,ADULT SOCIAL CARE,ARBORETUM NURSING HOME.,07/06/2022,"2,142.86",6541-Residential & Nursing Care Placements,THIRD PARTY PAYMENTS,PRIVATE CONTRACTOR,REVENUE
Walsall Council,http://opendatacommunities.org/id/metropolitan-district-council/walsall ,WC139-789,30.06.2022,ADULT SOCIAL CARE,ARBORETUM NURSING HOME.,07/06/2022,"1,490.00",6541-Residential & Nursing Care Placements,THIRD PARTY PAYMENTS,PRIVATE CONTRACTOR,REVENUE
Walsall Council,http://opendatacommunities.org/id/metropolitan-district-council/walsall ,WC139-790,30.06.2022,ADULT SOCIAL CARE,ARBORETUM NURSING HOME.,07/06/2022,"1,285.71",6541-Residential & Nursing Care Placements,THIRD PARTY PAYMENTS,PRIVATE CONTRACTOR,REVENUE
Walsall Council,http://opendatacommunities.org/id/metropolitan-district-council/walsall ,WC139-791,30.06.2022,ADULT SOCIAL CARE,ARBORETUM NURSING HOME.,07/06/2022,"2,456.24",6541-Nursing,THIRD PARTY PAYMENTS,PRIVATE CONTRACTOR,REVENUE
Walsall Council,http://opendatacommunities.org/id/metropolitan-district-council/walsall ,WC139-792,30.06.2022,ADULT SOCIAL CARE,ARBORETUM NURSING HOME.,07/06/2022,"2,456.24",6541-Nursing,THIRD PARTY PAYMENTS,PRIVATE CONTRACTOR,REVENUE
Walsall Council,http://opendatacommunities.org/id/metropolitan-district-council/walsall ,WC139-793,30.06.2022,ADULT SOCIAL CARE,ARBORETUM NURSING HOME.,07/06/2022,"2,542.09",6541-Nursing,THIRD PARTY PAYMENTS,PRIVATE CONTRACTOR,REVENUE
Walsall Council,http://opendatacommunities.org/id/metropolitan-district-council/walsall ,WC139-794,30.06.2022,ADULT SOCIAL CARE,ARBORETUM NURSING HOME.,07/06/2022,"2,636.24",6541-Nursing,THIRD PARTY PAYMENTS,PRIVATE CONTRACTOR,REVENUE
Walsall Council,http://opendatacommunities.org/id/metropolitan-district-council/walsall ,WC139-795,30.06.2022,ADULT SOCIAL CARE,ARBORETUM NURSING HOME.,07/06/2022,"2,636.24",6541-Nursing,THIRD PARTY PAYMENTS,PRIVATE CONTRACTOR,REVENUE
Walsall Council,http://opendatacommunities.org/id/metropolitan-district-council/walsall ,WC139-796,30.06.2022,ADULT SOCIAL CARE,ARBORETUM NURSING HOME.,07/06/2022,"3,400.00",6541-Residential & Nursing Care Placements,THIRD PARTY PAYMENTS,PRIVATE CONTRACTOR,REVENUE
Walsall Council,http://opendatacommunities.org/id/metropolitan-district-council/walsall ,WC139-797,30.06.2022,ADULT SOCIAL CARE,ARBORETUM NURSING HOME.,07/06/2022,"1,714.29",6541-Residential & Nursing Care Placements,THIRD PARTY PAYMENTS,PRIVATE CONTRACTOR,REVENUE
Walsall Council,http://opendatacommunities.org/id/metropolitan-district-council/walsall ,WC139-798,30.06.2022,ADULT SOCIAL CARE,ARBORETUM NURSING HOME.,07/06/2022,"1,821.43",6541-Residential & Nursing Care Placements,THIRD PARTY PAYMENTS,PRIVATE CONTRACTOR,REVENUE
Walsall Council,http://opendatacommunities.org/id/metropolitan-district-council/walsall ,WC139-799,30.06.2022,ADULT SOCIAL CARE,ARBORETUM NURSING HOME.,07/06/2022,"2,636.24",6541-Nursing,THIRD PARTY PAYMENTS,PRIVATE CONTRACTOR,REVENUE
Walsall Council,http://opendatacommunities.org/id/metropolitan-district-council/walsall ,WC139-800,30.06.2022,ADULT SOCIAL CARE,ARBORETUM NURSING HOME.,07/06/2022,"2,636.24",6541-Nursing,THIRD PARTY PAYMENTS,PRIVATE CONTRACTOR,REVENUE
Walsall Council,http://opendatacommunities.org/id/metropolitan-district-council/walsall ,WC139-801,30.06.2022,ADULT SOCIAL CARE,ARBORETUM NURSING HOME.,07/06/2022,"2,636.24",6541-Nursing,THIRD PARTY PAYMENTS,PRIVATE CONTRACTOR,REVENUE
Walsall Council,http://opendatacommunities.org/id/metropolitan-district-council/walsall ,WC139-802,30.06.2022,ADULT SOCIAL CARE,ARBORETUM NURSING HOME.,07/06/2022,851.43,6541-Residential & Nursing Care Placements,THIRD PARTY PAYMENTS,PRIVATE CONTRACTOR,REVENUE
Walsall Council,http://opendatacommunities.org/id/metropolitan-district-council/walsall ,WC139-803,30.06.2022,ADULT SOCIAL CARE,ARBORETUM NURSING HOME.,07/06/2022,"1,714.29",6541-Residential & Nursing Care Placements,THIRD PARTY PAYMENTS,PRIVATE CONTRACTOR,REVENUE
Walsall Council,http://opendatacommunities.org/id/metropolitan-district-council/walsall ,WC139-804,30.06.2022,ADULT SOCIAL CARE,ARBORETUM NURSING HOME.,07/06/2022,851.43,6541-Residential & Nursing Care Placements,THIRD PARTY PAYMENTS,PRIVATE CONTRACTOR,REVENUE
Walsall Council,http://opendatacommunities.org/id/metropolitan-district-council/walsall ,WC139-805,30.06.2022,ADULT SOCIAL CARE,ARBORETUM NURSING HOME.,07/06/2022,750.00,6541-Residential & Nursing Care Placements,THIRD PARTY PAYMENTS,PRIVATE CONTRACTOR,REVENUE
Walsall Council,http://opendatacommunities.org/id/metropolitan-district-council/walsall ,WC139-806,30.06.2022,ADULT SOCIAL CARE,ARBORETUM NURSING HOME.,07/06/2022,"2,456.24",6541-Nursing,THIRD PARTY PAYMENTS,PRIVATE CONTRACTOR,REVENUE
Walsall Council,http://opendatacommunities.org/id/metropolitan-district-council/walsall ,WC139-807,30.06.2022,ADULT SOCIAL CARE,ARBORETUM NURSING HOME.,07/06/2022,"1,071.43",6541-Residential & Nursing Care Placements,THIRD PARTY PAYMENTS,PRIVATE CONTRACTOR,REVENUE
Walsall Council,http://opendatacommunities.org/id/metropolitan-district-council/walsall ,WC139-808,30.06.2022,ADULT SOCIAL CARE,ARBORETUM NURSING HOME.,07/06/2022,"1,285.71",6541-Residential & Nursing Care Placements,THIRD PARTY PAYMENTS,PRIVATE CONTRACTOR,REVENUE
Walsall Council,http://opendatacommunities.org/id/metropolitan-district-council/walsall ,WC139-809,30.06.2022,ADULT SOCIAL CARE,ARBORETUM NURSING HOME.,07/06/2022,"1,490.00",6541-Residential & Nursing Care Placements,THIRD PARTY PAYMENTS,PRIVATE CONTRACTOR,REVENUE
Walsall Council,http://opendatacommunities.org/id/metropolitan-district-council/walsall ,WC139-810,30.06.2022,ADULT SOCIAL CARE,ARBORETUM NURSING HOME.,07/06/2022,"2,410.72",6541-Nursing,THIRD PARTY PAYMENTS,PRIVATE CONTRACTOR,REVENUE
Walsall Council,http://opendatacommunities.org/id/metropolitan-district-council/walsall ,WC139-811,30.06.2022,RESOURCES AND TRANSFORMATION CAPITAL,ARCADIS,16/06/2022,"19,610.00",7300-Consultants Fees,CAPITAL,"NEW CONSTRUCTION,CONVERSION & RENOVATION",CAPITAL
Walsall Council,http://opendatacommunities.org/id/metropolitan-district-council/walsall ,WC139-812,30.06.2022,RESOURCES AND TRANSFORMATION CAPITAL,ARCADIS,22/06/2022,"10,000.00",7300-Consultants Fees,CAPITAL,"NEW CONSTRUCTION,CONVERSION & RENOVATION",CAPITAL
Walsall Council,http://opendatacommunities.org/id/metropolitan-district-council/walsall ,WC139-813,30.06.2022,RESOURCES AND TRANSFORMATION CAPITAL,ARCADIS,22/06/2022,"10,500.00",7300-Consultants Fees,CAPITAL,"NEW CONSTRUCTION,CONVERSION & RENOVATION",CAPITAL
